Workbook

Sheet Resumo
D1: Obra | E1: Bancos | F1: B.D.I. | I1: Encargos Sociais
D2: OBRAS E SERVIÇOS REMANESCENTES PARA CONSTRUÇÃO DE CENTRO COMERCIAL, LOCALIZADO NO MUNICÍPIO DE SANTANA, NO ESTADO DO AMAPÁ | E2: SINAPI - 09/2024 - Amapá SICRO3 - 07/2024 - Amapá ORSE - 07/2024 - Sergipe | F2: 21,9% | I2: Não Desonerado: embutido nos preços unitário dos insumos de mão de obra, de acordo com as bases.
A3: Planilha Orçamentária Resumida
A4: Item | D4: Descrição | I4: Total | J4: Peso (%)
A5: 1 | D5: ADMINISTRAÇÃO DA OBRA | I5: 357504.5 | J5: 0.04971254884
A6: 2 | D6: SERVIÇOS PRELIMINARES | G6: 1 | I6: 12276.31 | J6: 0.001707074066
A7: 3 | D7: PAREDES E PAINÉIS | G7: 1 | I7: 13645.83 | J7: 0.001897511752
A8: 4 | D8: ESQUADRIAS | G8: 1 | I8: 1102194.85 | J8: 0.1532649668
A9: 5 | D9: COBERTURA | G9: 1 | I9: 765157.58 | J9: 0.1063984749
A10: 6 | D10: INSTALAÇÕES ELÉTRICAS | G10: 1 | I10: 1828109.19 | J10: 0.2542064992
A11: 6.1 | D11: SPDA | G11: 1 | I11: 60122.51 | J11: 0.008360295365
A12: 6.2 | D12: PREVENTIVO ELÉTRICO | G12: 1 | I12: 79695.43 | J12: 0.01108199465
A13: 6.3 | D13: INFRAESTRUTURA GERAL PARA ALIMENTAÇÃO DOS BOXES E CONDOMÍNIO | G13: 1 | I13: 203188.87 | J13: 0.02825429225
A14: 6.4 | D14: PROJETO ELÉTRICO BOX 01 A 100 | G14: 1 | I14: 435811.5 | J14: 0.06060147628
A15: 6.5 | D15: PROJETO ELÉTRICO CIRCULAÇÃO COMUM E ÁREAS COMUNS | G15: 1 | I15: 272148.09 | J15: 0.0378433704
A16: 6.6 | D16: PROJETO ELÉTRICO EXTERNO | G16: 1 | I16: 217665.61 | J16: 0.03026734563
A17: 6.7 | D17: PROJETO DE ENTRADA DE ENERGIA - SUBESTAÇÃO | G17: 1 | I17: 139767.95 | J17: 0.01943533869
A18: 6.8 | D18: PROJETOS DE RAMAIS DE CARGAS DOS QUADROS DE MEDIDORES | G18: 1 | I18: 207824.99 | J18: 0.02889896481
A19: 6.9 | D19: PROJETO ELÉTRICO DE CABEAMENTO ESTRUTURADO | G19: 1 | I19: 211884.24 | J19: 0.0294634211
A20: 7 | D20: INSTALAÇÕES HIDROSSANITÁRIAS | G20: 1 | I20: 315570.29 | J20: 0.04388141535
A21: 7.1 | D21: INSTALAÇÕES DE ÁGUA FRIA | G21: 1 | I21: 78437.64 | J21: 0.0109070935
A22: 7.2 | D22: INSTALAÇÕES DE ESGOTO | G22: 1 | I22: 128754.83 | J22: 0.01790391666
A23: 7.3 | D23: COLETA DE ÁGUAS PLUVIAIS | G23: 1 | I23: 32520.01 | J23: 0.004522048213
A24: 7.4 | D24: BANCADAS E LAVATÓRIOS | G24: 1 | I24: 58258.08 | J24: 0.0081010383
A25: 7.5 | D25: RESERVATÓRIO ENTERRADO | G25: 1 | I25: 17599.73 | J25: 0.002447318669
A26: 8 | D26: VENTILAÇÃO MECÂNICA E EXAUSTORES | G26: 1 | I26: 31306.26 | J26: 0.004353271019
A27: 9 | D27: PISO E PAVIMENTAÇÃO | G27: 1 | I27: 1058464.06 | J27: 0.147184011
A28: 10 | D28: REVESTIMENTOS | G28: 1 | I28: 352886.01 | J28: 0.0490703278
A29: 11 | D29: PINTURA | G29: 1 | I29: 410319.28 | J29: 0.0570566727
A30: 12 | D30: PROJETO PREVENTIVO CONTRA INCÊNDIO | G30: 1 | I30: 77359.24 | J30: 0.01075713731
A31: 13 | D31: FORROS | G31: 1 | I31: 303103.21 | J31: 0.04214781389
A32: 14 | D32: ELEVADOR | G32: 1 | I32: 107637.7 | J32: 0.01496748829
A33: 15 | D33: ESTACIONAMENTO | G33: 1 | I33: 415102.84 | J33: 0.05772184743
A34: 15.1 | D34: PISOS | G34: 1 | I34: 196567.58 | J34: 0.0273335732
A35: 15.2 | D35: DRENAGEM | G35: 1 | I35: 145059.07 | J35: 0.02017109184
A36: 15.3 | D36: ILUMINAÇÃO | G36: 1 | I36: 56400.2 | J36: 0.007842692041
A37: 15.4 | D37: PAISAGISMO | G37: 1 | I37: 12918.9 | J37: 0.001796428988
A38: 15.5 | D38: SINALIZAÇÃO | G38: 1 | I38: 4157.09 | J38: 0.000578061366
A39: 16 | D39: SERVIÇOS FINAIS | G39: 1 | I39: 40796.57 | J39: 0.005672939721
G41: Total sem BDI | I41: 5934187.16
G42: Total do BDI | I42: 1257246.56
G43: Total Geral | I43: 7191433.72

Sheet Orçamento Sintético
I1: Valor Final do Orçamento | K1: =J4 + J6 + J12 + J15 + J26 + J33 + J287 + J407 + J414 + J425 + J434 + J445 + J464 + J468 + J470 + J511 -> 7191433.72
I2: BDI | K2: 0.219
A3: Item | B3: Código | C3: Banco | D3: Descrição | E3: Und | F3: Quant. | G3: Valor Unit | H3: BDI Diferenciado | I3: Valor Unit com BDI | J3: Total | K3: Peso (%)
A4: 1 | D4: ADMINISTRAÇÃO DA OBRA | F4: 1 | I4: =J5 -> 357504.5 | J4: =TRUNC(F4 * I4,2) -> 357504.5 | K4: =J4 / K1 -> 0.04971254884
A5: 1.1 | B5: COMPOSIÇÃO - 146 | C5: Próprio | D5: ADMINISTRAÇÃO LOCAL | E5: UN | F5: 10 | G5: 29327.69 | I5: =(TRUNC(G5 * K2,2) + G5) -> 35750.45 | J5: 357504.5 | K5: =J5 / K1 -> 0.04971254884
A6: 2 | D6: SERVIÇOS PRELIMINARES | F6: 1 | I6: =J7 + J8 + J9 + J10 + J11 -> 12276.31 | J6: 12276.31 | K6: =J6 / K1 -> 0.001707074066
A7: 2.1 | B7: 103689 | C7: SINAPI | D7: FORNECIMENTO E INSTALAÇÃO DE PLACA DE OBRA COM CHAPA GALVANIZADA E ESTRUTURA DE MADEIRA. AF_03/2022_PS | E7: m² | F7: 6.42 | G7: 461.25 | I7: =(TRUNC(G7 * K2,2) + G7) -> 562.26 | J7: 3609.7 | K7: =J7 / K1 -> 0.0005019444162
A8: 2.2 | B8: 98458 | C8: SINAPI | D8: TAPUME COM COMPENSADO DE MADEIRA. AF_03/2024 | E8: m² | F8: 22 | G8: 105.28 | I8: =(TRUNC(G8 * K2,2) + G8) -> 128.33 | J8: 2823.26 | K8: =J8 / K1 -> 0.0003925865286
A9: 2.3 | B9: 11519 | C9: ORSE | D9: Câmera Hdcvi speed dome Vhd 3020 sd, da Intelbrás ou similar | E9: un | F9: 1 | G9: 3994.25 | I9: =(TRUNC(G9 * K2,2) + G9) -> 4868.99 | J9: 4868.99 | K9: =J9 / K1 -> 0.0006770541438
A10: 2.4 | B10: 8646 | C10: ORSE | D10: Poste galvanizado com 5m para instalação de câmera de segurança p/penitenciária | E10: un | F10: 1 | G10: 407.42 | I10: =(TRUNC(G10 * K2,2) + G10) -> 496.64 | J10: 496.64 | K10: =J10 / K1 -> 6.905994261e-05
A11: 2.5 | B11: 95636 | C11: SINAPI | D11: KIT CAVALETE PARA MEDIÇÃO DE ÁGUA - ENTRADA PRINCIPAL, EM AÇO GALVANIZADO DN 25 MM (1") - FORNECIMENTO E INSTALAÇÃO (EXCLUSIVE HIDRÔMETRO). AF_03/2024 | E11: UN | F11: 1 | G11: 391.9 | I11: =(TRUNC(G11 * K2,2) + G11) -> 477.72 | J11: 477.72 | K11: =J11 / K1 -> 6.642903468e-05
A12: 3 | D12: PAREDES E PAINÉIS | F12: 1 | I12: =J13 + J14 -> 13645.83 | J12: 13645.83 | K12: =J12 / K1 -> 0.001897511752
A13: 3.1 | B13: 103324 | C13: SINAPI | D13: ALVENARIA DE VEDAÇÃO DE BLOCOS CERÂMICOS FURADOS NA VERTICAL DE 14X19X39 CM (ESPESSURA 14 CM) E ARGAMASSA DE ASSENTAMENTO COM PREPARO EM BETONEIRA. AF_12/2021 | E13: m² | F13: 127.5 | G13: 80.81 | I13: =(TRUNC(G13 * K2,2) + G13) -> 98.5 | J13: 12558.75 | K13: =J13 / K1 -> 0.001746348571
A14: 3.2 | B14: 4458 | C14: ORSE | D14: Divisória em granito cinza andorinha para mictórios, polido, e=2cm, inclusivefixação - Rev 02 | E14: m² | F14: 1.23 | G14: 725.03 | I14: =(TRUNC(G14 * K2,2) + G14) -> 883.81 | J14: 1087.08 | K14: =J14 / K1 -> 0.0001511631814
A15: 4 | D15: ESQUADRIAS | F15: 1 | I15: =J16 + J17 + J18 + J19 + J20 + J21 + J22 + J23 + J24 + J25 -> 1102194.85 | J15: 1102194.85 | K15: =J15 / K1 -> 0.1532649668
A16: 4.1 | B16: 91341 | C16: SINAPI | D16: PORTA EM ALUMÍNIO DE ABRIR TIPO VENEZIANA COM GUARNIÇÃO, FIXAÇÃO COM PARAFUSOS - FORNECIMENTO E INSTALAÇÃO. AF_12/2019 | E16: m² | F16: 30.66 | G16: 677.02 | I16: =(TRUNC(G16 * K2,2) + G16) -> 825.28 | J16: 25303.08 | K16: =J16 / K1 -> 0.003518502845
A17: 4.2 | B17: 94805 | C17: SINAPI | D17: PORTA DE ALUMÍNIO DE ABRIR PARA VIDRO SEM GUARNIÇÃO, 87X210CM, FIXAÇÃO COM PARAFUSOS, INCLUSIVE VIDROS - FORNECIMENTO E INSTALAÇÃO. AF_12/2019 | E17: UN | F17: 4 | G17: 852.73 | I17: =(TRUNC(G17 * K2,2) + G17) -> 1039.47 | J17: 4157.88 | K17: =J17 / K1 -> 0.000578171219
A18: 4.3 | B18: 13468 | C18: ORSE | D18: Fornecimento e montagem de porta de enrolar automática, em chapa 20 Transvision, com guias laterais, soleira T, motor para 1000Kg , PVC auto lubrificante nas guias, borracha de vedação de soleira, central com 02 controles e pinturaeletrostática | E18: m² | F18: 965.97 | G18: 370.44 | I18: =(TRUNC(G18 * K2,2) + G18) -> 451.56 | J18: 436193.41 | K18: =J18 / K1 -> 0.06065458252
A19: 4.4 | B19: 11489 | C19: ORSE | D19: Fornecimento e instalação de brise metálico de alumínio, ref. B57, branco nieve 7000, da Hunter Douglas ou similar | E19: m² | F19: 575.26 | G19: 450 | I19: =(TRUNC(G19 * K2,2) + G19) -> 548.55 | J19: 315558.87 | K19: =J19 / K1 -> 0.04387982735
A20: 4.5 | B20: 9039 | C20: ORSE | D20: Alçapão de alumínio, tipo escama, cor fosca | E20: m² | F20: 0.64 | G20: 433.29 | I20: =(TRUNC(G20 * K2,2) + G20) -> 528.18 | J20: 338.03 | K20: =J20 / K1 -> 4.700453528e-05
A21: 4.6 | B21: 99841 | C21: SINAPI | D21: GUARDA-CORPO PANORÂMICO COM PERFIS DE ALUMÍNIO E VIDRO LAMINADO 8 MM, FIXADO COM CHUMBADOR MECÂNICO. AF_04/2019_PS | E21: M | F21: 70.27 | G21: 1716.54 | I21: =(TRUNC(G21 * K2,2) + G21) -> 2092.46 | J21: 147037.16 | K21: =J21 / K1 -> 0.02044615382
A22: 4.7 | B22: 91338 | C22: SINAPI | D22: PORTA DE ALUMÍNIO DE ABRIR COM LAMBRI, COM GUARNIÇÃO, FIXAÇÃO COM PARAFUSOS - FORNECIMENTO E INSTALAÇÃO. AF_12/2019 | E22: m² | F22: 1.68 | G22: 863.21 | I22: =(TRUNC(G22 * K2,2) + G22) -> 1052.25 | J22: 1767.78 | K22: =J22 / K1 -> 0.0002458174641
A23: 4.8 | B23: 100763 | C23: SINAPI | D23: VIGA METÁLICA EM PERFIL LAMINADO OU SOLDADO EM AÇO ESTRUTURAL, COM CONEXÕES PARAFUSADAS, INCLUSOS MÃO DE OBRA, TRANSPORTE E IÇAMENTO UTILIZANDO GUINDASTE - FORNECIMENTO E INSTALAÇÃO. AF_01/2020_PSA | E23: KG | F23: 2499.41 | G23: 15.49 | I23: =(TRUNC(G23 * K2,2) + G23) -> 18.88 | J23: 47188.86 | K23: =J23 / K1 -> 0.006561815326
A24: 4.9 | B24: 102168 | C24: SINAPI | D24: INSTALAÇÃO DE VIDRO LISO INCOLOR, E = 8 MM, EM ESQUADRIA DE ALUMÍNIO OU PVC, FIXADO COM BAGUETE. AF_01/2021_PS | E24: m² | F24: 146.4 | G24: 646.69 | I24: =(TRUNC(G24 * K2,2) + G24) -> 788.31 | J24: 115408.58 | K24: =J24 / K1 -> 0.01604806281
A25: 4.10 | B25: 99855 | C25: SINAPI | D25: CORRIMÃO SIMPLES, DIÂMETRO EXTERNO = 1 1/2", EM AÇO GALVANIZADO. AF_04/2019_PS | E25: M | F25: 70.27 | G25: 107.89 | I25: =(TRUNC(G25 * K2,2) + G25) -> 131.51 | J25: 9241.2 | K25: =J25 / K1 -> 0.001285028877
A26: 5 | D26: COBERTURA | F26: 1 | I26: =J27 + J28 + J29 + J30 + J31 + J32 -> 765157.58 | J26: 765157.58 | K26: =J26 / K1 -> 0.1063984749
A27: 5.1 | B27: 100778 | C27: SINAPI | D27: ESTRUTURA TRELIÇADA DE COBERTURA, TIPO FINK, COM LIGAÇÕES PARAFUSADAS, INCLUSOS PERFIS METÁLICOS, CHAPAS METÁLICAS, MÃO DE OBRA E TRANSPORTE COM GUINDASTE - FORNECIMENTO E INSTALAÇÃO. AF_01/2020_PSA | E27: KG | F27: 27160 | G27: 12.49 | I27: =(TRUNC(G27 * K2,2) + G27) -> 15.22 | J27: 413375.2 | K27: =J27 / K1 -> 0.05748161161
A28: 5.2 | B28: 94227 | C28: SINAPI | D28: CALHA EM CHAPA DE AÇO GALVANIZADO NÚMERO 24, DESENVOLVIMENTO DE 33 CM, INCLUSO TRANSPORTE VERTICAL. AF_07/2019 | E28: M | F28: 99.75 | G28: 62.83 | I28: =(TRUNC(G28 * K2,2) + G28) -> 76.58 | J28: 7638.85 | K28: =J28 / K1 -> 0.001062215171
A29: 5.3 | B29: 94231 | C29: SINAPI | D29: RUFO EM CHAPA DE AÇO GALVANIZADO NÚMERO 24, CORTE DE 25 CM, INCLUSO TRANSPORTE VERTICAL. AF_07/2019 | E29: M | F29: 325.64 | G29: 52.7 | I29: =(TRUNC(G29 * K2,2) + G29) -> 64.24 | J29: 20919.11 | K29: =J29 / K1 -> 0.002908892832
A30: 5.4 | B30: 13745 | C30: ORSE | D30: Cumeeira em galvalume para telha trapezoidal galvalume standard, com 40 cm decada lado, e = 0,43mm, cor natural | E30: m | F30: 123.15 | G30: 110.16 | I30: =(TRUNC(G30 * K2,2) + G30) -> 134.28 | J30: 16536.58 | K30: =J30 / K1 -> 0.002299483058
A31: 5.5 | B31: 00039522 | C31: SINAPI | D31: TELHA TERMOISOLANTE REVESTIDA EM ACO GALVANIZADO, FACES SUPERIOR E INFERIOR EM TELHA TRAPEZOIDAL (SEM ACESSORIOS DE FIXACAO), REVESTIMENTO COM ESPESSURA DE 0,50 MM COM PRE-PINTURA NAS DUAS FACES, NUCLEO EM POLIESTIRENO (EPS) DE 50 MM | E31: m² | F31: 1762.27 | G31: 140.77 | H31: 0.1441 | I31: =(TRUNC(G31 * H31,2) + G31) -> 161.05 | J31: 283813.58 | K31: =J31 / K1 -> 0.0394655073
A32: 5.6 | B32: 12734 | C32: ORSE | D32: Telhamento com telha em aço galvalume, dupla, trapezoidal, com preenchimento PIR 50mm, pré-pintada, TP40 - 2 x 0,43mm, Kingspan- Isoeste ou similar | E32: m² | F32: 1762.27 | G32: 10.65 | I32: =(TRUNC(G32 * K2,2) + G32) -> 12.98 | J32: 22874.26 | K32: =J32 / K1 -> 0.003180764906
A33: 6 | D33: INSTALAÇÕES ELÉTRICAS | F33: 1 | I33: =J34 + J46 + J64 + J95 + J136 + J180 + J187 + J229 + J241 -> 1828109.19 | J33: 1828109.19 | K33: =J33 / K1 -> 0.2542064992
A34: 6.1 | D34: SPDA | F34: 1 | I34: =J35 + J36 + J37 + J38 + J39 + J40 + J41 + J42 + J43 + J44 + J45 -> 60122.51 | J34: 60122.51 | K34: =J34 / K1 -> 0.008360295365
A35: 6.1.1 | B35: 12740 | C35: ORSE | D35: Fornecimento e assentamento de barra chata de alumínio de 7/8" x 1/8" | E35: m | F35: 480 | G35: 13.89 | I35: =(TRUNC(G35 * K2,2) + G35) -> 16.93 | J35: 8126.4 | K35: =J35 / K1 -> 0.00113001111
A36: 6.1.2 | B36: 104746 | C36: SINAPI | D36: MINI CAPTOR PARA SPDA - FORNECIMENTO E INSTALAÇÃO. AF_08/2023 | E36: UN | F36: 18 | G36: 27.28 | I36: =(TRUNC(G36 * K2,2) + G36) -> 33.25 | J36: 598.5 | K36: =J36 / K1 -> 8.32240167e-05
A37: 6.1.3 | B37: 98111 | C37: SINAPI | D37: CAIXA DE INSPEÇÃO PARA ATERRAMENTO, CIRCULAR, EM POLIETILENO, DIÂMETRO INTERNO = 0,3 M. AF_12/2020 | E37: UN | F37: 14 | G37: 53.15 | I37: =(TRUNC(G37 * K2,2) + G37) -> 64.78 | J37: 906.92 | K37: =J37 / K1 -> 0.0001261111533
A38: 6.1.4 | B38: 96985 | C38: SINAPI | D38: HASTE DE ATERRAMENTO, DIÂMETRO 5/8", COM 3 METROS - FORNECIMENTO E INSTALAÇÃO. AF_08/2023 | E38: UN | F38: 42 | G38: 83.08 | I38: =(TRUNC(G38 * K2,2) + G38) -> 101.27 | J38: 4253.34 | K38: =J38 / K1 -> 0.0005914453453
A39: 6.1.5 | B39: 93358 | C39: SINAPI | D39: ESCAVAÇÃO MANUAL DE VALA. AF_09/2024 | E39: m³ | F39: 48.6 | G39: 75.08 | I39: =(TRUNC(G39 * K2,2) + G39) -> 91.52 | J39: 4447.87 | K39: =J39 / K1 -> 0.0006184955842
A40: 6.1.6 | B40: 00011950 | C40: SINAPI | D40: BUCHA DE NYLON SEM ABA S6, COM PARAFUSO DE 4,20 X 40 MM EM ACO ZINCADO COM ROSCA SOBERBA, CABECA CHATA E FENDA PHILLIPS | E40: UN | F40: 300 | G40: 0.26 | H40: 0.1441 | I40: =(TRUNC(G40 * H40,2) + G40) -> 0.29 | J40: 87 | K40: =J40 / K1 -> 1.209772674e-05
A41: 6.1.7 | B41: 00001577 | C41: SINAPI | D41: TERMINAL A COMPRESSAO EM COBRE ESTANHADO PARA CABO 35 MM2, 1 FURO E 1 COMPRESSAO, PARA PARAFUSO DE FIXACAO M8 | E41: UN | F41: 14 | G41: 3.31 | H41: 0.1441 | I41: =(TRUNC(G41 * H41,2) + G41) -> 3.78 | J41: 52.92 | K41: =J41 / K1 -> 7.358755161e-06
A42: 6.1.8 | B42: 9392 | C42: ORSE | D42: Cabo de cobre nú 35 mm2 - fornecimento e assentamento (3,16m/kg) | E42: kg | F42: 30 | G42: 105.26 | I42: =(TRUNC(G42 * K2,2) + G42) -> 128.31 | J42: 3849.3 | K42: =J42 / K1 -> 0.0005352618337
A43: 6.1.9 | B43: 8082 | C43: ORSE | D43: Cabo de cobre nú 50 mm2 - fornecimento e assentamento (2,27m/kg) | E43: kg | F43: 240 | G43: 127.29 | I43: =(TRUNC(G43 * K2,2) + G43) -> 155.16 | J43: 37238.4 | K43: =J43 / K1 -> 0.005178160774
A44: 6.1.10 | B44: COMPOSIÇÃO - 147 | C44: Próprio | D44: SOLDA EXOTÉRMICA PARA CABO DE 35MM² | E44: UN | F44: 1 | G44: 208.26 | I44: =(TRUNC(G44 * K2,2) + G44) -> 253.86 | J44: 253.86 | K44: =J44 / K1 -> 3.53003323e-05
A45: 6.1.11 | B45: COMPOSIÇÃO - 148 | C45: Próprio | D45: SOLDA EXOTÉRMICA PARA CABO DE 50MM² | E45: UN | F45: 1 | G45: 252.67 | I45: =(TRUNC(G45 * K2,2) + G45) -> 308 | J45: 308 | K45: =J45 / K1 -> 4.282873374e-05
A46: 6.2 | D46: PREVENTIVO ELÉTRICO | F46: 1 | I46: =J47 + J48 + J49 + J50 + J51 + J52 + J53 + J54 + J55 + J56 + J57 + J58 + J59 + J60 + J61 + J62 + J63 -> 79695.43 | J46: 79695.43 | K46: =J46 / K1 -> 0.01108199465
A47: 6.2.1 | B47: 00011950 | C47: SINAPI | D47: BUCHA DE NYLON SEM ABA S6, COM PARAFUSO DE 4,20 X 40 MM EM ACO ZINCADO COM ROSCA SOBERBA, CABECA CHATA E FENDA PHILLIPS | E47: UN | F47: 450 | G47: 0.26 | H47: 0.1441 | I47: =(TRUNC(G47 * H47,2) + G47) -> 0.29 | J47: 130.5 | K47: =J47 / K1 -> 1.814659011e-05
A48: 6.2.2 | B48: 7861 | C48: ORSE | D48: Acionador manual (botoeira) tipo quebra-vidro, p/instal. incendio | E48: un | F48: 16 | G48: 150.32 | I48: =(TRUNC(G48 * K2,2) + G48) -> 183.24 | J48: 2931.84 | K48: =J48 / K1 -> 0.0004076850478
A49: 6.2.3 | B49: 11824 | C49: ORSE | D49: Sirene aúdiovisual endereçavel, 120db, para alarme de incêndio | E49: un | F49: 16 | G49: 225.39 | I49: =(TRUNC(G49 * K2,2) + G49) -> 274.75 | J49: 4396 | K49: =J49 / K1 -> 0.0006112828361
A50: 6.2.4 | B50: 11820 | C50: ORSE | D50: Central de alarme endereçável de incendio com sistema p/ até 250 dispositivos, marcal Verin ou similar, Modelo VRE-250 c/ bateria de 12V e 7Amperes | E50: un | F50: 1 | G50: 6531.99 | I50: =(TRUNC(G50 * K2,2) + G50) -> 7962.49 | J50: 7962.49 | K50: =J50 / K1 -> 0.001107218715
A51: 6.2.5 | B51: 10347 | C51: ORSE | D51: Fonte de alimentação 15w (24V) | E51: un | F51: 2 | G51: 293.19 | H51: 0.1441 | I51: =(TRUNC(G51 * H51,2) + G51) -> 335.43 | J51: 670.86 | K51: =J51 / K1 -> 9.328598804e-05
A52: 6.2.6 | B52: 13156 | C52: ORSE | D52: Luminária de emergência c/ dois projetors LED alimentação 127/220 de 12v/55 autonomia de 3horas | E52: un | F52: 47 | G52: 259.8 | H52: 0.1441 | I52: =(TRUNC(G52 * H52,2) + G52) -> 297.23 | J52: 13969.81 | K52: =J52 / K1 -> 0.001942562574
A53: 6.2.7 | B53: 91940 | C53: SINAPI | D53: CAIXA RETANGULAR 4" X 2" MÉDIA (1,30 M DO PISO), PVC, INSTALADA EM PAREDE - FORNECIMENTO E INSTALAÇÃO. AF_03/2023 | E53: UN | F53: 20 | G53: 17.71 | I53: =(TRUNC(G53 * K2,2) + G53) -> 21.58 | J53: 431.6 | K53: =J53 / K1 -> 6.001584897e-05
A54: 6.2.8 | B54: 91914 | C54: SINAPI | D54: CURVA 90 GRAUS PARA ELETRODUTO, PVC, ROSCÁVEL, DN 25 MM (3/4"), PARA CIRCUITOS TERMINAIS, INSTALADA EM PAREDE - FORNECIMENTO E INSTALAÇÃO. AF_03/2023 | E54: UN | F54: 10 | G54: 17.58 | I54: =(TRUNC(G54 * K2,2) + G54) -> 21.43 | J54: 214.3 | K54: =J54 / K1 -> 2.979934299e-05
A55: 6.2.9 | B55: 12141 | C55: ORSE | D55: Cabo blindado para alarme e detecção de incêncio 4 x 1,5mm2 | E55: m | F55: 600 | G55: 28.57 | I55: =(TRUNC(G55 * K2,2) + G55) -> 34.82 | J55: 20892 | K55: =J55 / K1 -> 0.002905123069
A56: 6.2.10 | B56: 12884 | C56: ORSE | D56: Placa de sinalizacao, fotoluminescente, 38x19 cm, em pvc , com seta indicativa de sentido (esquerda ou direita) de saída de emergência- Placa S2 | E56: un | F56: 77 | G56: 23.63 | I56: =(TRUNC(G56 * K2,2) + G56) -> 28.8 | J56: 2217.6 | K56: =J56 / K1 -> 0.0003083668829
A57: 6.2.11 | B57: 00037558 | C57: SINAPI | D57: PLACA DE SINALIZACAO DE SEGURANCA CONTRA INCENDIO, FOTOLUMINESCENTE, RETANGULAR, *20 X 40* CM, EM PVC *2* MM ANTI-CHAMAS (SIMBOLOS, CORES E PICTOGRAMAS CONFORME NBR 16820) | E57: UN | F57: 5 | G57: 70.85 | H57: 0.1441 | I57: =(TRUNC(G57 * H57,2) + G57) -> 81.05 | J57: 405.25 | K57: =J57 / K1 -> 5.635176736e-05
A58: 6.2.12 | B58: 12887 | C58: ORSE | D58: Placa de sinalizacao, fotoluminescente, 38x19 cm, em pvc , com logotipo "Comando manual de alarme de incêndio"- Placa E2 | E58: un | F58: 16 | G58: 23.63 | I58: =(TRUNC(G58 * K2,2) + G58) -> 28.8 | J58: 460.8 | K58: =J58 / K1 -> 6.407623541e-05
A59: 6.2.13 | B59: 102513 | C59: SINAPI | D59: PINTURA DE SÍMBOLOS E TEXTOS COM TINTA ACRÍLICA, DEMARCAÇÃO COM FITA ADESIVA E APLICAÇÃO COM ROLO. AF_05/2021 | E59: m² | F59: 24 | G59: 44.95 | I59: =(TRUNC(G59 * K2,2) + G59) -> 54.79 | J59: 1314.96 | K59: =J59 / K1 -> 0.0001828508822
A60: 6.2.14 | B60: 101909 | C60: SINAPI | D60: EXTINTOR DE INCÊNDIO PORTÁTIL COM CARGA DE PQS DE 6 KG, CLASSE BC - FORNECIMENTO E INSTALAÇÃO. AF_10/2020_PE | E60: UN | F60: 24 | G60: 471.84 | I60: =(TRUNC(G60 * K2,2) + G60) -> 575.17 | J60: 13804.08 | K60: =J60 / K1 -> 0.0019195171
A61: 6.2.15 | B61: 1512 | C61: ORSE | D61: Suporte decorativo para extintores - REV 01/2022 | E61: un | F61: 24 | G61: 58.67 | I61: =(TRUNC(G61 * K2,2) + G61) -> 71.51 | J61: 1716.24 | K61: =J61 / K1 -> 0.0002386506039
A62: 6.2.16 | B62: 91871 | C62: SINAPI | D62: ELETRODUTO RÍGIDO ROSCÁVEL, PVC, DN 25 MM (3/4"), PARA CIRCUITOS TERMINAIS, INSTALADO EM PAREDE - FORNECIMENTO E INSTALAÇÃO. AF_03/2023 | E62: M | F62: 390 | G62: 14.35 | I62: =(TRUNC(G62 * K2,2) + G62) -> 17.49 | J62: 6821.1 | K62: =J62 / K1 -> 0.0009485034926
A63: 6.2.17 | B63: 00039128 | C63: SINAPI | D63: ABRACADEIRA EM ACO PARA AMARRACAO DE ELETRODUTOS, TIPO D, COM 3/4" E CUNHA DE FIXACAO | E63: UN | F63: 400 | G63: 2.97 | H63: 0.1441 | I63: =(TRUNC(G63 * H63,2) + G63) -> 3.39 | J63: 1356 | K63: =J63 / K1 -> 0.0001885576719
A64: 6.3 | D64: INFRAESTRUTURA GERAL PARA ALIMENTAÇÃO DOS BOXES E CONDOMÍNIO | F64: 1 | I64: =J65 + J66 + J67 + J68 + J69 + J70 + J71 + J72 + J73 + J74 + J75 + J76 + J77 + J78 + J79 + J80 + J81 + J82 + J83 + J84 + J85 + J86 + J87 + J88 + J89 + J90 + J91 + J92 + J93 + J94 -> 203188.87 | J64: 203188.87 | K64: =J64 / K1 -> 0.02825429225
A65: 6.3.1 | B65: 91836 | C65: SINAPI | D65: ELETRODUTO FLEXÍVEL CORRUGADO, PVC, DN 32 MM (1"), PARA CIRCUITOS TERMINAIS, INSTALADO EM FORRO - FORNECIMENTO E INSTALAÇÃO. AF_03/2023_PA | E65: M | F65: 350 | G65: 21.77 | I65: =(TRUNC(G65 * K2,2) + G65) -> 26.53 | J65: 9285.5 | K65: =J65 / K1 -> 0.001291188984
A66: 6.3.2 | B66: 91864 | C66: SINAPI | D66: ELETRODUTO RÍGIDO ROSCÁVEL, PVC, DN 32 MM (1"), PARA CIRCUITOS TERMINAIS, INSTALADO EM FORRO - FORNECIMENTO E INSTALAÇÃO. AF_03/2023 | E66: M | F66: 540 | G66: 15.65 | I66: =(TRUNC(G66 * K2,2) + G66) -> 19.07 | J66: 10297.8 | K66: =J66 / K1 -> 0.001431953683
A67: 6.3.3 | B67: 91893 | C67: SINAPI | D67: CURVA 90 GRAUS PARA ELETRODUTO, PVC, ROSCÁVEL, DN 32 MM (1"), PARA CIRCUITOS TERMINAIS, INSTALADA EM FORRO - FORNECIMENTO E INSTALAÇÃO. AF_03/2023 | E67: UN | F67: 110 | G67: 16.43 | I67: =(TRUNC(G67 * K2,2) + G67) -> 20.02 | J67: 2202.2 | K67: =J67 / K1 -> 0.0003062254462
A68: 6.3.4 | B68: 91876 | C68: SINAPI | D68: LUVA PARA ELETRODUTO, PVC, ROSCÁVEL, DN 32 MM (1"), PARA CIRCUITOS TERMINAIS, INSTALADA EM FORRO - FORNECIMENTO E INSTALAÇÃO. AF_03/2023 | E68: UN | F68: 55 | G68: 9.73 | I68: =(TRUNC(G68 * K2,2) + G68) -> 11.86 | J68: =TRUNC(F68 * I68,2) -> 652.3 | K68: =J68 / K1 -> 9.070513967e-05
A69: 6.3.5 | B69: 00039128 | C69: SINAPI | D69: ABRACADEIRA EM ACO PARA AMARRACAO DE ELETRODUTOS, TIPO D, COM 3/4" E CUNHA DE FIXACAO | E69: UN | F69: 450 | G69: 2.97 | H69: 0.1441 | I69: =(TRUNC(G69 * H69,2) + G69) -> 3.39 | J69: 1525.5 | K69: =J69 / K1 -> 0.0002121273809
A70: 6.3.6 | B70: 8684 | C70: ORSE | D70: Fornecimento e instalação de eletrocalha perfurada 100 x 100 x 3000 mm (ref. mopa ou similar) | E70: un | F70: 140 | G70: 102.48 | I70: =(TRUNC(G70 * K2,2) + G70) -> 124.92 | J70: 17488.8 | K70: =J70 / K1 -> 0.002431893372
A71: 6.3.7 | B71: 12523 | C71: ORSE | D71: Tampa de encaixe 100 X 3000 mm, zincada, para eletrocalha metálica (ref.: mopa ou similar) | E71: m | F71: 450 | G71: 14.7 | I71: =(TRUNC(G71 * K2,2) + G71) -> 17.91 | J71: 8059.5 | K71: =J71 / K1 -> 0.001120708375
A72: 6.3.8 | B72: 12486 | C72: ORSE | D72: Terminal 100 x 100 mm, galvanizado à fogo, para eletrocalha metalica (ref. Mopa ou similar) | E72: un | F72: 4 | G72: 25.94 | I72: =(TRUNC(G72 * K2,2) + G72) -> 31.62 | J72: 126.48 | K72: =J72 / K1 -> 1.75875917e-05
A73: 6.3.9 | B73: 11289 | C73: ORSE | D73: Curva vertical 200 x 100 mm para eletrocalha metálica, com ângulo 90° (ref.: mopa ou similar) | E73: un | F73: 8 | G73: 118.36 | I73: =(TRUNC(G73 * K2,2) + G73) -> 144.28 | J73: 1154.24 | K73: =J73 / K1 -> 0.0001605020702
A74: 6.3.10 | B74: 3638 | C74: ORSE | D74: Suporte vertical 100 x 100 mm para fixação de eletrocalha metálica ( ref.: Mopa ou similar) | E74: un | F74: 7 | G74: 5.89 | H74: 0.1441 | I74: =(TRUNC(G74 * H74,2) + G74) -> 6.73 | J74: 47.11 | K74: =J74 / K1 -> 6.550849502e-06
A75: 6.3.11 | B75: 11848 | C75: ORSE | D75: Emenda interna 100 x 100 mm com base lisa perfurada para eletrocalha metálica(ref. Mopa ou similar) | E75: un | F75: 130 | G75: 11.7 | I75: =(TRUNC(G75 * K2,2) + G75) -> 14.26 | J75: 1853.8 | K75: =J75 / K1 -> 0.0002577789176
A76: 6.3.12 | B76: 9519 | C76: ORSE | D76: Tala plana perfurada 100mm para eletrocalha metálica (ref.: mopa ou similar) - Rev 01 | E76: un | F76: 100 | G76: 8.78 | I76: =(TRUNC(G76 * K2,2) + G76) -> 10.7 | J76: 1070 | K76: =J76 / K1 -> 0.0001487881334
A77: 6.3.13 | B77: 12530 | C77: ORSE | D77: Tampa de encaixe 100mm para Tê horizontal, zincada, para eletrocalha metálica(ref.: mopa ou similar) | E77: un | F77: 4 | G77: 15.51 | I77: =(TRUNC(G77 * K2,2) + G77) -> 18.9 | J77: 75.6 | K77: =J77 / K1 -> 1.051250737e-05
A78: 6.3.14 | B78: 4096 | C78: ORSE | D78: Tê horizontal 100 x 100mm para eletrocalha metálica (ref. Mopa ou similar) | E78: un | F78: 4 | G78: 25.7 | H78: 0.1441 | I78: =(TRUNC(G78 * H78,2) + G78) -> 29.4 | J78: 117.6 | K78: =J78 / K1 -> 1.635278925e-05
A79: 6.3.15 | B79: 12527 | C79: ORSE | D79: Tampa de encaixe para curva 90º, vertical, 100mm, zincada, para eletrocalha metálica | E79: un | F79: 8 | G79: 15.37 | I79: =(TRUNC(G79 * K2,2) + G79) -> 18.73 | J79: 149.84 | K79: =J79 / K1 -> 2.083590086e-05
A80: 6.3.16 | B80: 344 | C80: ORSE | D80: Bucha com arruela em liga especial zamak p/eletroduto 25mm, d=1" | E80: un | F80: 50 | G80: 1.6 | I80: =(TRUNC(G80 * K2,2) + G80) -> 1.95 | J80: 97.5 | K80: =J80 / K1 -> 1.355779721e-05
A81: 6.3.17 | B81: 724 | C81: ORSE | D81: Fornecimento e instalação de saída horizontal para eletroduto 1" (ref. vl 33 valemam ou similar) | E81: un | F81: 130 | G81: 9.26 | I81: =(TRUNC(G81 * K2,2) + G81) -> 11.28 | J81: 1466.4 | K81: =J81 / K1 -> 0.00020390927
A82: 6.3.18 | B82: 723 | C82: ORSE | D82: Fornecimento e instalação de saída horizontal para eletroduto 3/4" (ref. vl 33 valemam ou similar) | E82: un | F82: 110 | G82: 5.86 | I82: =(TRUNC(G82 * K2,2) + G82) -> 7.14 | J82: 785.4 | K82: =J82 / K1 -> 0.000109213271
A83: 6.3.19 | B83: 11299 | C83: ORSE | D83: Fornecimento e instalação de mão francesa simples 200 mm | E83: un | F83: 300 | G83: 14.65 | I83: =(TRUNC(G83 * K2,2) + G83) -> 17.85 | J83: 5355 | K83: =J83 / K1 -> 0.0007446359389
A84: 6.3.20 | B84: 00004376 | C84: SINAPI | D84: BUCHA DE NYLON SEM ABA S8 | E84: UN | F84: 600 | G84: 0.25 | H84: 0.1441 | I84: =(TRUNC(G84 * H84,2) + G84) -> 0.28 | J84: 168 | K84: =J84 / K1 -> 2.336112749e-05
A85: 6.3.21 | B85: 00011945 | C85: SINAPI | D85: BUCHA DE NYLON SEM ABA S4 | E85: UN | F85: 550 | G85: 0.07 | H85: 0.1441 | I85: =(TRUNC(G85 * H85,2) + G85) -> 0.08 | J85: 44 | K85: =J85 / K1 -> 6.118390534e-06
A86: 6.3.22 | B86: 12464 | C86: ORSE | D86: Fornecimento e instalação de parafuso cabeça chata rosca soberbal 6,10 x 65mm, com bucha de nylon s10 sem abas | E86: un | F86: 750 | G86: 3.51 | I86: =(TRUNC(G86 * K2,2) + G86) -> 4.27 | J86: 3202.5 | K86: =J86 / K1 -> 0.0004453214929
A87: 6.3.23 | B87: 00007568 | C87: SINAPI | D87: BUCHA DE NYLON SEM ABA S10, COM PARAFUSO DE 6,10 X 65 MM EM ACO ZINCADO COM ROSCA SOBERBA, CABECA CHATA E FENDA PHILLIPS | E87: UN | F87: 570 | G87: 0.79 | H87: 0.1441 | I87: =(TRUNC(G87 * H87,2) + G87) -> 0.9 | J87: 513 | K87: =J87 / K1 -> 7.133487146e-05
A88: 6.3.24 | B88: 00039997 | C88: SINAPI | D88: PORCA ZINCADA, SEXTAVADA, DIAMETRO 1/4" | E88: UN | F88: 1300 | G88: 0.31 | H88: 0.1441 | I88: =(TRUNC(G88 * H88,2) + G88) -> 0.35 | J88: 455 | K88: =J88 / K1 -> 6.32697203e-05
A89: 6.3.25 | B89: 9708 | C89: ORSE | D89: Parafuso fenda em aço inox auto-atarrachante d=4,2 x 32mm, ref:TEL-5333 | E89: un | F89: 600 | G89: 0.53 | H89: 0.1441 | I89: =(TRUNC(G89 * H89,2) + G89) -> 0.6 | J89: 360 | K89: =J89 / K1 -> 5.005955892e-05
A90: 6.3.26 | B90: 12538 | C90: ORSE | D90: Arruela de pressão 1/4" | E90: un | F90: 350 | G90: 0.41 | I90: =(TRUNC(G90 * K2,2) + G90) -> 0.49 | J90: 171.5 | K90: =J90 / K1 -> 2.384781765e-05
A91: 6.3.27 | B91: 9816 | C91: ORSE | D91: Arruela lisa zincada d=1/4" | E91: un | F91: 350 | G91: 0.41 | I91: =(TRUNC(G91 * K2,2) + G91) -> 0.49 | J91: 171.5 | K91: =J91 / K1 -> 2.384781765e-05
A92: 6.3.28 | B92: 101884 | C92: SINAPI | D92: CABO DE COBRE ISOLADO, 10 MM², ANTI-CHAMA 450/750 V, INSTALADO EM ELETROCALHA OU PERFILADO - FORNECIMENTO E INSTALAÇÃO. AF_10/2020 | E92: M | F92: 8000 | G92: 12.98 | I92: =(TRUNC(G92 * K2,2) + G92) -> 15.82 | J92: 126560 | K92: =J92 / K1 -> 0.01759871605
A93: 6.3.29 | B93: 101886 | C93: SINAPI | D93: CABO DE COBRE ISOLADO, 16 MM², ANTI-CHAMA 450/750 V, INSTALADO EM ELETROCALHA OU PERFILADO - FORNECIMENTO E INSTALAÇÃO. AF_10/2020 | E93: M | F93: 40 | G93: 18.58 | I93: =(TRUNC(G93 * K2,2) + G93) -> 22.64 | J93: 905.6 | K93: =J93 / K1 -> 0.0001259276015
A94: 6.3.30 | B94: 92986 | C94: SINAPI | D94: CABO DE COBRE FLEXÍVEL ISOLADO, 35 MM², ANTI-CHAMA 0,6/1,0 KV, PARA REDE ENTERRADA DE DISTRIBUIÇÃO DE ENERGIA ELÉTRICA - FORNECIMENTO E INSTALAÇÃO. AF_12/2021 | E94: M | F94: 160 | G94: 45.26 | I94: =(TRUNC(G94 * K2,2) + G94) -> 55.17 | J94: 8827.2 | K94: =J94 / K1 -> 0.001227460385
A95: 6.4 | D95: PROJETO ELÉTRICO BOX 01 A 100 | F95: 1 | I95: =J96 + J97 + J98 + J99 + J100 + J101 + J102 + J103 + J104 + J105 + J106 + J107 + J108 + J109 + J110 + J111 + J112 + J113 + J114 + J115 + J116 + J117 + J118 + J119 + J120 + J121 + J122 + J123 + J124 + J125 + J126 + J127 + J128 + J129 + J130 + J131 + J132 + J133 + J134 + J135 -> 435811.5 | J95: 435811.5 | K95: =J95 / K1 -> 0.06060147628
A96: 6.4.1 | B96: 9669 | C96: ORSE | D96: Perfilado, pré-zincado a fogo, perfurado 38 x 38 x 6000mm | E96: un | F96: 300 | G96: 84.55 | I96: =(TRUNC(G96 * K2,2) + G96) -> 103.06 | J96: 30918 | K96: =J96 / K1 -> 0.004299281785
A97: 6.4.2 | B97: 9526 | C97: ORSE | D97: Gancho curto para perfilado, ( ref.: Mopa ou similar) | E97: un | F97: 200 | G97: 10.31 | I97: =(TRUNC(G97 * K2,2) + G97) -> 12.56 | J97: 2512 | K97: =J97 / K1 -> 0.0003493044778
A98: 6.4.3 | B98: 723 | C98: ORSE | D98: Fornecimento e instalação de saída horizontal para eletroduto 3/4" (ref. vl 33 valemam ou similar) | E98: un | F98: 600 | G98: 5.86 | I98: =(TRUNC(G98 * K2,2) + G98) -> 7.14 | J98: 4284 | K98: =J98 / K1 -> 0.0005957087511
A99: 6.4.4 | B99: 724 | C99: ORSE | D99: Fornecimento e instalação de saída horizontal para eletroduto 1" (ref. vl 33 valemam ou similar) | E99: un | F99: 100 | G99: 9.26 | I99: =(TRUNC(G99 * K2,2) + G99) -> 11.28 | J99: 1128 | K99: =J99 / K1 -> 0.0001568532846
A100: 6.4.5 | B100: 9666 | C100: ORSE | D100: Emenda externa, para perfilado tipo "I", 38 x 38 mm, ref. CKP 116 ou similar | E100: un | F100: 200 | G100: 10.37 | I100: =(TRUNC(G100 * K2,2) + G100) -> 12.64 | J100: 2528 | K100: =J100 / K1 -> 0.0003515293471
A101: 6.4.6 | B101: 3630 | C101: ORSE | D101: Junção interna tipo "L" para perfilado, ref. Mopa ou similar | E101: un | F101: 400 | G101: 5.57 | H101: 0.1441 | I101: =(TRUNC(G101 * H101,2) + G101) -> 6.37 | J101: 2548 | K101: =J101 / K1 -> 0.0003543104337
A102: 6.4.7 | B102: 12500 | C102: ORSE | D102: Cantoneira "ZZ" para fixação de perfilado, ref. Mopa ou similar | E102: un | F102: 1800 | G102: 7.03 | I102: =(TRUNC(G102 * K2,2) + G102) -> 8.56 | J102: 15408 | K102: =J102 / K1 -> 0.002142549122
A103: 6.4.8 | B103: 9667 | C103: ORSE | D103: Emenda externa, para perfilado tipo "X", 38 x 38 mm, ref. CKP 119 ou similar | E103: un | F103: 300 | G103: 11.18 | I103: =(TRUNC(G103 * K2,2) + G103) -> 13.62 | J103: 4086 | K103: =J103 / K1 -> 0.0005681759937
A104: 6.4.9 | B104: 91953 | C104: SINAPI | D104: INTERRUPTOR SIMPLES (1 MÓDULO), 10A/250V, INCLUINDO SUPORTE E PLACA - FORNECIMENTO E INSTALAÇÃO. AF_03/2023 | E104: UN | F104: 100 | G104: 29.84 | I104: =(TRUNC(G104 * K2,2) + G104) -> 36.37 | J104: 3637 | K104: =J104 / K1 -> 0.0005057405994
A105: 6.4.10 | B105: 91996 | C105: SINAPI | D105: TOMADA MÉDIA DE EMBUTIR (1 MÓDULO), 2P+T 10 A, INCLUINDO SUPORTE E PLACA - FORNECIMENTO E INSTALAÇÃO. AF_03/2023 | E105: UN | F105: 700 | G105: 35.04 | I105: =(TRUNC(G105 * K2,2) + G105) -> 42.71 | J105: 29897 | K105: =J105 / K1 -> 0.004157307314
A106: 6.4.11 | B106: 91997 | C106: SINAPI | D106: TOMADA MÉDIA DE EMBUTIR (1 MÓDULO), 2P+T 20 A, INCLUINDO SUPORTE E PLACA - FORNECIMENTO E INSTALAÇÃO. AF_03/2023 | E106: UN | F106: 100 | G106: 37.38 | I106: =(TRUNC(G106 * K2,2) + G106) -> 45.56 | J106: 4556 | K106: =J106 / K1 -> 0.000633531529
A107: 6.4.12 | B107: 91940 | C107: SINAPI | D107: CAIXA RETANGULAR 4" X 2" MÉDIA (1,30 M DO PISO), PVC, INSTALADA EM PAREDE - FORNECIMENTO E INSTALAÇÃO. AF_03/2023 | E107: UN | F107: 800 | G107: 17.71 | I107: =(TRUNC(G107 * K2,2) + G107) -> 21.58 | J107: 17264 | K107: =J107 / K1 -> 0.002400633959
A108: 6.4.13 | B108: 714 | C108: ORSE | D108: Fornecimento e instalação de espelho para caixa vertical 4" x 2" com 02 saídas rj-45 (krone ou similar) | E108: un | F108: 100 | G108: 5.95 | I108: =(TRUNC(G108 * K2,2) + G108) -> 7.25 | J108: 725 | K108: =J108 / K1 -> 0.0001008143895
A109: 6.4.14 | B109: 715 | C109: ORSE | D109: Fornecimento e instalação de espelho para caixa 4" x 2" com 01 saída rj-45 | E109: un | F109: 700 | G109: 5.25 | I109: =(TRUNC(G109 * K2,2) + G109) -> 6.39 | J109: 4473 | K109: =J109 / K1 -> 0.0006219900195
A110: 6.4.15 | B110: 13176 | C110: ORSE | D110: Luminária sobrepor quadrada Led 24W*, 6500K G- Light ou similar | E110: un | F110: 200 | G110: 70.4 | I110: =(TRUNC(G110 * K2,2) + G110) -> 85.81 | J110: 17162 | K110: =J110 / K1 -> 0.002386450417
A111: 6.4.16 | B111: 91864 | C111: SINAPI | D111: ELETRODUTO RÍGIDO ROSCÁVEL, PVC, DN 32 MM (1"), PARA CIRCUITOS TERMINAIS, INSTALADO EM FORRO - FORNECIMENTO E INSTALAÇÃO. AF_03/2023 | E111: M | F111: 100 | G111: 15.65 | I111: =(TRUNC(G111 * K2,2) + G111) -> 19.07 | J111: 1907 | K111: =J111 / K1 -> 0.0002651766079
A112: 6.4.17 | B112: 91893 | C112: SINAPI | D112: CURVA 90 GRAUS PARA ELETRODUTO, PVC, ROSCÁVEL, DN 32 MM (1"), PARA CIRCUITOS TERMINAIS, INSTALADA EM FORRO - FORNECIMENTO E INSTALAÇÃO. AF_03/2023 | E112: UN | F112: 100 | G112: 16.43 | I112: =(TRUNC(G112 * K2,2) + G112) -> 20.02 | J112: 2002 | K112: =J112 / K1 -> 0.0002783867693
A113: 6.4.18 | B113: 91876 | C113: SINAPI | D113: LUVA PARA ELETRODUTO, PVC, ROSCÁVEL, DN 32 MM (1"), PARA CIRCUITOS TERMINAIS, INSTALADA EM FORRO - FORNECIMENTO E INSTALAÇÃO. AF_03/2023 | E113: UN | F113: 300 | G113: 9.73 | I113: =(TRUNC(G113 * K2,2) + G113) -> 11.86 | J113: 3558 | K113: =J113 / K1 -> 0.0004947553073
A114: 6.4.19 | B114: 91863 | C114: SINAPI | D114: ELETRODUTO RÍGIDO ROSCÁVEL, PVC, DN 25 MM (3/4"), PARA CIRCUITOS TERMINAIS, INSTALADO EM FORRO - FORNECIMENTO E INSTALAÇÃO. AF_03/2023 | E114: M | F114: 1800 | G114: 11.49 | I114: =(TRUNC(G114 * K2,2) + G114) -> 14 | J114: 25200 | K114: =J114 / K1 -> 0.003504169124
A115: 6.4.20 | B115: 91914 | C115: SINAPI | D115: CURVA 90 GRAUS PARA ELETRODUTO, PVC, ROSCÁVEL, DN 25 MM (3/4"), PARA CIRCUITOS TERMINAIS, INSTALADA EM PAREDE - FORNECIMENTO E INSTALAÇÃO. AF_03/2023 | E115: UN | F115: 700 | G115: 17.58 | I115: =(TRUNC(G115 * K2,2) + G115) -> 21.43 | J115: 15001 | K115: =J115 / K1 -> 0.002085954009
A116: 6.4.21 | B116: 91875 | C116: SINAPI | D116: LUVA PARA ELETRODUTO, PVC, ROSCÁVEL, DN 25 MM (3/4"), PARA CIRCUITOS TERMINAIS, INSTALADA EM FORRO - FORNECIMENTO E INSTALAÇÃO. AF_03/2023 | E116: UN | F116: 300 | G116: 8.07 | I116: =(TRUNC(G116 * K2,2) + G116) -> 9.83 | J116: 2949 | K116: =J116 / K1 -> 0.0004100712201
A117: 6.4.22 | B117: 00039138 | C117: SINAPI | D117: ABRACADEIRA EM ACO PARA AMARRACAO DE ELETRODUTOS, TIPO U SIMPLES, COM 3/4" | E117: UN | F117: 1000 | G117: 1.27 | H117: 0.1441 | I117: =(TRUNC(G117 * H117,2) + G117) -> 1.45 | J117: 1450 | K117: =J117 / K1 -> 0.000201628779
A118: 6.4.23 | B118: 12464 | C118: ORSE | D118: Fornecimento e instalação de parafuso cabeça chata rosca soberbal 6,10 x 65mm, com bucha de nylon s10 sem abas | E118: un | F118: 2900 | G118: 3.51 | I118: =(TRUNC(G118 * K2,2) + G118) -> 4.27 | J118: 12383 | K118: =J118 / K1 -> 0.001721909772
A119: 6.4.24 | B119: 00007568 | C119: SINAPI | D119: BUCHA DE NYLON SEM ABA S10, COM PARAFUSO DE 6,10 X 65 MM EM ACO ZINCADO COM ROSCA SOBERBA, CABECA CHATA E FENDA PHILLIPS | E119: UN | F119: 2400 | G119: 0.79 | H119: 0.1441 | I119: =(TRUNC(G119 * H119,2) + G119) -> 0.9 | J119: 2160 | K119: =J119 / K1 -> 0.0003003573535
A120: 6.4.25 | B120: 12538 | C120: ORSE | D120: Arruela de pressão 1/4" | E120: un | F120: 3000 | G120: 0.41 | I120: =(TRUNC(G120 * K2,2) + G120) -> 0.49 | J120: 1470 | K120: =J120 / K1 -> 0.0002044098656
A121: 6.4.26 | B121: 9816 | C121: ORSE | D121: Arruela lisa zincada d=1/4" | E121: un | F121: 3600 | G121: 0.41 | I121: =(TRUNC(G121 * K2,2) + G121) -> 0.49 | J121: 1764 | K121: =J121 / K1 -> 0.0002452918387
A122: 6.4.27 | B122: 00039997 | C122: SINAPI | D122: PORCA ZINCADA, SEXTAVADA, DIAMETRO 1/4" | E122: UN | F122: 3600 | G122: 0.31 | H122: 0.1441 | I122: =(TRUNC(G122 * H122,2) + G122) -> 0.35 | J122: 1260 | K122: =J122 / K1 -> 0.0001752084562
A123: 6.4.28 | B123: 00004375 | C123: SINAPI | D123: BUCHA DE NYLON SEM ABA S6 | E123: UN | F123: 400 | G123: 0.13 | H123: 0.1441 | I123: =(TRUNC(G123 * H123,2) + G123) -> 0.14 | J123: 56 | K123: =J123 / K1 -> 7.787042498e-06
A124: 6.4.29 | B124: 00004376 | C124: SINAPI | D124: BUCHA DE NYLON SEM ABA S8 | E124: UN | F124: 1300 | G124: 0.25 | H124: 0.1441 | I124: =(TRUNC(G124 * H124,2) + G124) -> 0.28 | J124: 364 | K124: =J124 / K1 -> 5.061577624e-05
A125: 6.4.30 | B125: 00011945 | C125: SINAPI | D125: BUCHA DE NYLON SEM ABA S4 | E125: UN | F125: 1200 | G125: 0.07 | H125: 0.1441 | I125: =(TRUNC(G125 * H125,2) + G125) -> 0.08 | J125: 96 | K125: =J125 / K1 -> 1.334921571e-05
A126: 6.4.31 | B126: 00039996 | C126: SINAPI | D126: VERGALHAO ZINCADO ROSCA TOTAL, 1/4" (6,3 MM) | E126: M | F126: 900 | G126: 4.25 | H126: 0.1441 | I126: =(TRUNC(G126 * H126,2) + G126) -> 4.86 | J126: 4374 | K126: =J126 / K1 -> 0.0006082236408
A127: 6.4.32 | B127: 91927 | C127: SINAPI | D127: CABO DE COBRE FLEXÍVEL ISOLADO, 2,5 MM², ANTI-CHAMA 0,6/1,0 KV, PARA CIRCUITOS TERMINAIS - FORNECIMENTO E INSTALAÇÃO. AF_03/2023 | E127: M | F127: 13700 | G127: 5.52 | I127: =(TRUNC(G127 * K2,2) + G127) -> 6.72 | J127: 92064 | K127: =J127 / K1 -> 0.01280189787
A128: 6.4.33 | B128: 91929 | C128: SINAPI | D128: CABO DE COBRE FLEXÍVEL ISOLADO, 4 MM², ANTI-CHAMA 0,6/1,0 KV, PARA CIRCUITOS TERMINAIS - FORNECIMENTO E INSTALAÇÃO. AF_03/2023 | E128: M | F128: 3050 | G128: 8.15 | I128: =(TRUNC(G128 * K2,2) + G128) -> 9.93 | J128: 30286.5 | K128: =J128 / K1 -> 0.004211468975
A129: 6.4.34 | B129: 101875 | C129: SINAPI | D129: QUADRO DE DISTRIBUIÇÃO DE ENERGIA EM CHAPA DE AÇO GALVANIZADO, DE EMBUTIR, COM BARRAMENTO TRIFÁSICO, PARA 12 DISJUNTORES DIN 100A - FORNECIMENTO E INSTALAÇÃO. AF_10/2020 | E129: UN | F129: 100 | G129: 414.24 | I129: =(TRUNC(G129 * K2,2) + G129) -> 504.95 | J129: 50495 | K129: =J129 / K1 -> 0.00702154841
A130: 6.4.35 | B130: 93655 | C130: SINAPI | D130: DISJUNTOR MONOPOLAR TIPO DIN, CORRENTE NOMINAL DE 20A - FORNECIMENTO E INSTALAÇÃO. AF_10/2020 | E130: UN | F130: 200 | G130: 14.67 | I130: =(TRUNC(G130 * K2,2) + G130) -> 17.88 | J130: 3576 | K130: =J130 / K1 -> 0.0004972582852
A131: 6.4.36 | B131: 93654 | C131: SINAPI | D131: DISJUNTOR MONOPOLAR TIPO DIN, CORRENTE NOMINAL DE 16A - FORNECIMENTO E INSTALAÇÃO. AF_10/2020 | E131: UN | F131: 100 | G131: 13.43 | I131: =(TRUNC(G131 * K2,2) + G131) -> 16.37 | J131: 1637 | K131: =J131 / K1 -> 0.0002276319387
A132: 6.4.37 | B132: 93657 | C132: SINAPI | D132: DISJUNTOR MONOPOLAR TIPO DIN, CORRENTE NOMINAL DE 32A - FORNECIMENTO E INSTALAÇÃO. AF_10/2020 | E132: UN | F132: 100 | G132: 16.17 | I132: =(TRUNC(G132 * K2,2) + G132) -> 19.71 | J132: =TRUNC(F132 * I132,2) -> 1971 | K132: =J132 / K1 -> 0.0002740760851
A133: 6.4.38 | B133: 13601 | C133: ORSE | D133: Interruptor diferencial residual - IDR 4P DR 2x40A/30mA | E133: un | F133: 100 | G133: 217.96 | I133: =(TRUNC(G133 * K2,2) + G133) -> 265.69 | J133: 26569 | K133: =J133 / K1 -> 0.003694534502
A134: 6.4.39 | B134: 13159 | C134: ORSE | D134: Barramento neutro e terra para quadro de distribuição | E134: un | F134: 300 | G134: 29.89 | H134: 0.1441 | I134: =(TRUNC(G134 * H134,2) + G134) -> 34.19 | J134: 10257 | K134: =J134 / K1 -> 0.001426280266
A135: 6.4.40 | B135: 13570 | C135: ORSE | D135: Placa advertência 470 x 340mm, metálica ( perigo de morte ) | E135: Un | F135: 100 | G135: 16.05 | H135: 0.1441 | I135: =(TRUNC(G135 * H135,2) + G135) -> 18.36 | J135: 1836 | K135: =J135 / K1 -> 0.0002553037505
A136: 6.5 | D136: PROJETO ELÉTRICO CIRCULAÇÃO COMUM E ÁREAS COMUNS | F136: 1 | I136: =J137 + J138 + J139 + J140 + J141 + J142 + J143 + J144 + J145 + J146 + J147 + J148 + J149 + J150 + J151 + J152 + J153 + J154 + J155 + J156 + J157 + J158 + J159 + J160 + J161 + J162 + J163 + J164 + J165 + J166 + J167 + J168 + J169 + J170 + J171 + J172 + J173 + J174 + J175 + J176 + J177 + J178 + J179 -> 272148.09 | J136: 272148.09 | K136: =J136 / K1 -> 0.0378433704
A137: 6.5.1 | B137: 9669 | C137: ORSE | D137: Perfilado, pré-zincado a fogo, perfurado 38 x 38 x 6000mm | E137: un | F137: 600 | G137: 84.55 | I137: =(TRUNC(G137 * K2,2) + G137) -> 103.06 | J137: 61836 | K137: =J137 / K1 -> 0.00859856357
A138: 6.5.2 | B138: 9526 | C138: ORSE | D138: Gancho curto para perfilado, ( ref.: Mopa ou similar) | E138: un | F138: 800 | G138: 10.31 | I138: =(TRUNC(G138 * K2,2) + G138) -> 12.56 | J138: 10048 | K138: =J138 / K1 -> 0.001397217911
A139: 6.5.3 | B139: 723 | C139: ORSE | D139: Fornecimento e instalação de saída horizontal para eletroduto 3/4" (ref. vl 33 valemam ou similar) | E139: un | F139: 50 | G139: 5.86 | I139: =(TRUNC(G139 * K2,2) + G139) -> 7.14 | J139: 357 | K139: =J139 / K1 -> 4.964239593e-05
A140: 6.5.4 | B140: 724 | C140: ORSE | D140: Fornecimento e instalação de saída horizontal para eletroduto 1" (ref. vl 33 valemam ou similar) | E140: un | F140: 100 | G140: 9.26 | I140: =(TRUNC(G140 * K2,2) + G140) -> 11.28 | J140: 1128 | K140: =J140 / K1 -> 0.0001568532846
A141: 6.5.5 | B141: 3630 | C141: ORSE | D141: Junção interna tipo "L" para perfilado, ref. Mopa ou similar | E141: un | F141: 15 | G141: 5.57 | H141: 0.1441 | I141: =(TRUNC(G141 * H141,2) + G141) -> 6.37 | J141: 95.55 | K141: =J141 / K1 -> 1.328664126e-05
A142: 6.5.6 | B142: 12500 | C142: ORSE | D142: Cantoneira "ZZ" para fixação de perfilado, ref. Mopa ou similar | E142: un | F142: 800 | G142: 7.03 | I142: =(TRUNC(G142 * K2,2) + G142) -> 8.56 | J142: 6848 | K142: =J142 / K1 -> 0.0009522440541
A143: 6.5.7 | B143: 9667 | C143: ORSE | D143: Emenda externa, para perfilado tipo "X", 38 x 38 mm, ref. CKP 119 ou similar | E143: un | F143: 300 | G143: 11.18 | I143: =(TRUNC(G143 * K2,2) + G143) -> 13.62 | J143: 4086 | K143: =J143 / K1 -> 0.0005681759937
A144: 6.5.8 | B144: 91863 | C144: SINAPI | D144: ELETRODUTO RÍGIDO ROSCÁVEL, PVC, DN 25 MM (3/4"), PARA CIRCUITOS TERMINAIS, INSTALADO EM FORRO - FORNECIMENTO E INSTALAÇÃO. AF_03/2023 | E144: M | F144: 300 | G144: 11.49 | I144: =(TRUNC(G144 * K2,2) + G144) -> 14 | J144: 4200 | K144: =J144 / K1 -> 0.0005840281874
A145: 6.5.9 | B145: 91914 | C145: SINAPI | D145: CURVA 90 GRAUS PARA ELETRODUTO, PVC, ROSCÁVEL, DN 25 MM (3/4"), PARA CIRCUITOS TERMINAIS, INSTALADA EM PAREDE - FORNECIMENTO E INSTALAÇÃO. AF_03/2023 | E145: UN | F145: 150 | G145: 17.58 | I145: =(TRUNC(G145 * K2,2) + G145) -> 21.43 | J145: 3214.5 | K145: =J145 / K1 -> 0.0004469901448
A146: 6.5.10 | B146: 91875 | C146: SINAPI | D146: LUVA PARA ELETRODUTO, PVC, ROSCÁVEL, DN 25 MM (3/4"), PARA CIRCUITOS TERMINAIS, INSTALADA EM FORRO - FORNECIMENTO E INSTALAÇÃO. AF_03/2023 | E146: UN | F146: 50 | G146: 8.07 | I146: =(TRUNC(G146 * K2,2) + G146) -> 9.83 | J146: 491.5 | K146: =J146 / K1 -> 6.834520335e-05
A147: 6.5.11 | B147: 00039138 | C147: SINAPI | D147: ABRACADEIRA EM ACO PARA AMARRACAO DE ELETRODUTOS, TIPO U SIMPLES, COM 3/4" | E147: UN | F147: 350 | G147: 1.27 | H147: 0.1441 | I147: =(TRUNC(G147 * H147,2) + G147) -> 1.45 | J147: 507.5 | K147: =J147 / K1 -> 7.057007264e-05
A148: 6.5.12 | B148: 9519 | C148: ORSE | D148: Tala plana perfurada 100mm para eletrocalha metálica (ref.: mopa ou similar) - Rev 01 | E148: un | F148: 160 | G148: 8.78 | I148: =(TRUNC(G148 * K2,2) + G148) -> 10.7 | J148: 1712 | K148: =J148 / K1 -> 0.0002380610135
A149: 6.5.13 | B149: 12805 | C149: ORSE | D149: Flange 300x100mm para eletrocalha metálica (ref. Mopa ou similar) | E149: un | F149: 40 | G149: 39.7 | I149: =(TRUNC(G149 * K2,2) + G149) -> 48.39 | J149: 1935.6 | K149: =J149 / K1 -> 0.0002691535618
A150: 6.5.14 | B150: 91953 | C150: SINAPI | D150: INTERRUPTOR SIMPLES (1 MÓDULO), 10A/250V, INCLUINDO SUPORTE E PLACA - FORNECIMENTO E INSTALAÇÃO. AF_03/2023 | E150: UN | F150: 25 | G150: 29.84 | I150: =(TRUNC(G150 * K2,2) + G150) -> 36.37 | J150: 909.25 | K150: =J150 / K1 -> 0.0001264351498
A151: 6.5.15 | B151: 91996 | C151: SINAPI | D151: TOMADA MÉDIA DE EMBUTIR (1 MÓDULO), 2P+T 10 A, INCLUINDO SUPORTE E PLACA - FORNECIMENTO E INSTALAÇÃO. AF_03/2023 | E151: UN | F151: 60 | G151: 35.04 | I151: =(TRUNC(G151 * K2,2) + G151) -> 42.71 | J151: 2562.6 | K151: =J151 / K1 -> 0.0003563406269
A152: 6.5.16 | B152: 91997 | C152: SINAPI | D152: TOMADA MÉDIA DE EMBUTIR (1 MÓDULO), 2P+T 20 A, INCLUINDO SUPORTE E PLACA - FORNECIMENTO E INSTALAÇÃO. AF_03/2023 | E152: UN | F152: 10 | G152: 37.38 | I152: =(TRUNC(G152 * K2,2) + G152) -> 45.56 | J152: 455.6 | K152: =J152 / K1 -> 6.33531529e-05
A153: 6.5.17 | B153: 91940 | C153: SINAPI | D153: CAIXA RETANGULAR 4" X 2" MÉDIA (1,30 M DO PISO), PVC, INSTALADA EM PAREDE - FORNECIMENTO E INSTALAÇÃO. AF_03/2023 | E153: UN | F153: 70 | G153: 17.71 | I153: =(TRUNC(G153 * K2,2) + G153) -> 21.58 | J153: 1510.6 | K153: =J153 / K1 -> 0.0002100554714
A154: 6.5.18 | B154: 714 | C154: ORSE | D154: Fornecimento e instalação de espelho para caixa vertical 4" x 2" com 02 saídas rj-45 (krone ou similar) | E154: un | F154: 51 | G154: 5.95 | I154: =(TRUNC(G154 * K2,2) + G154) -> 7.25 | J154: 369.75 | K154: =J154 / K1 -> 5.141533864e-05
A155: 6.5.19 | B155: 715 | C155: ORSE | D155: Fornecimento e instalação de espelho para caixa 4" x 2" com 01 saída rj-45 | E155: un | F155: 19 | G155: 5.25 | I155: =(TRUNC(G155 * K2,2) + G155) -> 6.39 | J155: 121.41 | K155: =J155 / K1 -> 1.688258624e-05
A156: 6.5.20 | B156: 97597 | C156: SINAPI | D156: SENSOR DE PRESENÇA COM FOTOCÉLULA, FIXAÇÃO EM TETO - FORNECIMENTO E INSTALAÇÃO. AF_09/2024 | E156: UN | F156: 6 | G156: 76.02 | I156: =(TRUNC(G156 * K2,2) + G156) -> 92.66 | J156: 555.96 | K156: =J156 / K1 -> 7.730864549e-05
A157: 6.5.21 | B157: 13176 | C157: ORSE | D157: Luminária sobrepor quadrada Led 24W*, 6500K G- Light ou similar | E157: un | F157: 6 | G157: 70.4 | I157: =(TRUNC(G157 * K2,2) + G157) -> 85.81 | J157: 514.86 | K157: =J157 / K1 -> 7.159351251e-05
A158: 6.5.22 | B158: 13157 | C158: ORSE | D158: Luminária plafon (sobrepor) 22,5 x 22,5 - 18 W - 6000K - G- Light ou similar | E158: un | F158: 37 | G158: 56.6 | I158: =(TRUNC(G158 * K2,2) + G158) -> 68.99 | J158: 2552.63 | K158: =J158 / K1 -> 0.0003549542552
A159: 6.5.23 | B159: 12464 | C159: ORSE | D159: Fornecimento e instalação de parafuso cabeça chata rosca soberbal 6,10 x 65mm, com bucha de nylon s10 sem abas | E159: un | F159: 800 | G159: 3.51 | I159: =(TRUNC(G159 * K2,2) + G159) -> 4.27 | J159: 3416 | K159: =J159 / K1 -> 0.0004750095924
A160: 6.5.24 | B160: 00007568 | C160: SINAPI | D160: BUCHA DE NYLON SEM ABA S10, COM PARAFUSO DE 6,10 X 65 MM EM ACO ZINCADO COM ROSCA SOBERBA, CABECA CHATA E FENDA PHILLIPS | E160: UN | F160: 600 | G160: 0.79 | H160: 0.1441 | I160: =(TRUNC(G160 * H160,2) + G160) -> 0.9 | J160: 540 | K160: =J160 / K1 -> 7.508933837e-05
A161: 6.5.25 | B161: 9708 | C161: ORSE | D161: Parafuso fenda em aço inox auto-atarrachante d=4,2 x 32mm, ref:TEL-5333 | E161: un | F161: 170 | G161: 0.53 | H161: 0.1441 | I161: =(TRUNC(G161 * H161,2) + G161) -> 0.6 | J161: 102 | K161: =J161 / K1 -> 1.418354169e-05
A162: 6.5.26 | B162: 00004356 | C162: SINAPI | D162: PARAFUSO DE ACO ZINCADO COM ROSCA SOBERBA, CABECA CHATA E FENDA SIMPLES, DIAMETRO 4,8 MM, COMPRIMENTO 45 MM | E162: UN | F162: 100 | G162: 0.26 | H162: 0.1441 | I162: =(TRUNC(G162 * H162,2) + G162) -> 0.29 | J162: 29 | K162: =J162 / K1 -> 4.032575579e-06
A163: 6.5.27 | B163: 12538 | C163: ORSE | D163: Arruela de pressão 1/4" | E163: un | F163: 800 | G163: 0.41 | I163: =(TRUNC(G163 * K2,2) + G163) -> 0.49 | J163: 392 | K163: =J163 / K1 -> 5.450929749e-05
A164: 6.5.28 | B164: 9816 | C164: ORSE | D164: Arruela lisa zincada d=1/4" | E164: un | F164: 1600 | G164: 0.41 | I164: =(TRUNC(G164 * K2,2) + G164) -> 0.49 | J164: 784 | K164: =J164 / K1 -> 0.000109018595
A165: 6.5.29 | B165: 00039997 | C165: SINAPI | D165: PORCA ZINCADA, SEXTAVADA, DIAMETRO 1/4" | E165: UN | F165: 1600 | G165: 0.31 | H165: 0.1441 | I165: =(TRUNC(G165 * H165,2) + G165) -> 0.35 | J165: 560 | K165: =J165 / K1 -> 7.787042498e-05
A166: 6.5.30 | B166: 00004376 | C166: SINAPI | D166: BUCHA DE NYLON SEM ABA S8 | E166: UN | F166: 400 | G166: 0.25 | H166: 0.1441 | I166: =(TRUNC(G166 * H166,2) + G166) -> 0.28 | J166: 112 | K166: =J166 / K1 -> 1.5574085e-05
A167: 6.5.31 | B167: 00011945 | C167: SINAPI | D167: BUCHA DE NYLON SEM ABA S4 | E167: UN | F167: 200 | G167: 0.07 | H167: 0.1441 | I167: =(TRUNC(G167 * H167,2) + G167) -> 0.08 | J167: 16 | K167: =J167 / K1 -> 2.224869285e-06
A168: 6.5.32 | B168: 00004375 | C168: SINAPI | D168: BUCHA DE NYLON SEM ABA S6 | E168: UN | F168: 100 | G168: 0.13 | H168: 0.1441 | I168: =(TRUNC(G168 * H168,2) + G168) -> 0.14 | J168: 14 | K168: =J168 / K1 -> 1.946760625e-06
A169: 6.5.33 | B169: 00039996 | C169: SINAPI | D169: VERGALHAO ZINCADO ROSCA TOTAL, 1/4" (6,3 MM) | E169: M | F169: 675 | G169: 4.25 | H169: 0.1441 | I169: =(TRUNC(G169 * H169,2) + G169) -> 4.86 | J169: 3280.5 | K169: =J169 / K1 -> 0.0004561677306
A170: 6.5.34 | B170: 91927 | C170: SINAPI | D170: CABO DE COBRE FLEXÍVEL ISOLADO, 2,5 MM², ANTI-CHAMA 0,6/1,0 KV, PARA CIRCUITOS TERMINAIS - FORNECIMENTO E INSTALAÇÃO. AF_03/2023 | E170: M | F170: 11200 | G170: 5.52 | I170: =(TRUNC(G170 * K2,2) + G170) -> 6.72 | J170: 75264 | K170: =J170 / K1 -> 0.01046578512
A171: 6.5.35 | B171: 91933 | C171: SINAPI | D171: CABO DE COBRE FLEXÍVEL ISOLADO, 10 MM², ANTI-CHAMA 0,6/1,0 KV, PARA CIRCUITOS TERMINAIS - FORNECIMENTO E INSTALAÇÃO. AF_03/2023 | E171: M | F171: 300 | G171: 18.48 | I171: =(TRUNC(G171 * K2,2) + G171) -> 22.52 | J171: 6756 | K171: =J171 / K1 -> 0.0009394510557
A172: 6.5.36 | B172: 93655 | C172: SINAPI | D172: DISJUNTOR MONOPOLAR TIPO DIN, CORRENTE NOMINAL DE 20A - FORNECIMENTO E INSTALAÇÃO. AF_10/2020 | E172: UN | F172: 10 | G172: 14.67 | I172: =(TRUNC(G172 * K2,2) + G172) -> 17.88 | J172: 178.8 | K172: =J172 / K1 -> 2.486291426e-05
A173: 6.5.37 | B173: 93654 | C173: SINAPI | D173: DISJUNTOR MONOPOLAR TIPO DIN, CORRENTE NOMINAL DE 16A - FORNECIMENTO E INSTALAÇÃO. AF_10/2020 | E173: UN | F173: 7 | G173: 13.43 | I173: =(TRUNC(G173 * K2,2) + G173) -> 16.37 | J173: 114.59 | K173: =J173 / K1 -> 1.593423571e-05
A174: 6.5.38 | B174: 93672 | C174: SINAPI | D174: DISJUNTOR TRIPOLAR TIPO DIN, CORRENTE NOMINAL DE 40A - FORNECIMENTO E INSTALAÇÃO. AF_10/2020 | E174: UN | F174: 2 | G174: 95.86 | I174: =(TRUNC(G174 * K2,2) + G174) -> 116.85 | J174: 233.7 | K174: =J174 / K1 -> 3.2496997e-05
A175: 6.5.39 | B175: 93668 | C175: SINAPI | D175: DISJUNTOR TRIPOLAR TIPO DIN, CORRENTE NOMINAL DE 16A - FORNECIMENTO E INSTALAÇÃO. AF_10/2020 | E175: UN | F175: 1 | G175: 80.71 | I175: =(TRUNC(G175 * K2,2) + G175) -> 98.38 | J175: 98.38 | K175: =J175 / K1 -> 1.368016502e-05
A176: 6.5.40 | B176: 9688 | C176: ORSE | D176: Disjuntor termomagnético tripolar 125 A com caixa moldada 10 kA | E176: un | F176: 1 | G176: 566.13 | I176: =(TRUNC(G176 * K2,2) + G176) -> 690.11 | J176: 690.11 | K176: =J176 / K1 -> 9.59627839e-05
A177: 6.5.41 | B177: 13603 | C177: ORSE | D177: Interruptor diferencial residual - IDR 2P DR 4x63A/30mA | E177: un | F177: 1 | G177: 205.26 | I177: =(TRUNC(G177 * K2,2) + G177) -> 250.21 | J177: 250.21 | K177: =J177 / K1 -> 3.479278399e-05
A178: 6.5.42 | B178: COMPOSIÇÃO - 149 | C178: Próprio | D178: LUMINÁRIA DO TIPO PENDENTE BOLA 30CM COM LÂMPADA DE LED 50W 4500K | E178: UN | F178: 92 | G178: 614.63 | I178: =(TRUNC(G178 * K2,2) + G178) -> 749.23 | J178: 68929.16 | K178: =J178 / K1 -> 0.009584898184
A179: 6.5.43 | B179: COMPOSIÇÃO - 151 | C179: Próprio | D179: QUADRO DE COMANDO C/ BARRAMENTOS ELÉTRICOS 15X2MM² TRIFÁSICO + N + T EM ALUMÍNIO COR CINZA 80X60X25CM TINTURA ELETROSTÁTICA A PO, COM PLACA DE MONTAGEM COR LARANJA ESPESSURA 1,2MM | E179: UN | F179: 1 | G179: 3589.28 | I179: =(TRUNC(G179 * K2,2) + G179) -> 4375.33 | J179: 4375.33 | K179: =J179 / K1 -> 0.0006084085831
A180: 6.6 | D180: PROJETO ELÉTRICO EXTERNO | F180: 1 | I180: =J181 + J182 + J183 + J184 + J185 + J186 -> 217665.61 | J180: 217665.61 | K180: =J180 / K1 -> 0.03026734563
A181: 6.6.1 | B181: 12915 | C181: ORSE | D181: Caixa de concreto pre moldado para aterramento, com tampa, 40 x 40 x 40, e = 5cm | E181: un | F181: 55 | G181: 98.91 | I181: =(TRUNC(G181 * K2,2) + G181) -> 120.57 | J181: 6631.35 | K181: =J181 / K1 -> 0.0009221179334
A182: 6.6.2 | B182: 12910 | C182: ORSE | D182: Poste decorativo 2 pétalas, em aço galvanizado com difusor em vidro transparente temperado, com 3m/4m, inclusive lâmpada de led 50w | E182: un | F182: 25 | G182: 2718.81 | I182: =(TRUNC(G182 * K2,2) + G182) -> 3314.22 | J182: 82855.5 | K182: =J182 / K1 -> 0.01152141607
A183: 6.6.3 | B183: 12903 | C183: ORSE | D183: Poste decorativo 1 pétalas, em aço galvanizado com difusor em vidro transparente temperado, com 3m/4m, inclusive lâmpada de led 50w | E183: un | F183: 25 | G183: 2672.24 | I183: =(TRUNC(G183 * K2,2) + G183) -> 3257.46 | J183: 81436.5 | K183: =J183 / K1 -> 0.01132409797
A184: 6.6.4 | B184: 91837 | C184: SINAPI | D184: ELETRODUTO FLEXÍVEL CORRUGADO REFORÇADO, PVC, DN 32 MM (1"), PARA CIRCUITOS TERMINAIS, INSTALADO EM FORRO - FORNECIMENTO E INSTALAÇÃO. AF_03/2023_PA | E184: M | F184: 500 | G184: 25.69 | I184: =(TRUNC(G184 * K2,2) + G184) -> 31.31 | J184: 15655 | K184: =J184 / K1 -> 0.002176895541
A185: 6.6.5 | B185: 91929 | C185: SINAPI | D185: CABO DE COBRE FLEXÍVEL ISOLADO, 4 MM², ANTI-CHAMA 0,6/1,0 KV, PARA CIRCUITOS TERMINAIS - FORNECIMENTO E INSTALAÇÃO. AF_03/2023 | E185: M | F185: 2550 | G185: 8.15 | I185: =(TRUNC(G185 * K2,2) + G185) -> 9.93 | J185: 25321.5 | K185: =J185 / K1 -> 0.003521064225
A186: 6.6.6 | B186: 93358 | C186: SINAPI | D186: ESCAVAÇÃO MANUAL DE VALA. AF_09/2024 | E186: m³ | F186: 63 | G186: 75.08 | I186: =(TRUNC(G186 * K2,2) + G186) -> 91.52 | J186: 5765.76 | K186: =J186 / K1 -> 0.0008017538956
A187: 6.7 | D187: PROJETO DE ENTRADA DE ENERGIA - SUBESTAÇÃO | F187: 1 | I187: =J188 + J189 + J190 + J191 + J192 + J193 + J194 + J195 + J196 + J197 + J198 + J199 + J200 + J201 + J202 + J203 + J204 + J205 + J206 + J207 + J208 + J209 + J210 + J211 + J212 + J213 + J214 + J215 + J216 + J217 + J218 + J219 + J220 + J221 + J222 + J223 + J224 + J225 + J226 + J227 + J228 -> 139767.95 | J187: 139767.95 | K187: =J187 / K1 -> 0.01943533869
A188: 6.7.1 | B188: 00005045 | C188: SINAPI | D188: POSTE DE CONCRETO ARMADO DE SECAO CIRCULAR, EXTENSAO DE 11,00 M, RESISTENCIA DE 200 A 300 DAN, TIPO C-14 | E188: UN | F188: 1 | G188: 1431.39 | H188: 0.1441 | I188: =(TRUNC(G188 * H188,2) + G188) -> 1637.65 | J188: 1637.65 | K188: =J188 / K1 -> 0.0002277223241
A189: 6.7.2 | B189: 2889 | C189: ORSE | D189: Fornecimento de isolador de pino de porcelana p/ 15 kv | E189: un | F189: 6 | G189: 10 | I189: =(TRUNC(G189 * K2,2) + G189) -> 12.19 | J189: 73.14 | K189: =J189 / K1 -> 1.017043372e-05
A190: 6.7.3 | B190: 00011273 | C190: SINAPI | D190: ALCA PREFORMADA DE DISTRIBUICAO, EM ACO GALVANIZADO, PARA CONDUTORES DE ALUMINIO AWG 1/0 (CAA 6/1 OU CA 7 FIOS) | E190: UN | F190: 6 | G190: 9.58 | H190: 0.1441 | I190: =(TRUNC(G190 * H190,2) + G190) -> 10.96 | J190: 65.76 | K190: =J190 / K1 -> 9.144212762e-06
A191: 6.7.4 | B191: 2933 | C191: ORSE | D191: Fornecimento de pino p/ isolador 15kv, 294mm | E191: un | F191: 6 | G191: 19.2 | I191: =(TRUNC(G191 * K2,2) + G191) -> 23.4 | J191: 140.4 | K191: =J191 / K1 -> 1.952322798e-05
A192: 6.7.5 | B192: 2915 | C192: ORSE | D192: Fornecimento de parafuso cabeça quadrada 16 x 300mm | E192: un | F192: 12 | G192: 18.28 | I192: =(TRUNC(G192 * K2,2) + G192) -> 22.28 | J192: 267.36 | K192: =J192 / K1 -> 3.717756576e-05
A193: 6.7.6 | B193: 2913 | C193: ORSE | D193: Fornecimento de parafuso cabeça quadrada 16 x 200mm | E193: un | F193: 2 | G193: 9.75 | I193: =(TRUNC(G193 * K2,2) + G193) -> 11.88 | J193: 23.76 | K193: =J193 / K1 -> 3.303930888e-06
A194: 6.7.7 | B194: 222 | C194: ORSE | D194: Arruela quadrada galvanizada 38 mm c/furo 18 mm (11/16") | E194: un | F194: 14 | G194: 1.43 | H194: 0.1441 | I194: =(TRUNC(G194 * H194,2) + G194) -> 1.63 | J194: 22.82 | K194: =J194 / K1 -> 3.173219818e-06
A195: 6.7.8 | B195: 9832 | C195: ORSE | D195: Porca sextavada zincada 1/4" (fornecimento e colocação) | E195: un | F195: 14 | G195: 1.18 | I195: =(TRUNC(G195 * K2,2) + G195) -> 1.43 | J195: 20.02 | K195: =J195 / K1 -> 2.783867693e-06
A196: 6.7.9 | B196: 00004276 | C196: SINAPI | D196: PARA-RAIOS DE DISTRIBUICAO, TENSAO NOMINAL 15 KV, CORRENTE NOMINAL DE DESCARGA 5 KA | E196: UN | F196: 3 | G196: 206.11 | H196: 0.1441 | I196: =(TRUNC(G196 * H196,2) + G196) -> 235.81 | J196: =TRUNC(F196 * I196,2) -> 707.43 | K196: =J196 / K1 -> 9.83712049e-05
A197: 6.7.10 | B197: 00037409 | C197: SINAPI | D197: CABO DE ALUMINIO NU COM ALMA DE ACO, BITOLA 2/0 AWG | E197: KG | F197: 20 | G197: 59.08 | H197: 0.1441 | I197: =(TRUNC(G197 * H197,2) + G197) -> 67.59 | J197: 1351.8 | K197: =J197 / K1 -> 0.0001879736437
A198: 6.7.11 | B198: 10621 | C198: ORSE | D198: Conector terminal a compressão com dois furos em alumínio ou liga de alumínio- CB-79 (2/0) | E198: un | F198: 6 | G198: 4.57 | H198: 0.1441 | I198: =(TRUNC(G198 * H198,2) + G198) -> 5.22 | J198: 31.32 | K198: =J198 / K1 -> 4.355181626e-06
A199: 6.7.12 | B199: 8074 | C199: ORSE | D199: Cabo de cobre nú 16 mm2 (4 awg) - fornecimento | E199: kg | F199: 30 | G199: 124.75 | I199: =(TRUNC(G199 * K2,2) + G199) -> 152.07 | J199: 4562.1 | K199: =J199 / K1 -> 0.0006343797604
A200: 6.7.13 | B200: 00001539 | C200: SINAPI | D200: CONECTOR METALICO TIPO PARAFUSO FENDIDO (SPLIT BOLT), PARA CABOS ATE 16 MM2 | E200: UN | F200: 6 | G200: 8.22 | H200: 0.1441 | I200: =(TRUNC(G200 * H200,2) + G200) -> 9.4 | J200: 56.4 | K200: =J200 / K1 -> 7.84266423e-06
... 315 more rows

Sheet Orçamento Analítico
D1: Obra | E1: Bancos | G1: B.D.I. | I1: Encargos Sociais
D2: OBRAS E SERVIÇOS REMANESCENTES PARA CONSTRUÇÃO DE CENTRO COMERCIAL, LOCALIZADO NO MUNICÍPIO DE SANTANA, NO ESTADO DO AMAPÁ | E2: SINAPI - 09/2024 - Amapá SICRO3 - 07/2024 - Amapá ORSE - 07/2024 - Sergipe | G2: 21,9% | I2: Não Desonerado: embutido nos preços unitário dos insumos de mão de obra, de acordo com as bases.
A3: Planilha Orçamentária Analítica
A4: 1 | D4: ADMINISTRAÇÃO DA OBRA | J4: 357504.5
A5: 1.1 | B5: Código | C5: Banco | D5: Descrição | E5: Tipo | G5: Und | H5: Quant. | I5: Valor Unit | J5: Total
A6: Composição | B6: COMPOSIÇÃO - 146 | C6: Próprio | D6: ADMINISTRAÇÃO LOCAL | E6: SERT - SERVIÇOS TÉCNICOS | G6: UN | H6: 1 | I6: 29327.69 | J6: 29327.69
A7: Composição Auxiliar | B7: 93565 | C7: SINAPI | D7: ENGENHEIRO CIVIL DE OBRA JUNIOR COM ENCARGOS COMPLEMENTARES | E7: SEDI - SERVIÇOS DIVERSOS | G7: MES | H7: 0.6 | I7: 21036.16 | J7: 12621.69
A8: Composição Auxiliar | B8: 93572 | C8: SINAPI | D8: ENCARREGADO GERAL DE OBRAS COM ENCARGOS COMPLEMENTARES | E8: SEDI - SERVIÇOS DIVERSOS | G8: MES | H8: 1 | I8: 4673.12 | J8: 4673.12
A9: Composição Auxiliar | B9: 101460 | C9: SINAPI | D9: VIGIA DIURNO COM ENCARGOS COMPLEMENTARES | E9: SEDI - SERVIÇOS DIVERSOS | G9: MES | H9: 1 | I9: 3327.82 | J9: 3327.82
A10: Composição Auxiliar | B10: 93564 | C10: SINAPI | D10: APONTADOR OU APROPRIADOR COM ENCARGOS COMPLEMENTARES | E10: SEDI - SERVIÇOS DIVERSOS | G10: MES | H10: 1 | I10: 3451.46 | J10: 3451.46
A11: Insumo | B11: E8889 | C11: SICRO3 | D11: Veículo leve - 53 kW (sem motorista) | E11: Consultoria | G11: hora | H11: 220 | I11: 23.88 | J11: 5253.6
E12: MO sem LS => | F12: 22108.4 | G12: LS => | H12: 0 | I12: MO com LS => | J12: 22108.4
E13: Valor do BDI => | F13: 6422.76 | H13: Valor com BDI => | J13: 35750.45
G14: Quant. => | H14: 10,00 | I14: Preço Total => | J14: 357504.5
A16: 2 | D16: SERVIÇOS PRELIMINARES | J16: 12276.31
A17: 2.1 | B17: Código | C17: Banco | D17: Descrição | E17: Tipo | G17: Und | H17: Quant. | I17: Valor Unit | J17: Total
A18: Composição | B18: 103689 | C18: SINAPI | D18: FORNECIMENTO E INSTALAÇÃO DE PLACA DE OBRA COM CHAPA GALVANIZADA E ESTRUTURA DE MADEIRA. AF_03/2022_PS | E18: PAVI - PAVIMENTAÇÃO | G18: m² | H18: 1 | I18: 461.25 | J18: 461.25
A19: Composição Auxiliar | B19: 88316 | C19: SINAPI | D19: SERVENTE COM ENCARGOS COMPLEMENTARES | E19: SEDI - SERVIÇOS DIVERSOS | G19: H | H19: 1.1186 | I19: 18.98 | J19: 21.23
A20: Composição Auxiliar | B20: 88262 | C20: SINAPI | D20: CARPINTEIRO DE FORMAS COM ENCARGOS COMPLEMENTARES | E20: SEDI - SERVIÇOS DIVERSOS | G20: H | H20: 0.3729 | I20: 24.94 | J20: 9.3
A21: Composição Auxiliar | B21: 102234 | C21: SINAPI | D21: PINTURA IMUNIZANTE PARA MADEIRA, 2 DEMÃOS. AF_01/2021 | E21: PINT - PINTURAS | G21: m² | H21: 0.5 | I21: 27.13 | J21: 13.56
A22: Insumo | B22: 00004813 | C22: SINAPI | D22: PLACA DE OBRA (PARA CONSTRUCAO CIVIL) EM CHAPA GALVANIZADA *N. 22*, ADESIVADA, DE *2,4 X 1,2* M (SEM POSTES PARA FIXACAO) | E22: Material | G22: M² | H22: 1 | I22: 400 | J22: 400
A23: Insumo | B23: 00005069 | C23: SINAPI | D23: PREGO DE ACO POLIDO COM CABECA 17 X 27 (2 1/2 X 11) | E23: Material | G23: KG | H23: 0.0132 | I23: 16.59 | J23: 0.21
A24: Insumo | B24: 00005065 | C24: SINAPI | D24: PREGO DE ACO POLIDO COM CABECA 10 X 10 (7/8 X 17) | E24: Material | G24: KG | H24: 0.0113 | I24: 30.96 | J24: 0.34
A25: Insumo | B25: 00004509 | C25: SINAPI | D25: SARRAFO *2,5 X 10* CM EM PINUS, MISTA OU EQUIVALENTE DA REGIAO - BRUTA | E25: Material | G25: M | H25: 3.2083 | I25: 5.18 | J25: 16.61
E26: MO sem LS => | F26: 28.76 | G26: LS => | H26: 0 | I26: MO com LS => | J26: 28.76
E27: Valor do BDI => | F27: 101.01 | H27: Valor com BDI => | J27: 562.26
G28: Quant. => | H28: 6,42 | I28: Preço Total => | J28: 3609.7
A30: 2.2 | B30: Código | C30: Banco | D30: Descrição | E30: Tipo | G30: Und | H30: Quant. | I30: Valor Unit | J30: Total
A31: Composição | B31: 98458 | C31: SINAPI | D31: TAPUME COM COMPENSADO DE MADEIRA. AF_03/2024 | E31: CANT - CANTEIRO DE OBRAS | G31: m² | H31: 1 | I31: 105.28 | J31: 105.28
A32: Composição Auxiliar | B32: 91693 | C32: SINAPI | D32: SERRA CIRCULAR DE BANCADA COM MOTOR ELÉTRICO POTÊNCIA DE 5HP, COM COIFA PARA DISCO 10" - CHI DIURNO. AF_08/2015 | E32: CHOR - CUSTOS HORÁRIOS DE MÁQUINAS E EQUIPAMENTOS | G32: CHI | H32: 0.0264 | I32: 33.83 | J32: 0.89
A33: Composição Auxiliar | B33: 94974 | C33: SINAPI | D33: CONCRETO MAGRO PARA LASTRO, TRAÇO 1:4,5:4,5 (EM MASSA SECA DE CIMENTO/ AREIA MÉDIA/ BRITA 1) - PREPARO MANUAL. AF_05/2021 | E33: FUES - FUNDAÇÕES E ESTRUTURAS | G33: m³ | H33: 0.0061 | I33: 657.73 | J33: 4.01
A34: Composição Auxiliar | B34: 88262 | C34: SINAPI | D34: CARPINTEIRO DE FORMAS COM ENCARGOS COMPLEMENTARES | E34: SEDI - SERVIÇOS DIVERSOS | G34: H | H34: 0.79 | I34: 24.94 | J34: 19.7
A35: Composição Auxiliar | B35: 88239 | C35: SINAPI | D35: AJUDANTE DE CARPINTEIRO COM ENCARGOS COMPLEMENTARES | E35: SEDI - SERVIÇOS DIVERSOS | G35: H | H35: 0.529 | I35: 20.88 | J35: 11.04
A36: Composição Auxiliar | B36: 91692 | C36: SINAPI | D36: SERRA CIRCULAR DE BANCADA COM MOTOR ELÉTRICO POTÊNCIA DE 5HP, COM COIFA PARA DISCO 10" - CHP DIURNO. AF_08/2015 | E36: CHOR - CUSTOS HORÁRIOS DE MÁQUINAS E EQUIPAMENTOS | G36: CHP | H36: 0.0066 | I36: 35.12 | J36: 0.23
A37: Insumo | B37: 00004491 | C37: SINAPI | D37: PONTALETE *7,5 X 7,5* CM EM PINUS, MISTA OU EQUIVALENTE DA REGIAO - BRUTA | E37: Material | G37: M | H37: 1.2273 | I37: 10.22 | J37: 12.54
A38: Insumo | B38: 00005061 | C38: SINAPI | D38: PREGO DE ACO POLIDO COM CABECA 18 X 27 (2 1/2 X 10) | E38: Material | G38: KG | H38: 0.068 | I38: 16 | J38: 1.08
A39: Insumo | B39: 00006194 | C39: SINAPI | D39: TABUA *2,5 X 15 CM EM PINUS, MISTA OU EQUIVALENTE DA REGIAO - BRUTA | E39: Material | G39: M | H39: 2 | I39: 7.29 | J39: 14.58
A40: Insumo | B40: 00043681 | C40: SINAPI | D40: CHAPA/PAINEL DE MADEIRA COMPENSADA RESINADA (MADEIRITE RESINADO ROSA) PARA FORMA DE CONCRETO, DE 2200 X 1100 MM, E = 8 A 12 MM | E40: Material | G40: m² | H40: 1.050038 | I40: 39.25 | J40: 41.21
E41: MO sem LS => | F41: 26.63 | G41: LS => | H41: 0 | I41: MO com LS => | J41: 26.63
E42: Valor do BDI => | F42: 23.05 | H42: Valor com BDI => | J42: 128.33
G43: Quant. => | H43: 22,00 | I43: Preço Total => | J43: 2823.26
A45: 2.3 | B45: Código | C45: Banco | D45: Descrição | E45: Tipo | G45: Und | H45: Quant. | I45: Valor Unit | J45: Total
A46: Composição | B46: 11519 | C46: ORSE | D46: Câmera Hdcvi speed dome Vhd 3020 sd, da Intelbrás ou similar | E46: Diversos | G46: un | H46: 1 | I46: 3994.25 | J46: 3994.25
B47: Código | C47: Banco | D47: Descrição | E47: Tipo | G47: Und | H47: Quant. | I47: Valor Unit | J47: Total
A48: Insumo | B48: 6698 | C48: ORSE | D48: Técnico em informática - 40h - Rev 02 | E48: Mão de Obra | G48: h | H48: 8 | I48: 24,14 | J48: 193,15
A49: Insumo | B49: 12452 | C49: ORSE | D49: Câmera Hdcvi speed dome Vhd 3020 sd, da Intelbrás ou similar | E49: Material | G49: un | H49: 1 | I49: 3.801,10 | J49: 3.801,10
A50: Detalhamento de Cálculo ORSE
B51: Código | C51: Banco | D51: Descrição | E51: Tipo | G51: Und | H51: Quant. | I51: Valor Unit | J51: Total
A52: Insumo | B52: 6698 | C52: ORSE | D52: Técnico em informática - 40h - Rev 02 | E52: Mão de Obra | G52: h | H52: 8 | I52: 24,14 | J52: 193,15
A53: Insumo | B53: 12452 | C53: ORSE | D53: Câmera Hdcvi speed dome Vhd 3020 sd, da Intelbrás ou similar | E53: Material | G53: un | H53: 1 | I53: 3.801,10 | J53: 3.801,10
E54: MO sem LS => | F54: 193.15 | G54: LS => | H54: 0 | I54: MO com LS => | J54: 193.15
E55: Valor do BDI => | F55: 874.74 | H55: Valor com BDI => | J55: 4868.99
G56: Quant. => | H56: 1,00 | I56: Preço Total => | J56: 4868.99
A58: 2.4 | B58: Código | C58: Banco | D58: Descrição | E58: Tipo | G58: Und | H58: Quant. | I58: Valor Unit | J58: Total
A59: Composição | B59: 8646 | C59: ORSE | D59: Poste galvanizado com 5m para instalação de câmera de segurança p/penitenciária | E59: Diversos | G59: un | H59: 1 | I59: 407.42 | J59: 407.42
B60: Código | C60: Banco | D60: Descrição | E60: Tipo | G60: Und | H60: Quant. | I60: Valor Unit | J60: Total
A61: Composição | B61: 95 | C61: ORSE | D61: Concreto simples fabricado na obra, fck=13,5 mpa, lançado e adensado | E61: Alvenarias de Pedra e Concretos para Fundações | G61: m³ | H61: 0.28 | I61: 553,39 | J61: 154,94
A62: Composição | B62: 2306 | C62: ORSE | D62: Pintura de acabamento com aplicação de 02 demãos de esmalte sintético sobre superfícies metálicas - R1 | E62: Esmalte Sintético / Óleo | G62: m² | H62: 1.14 | I62: 20,98 | J62: 23,91
A63: Composição | B63: 10550 | C63: ORSE | D63: Encargos Complementares - Pedreiro | E63: Provisórios | G63: h | H63: 1.5 | I63: 3,67 | J63: 5,50
A64: Composição | B64: 10549 | C64: ORSE | D64: Encargos Complementares - Servente | E64: Provisórios | G64: h | H64: 1.5 | I64: 3,80 | J64: 5,70
A65: Insumo | B65: 2315 | C65: ORSE | D65: Tubo de aço galvanizado leve c/ costura c/ rosca BSP Ø = 26,9mm ( 3/4"), e = 2,25mm, l = 6000mm NBR 5580 | E65: Material | G65: m | H65: 6 | I65: 23,79 | J65: 142,74
A66: Insumo | B66: 00004750/SINAPI | C66: ORSE | D66: Pedreiro (horista) | E66: Mão de Obra | G66: h | H66: 1.5 | I66: 19,13 | J66: 28,69
A67: Insumo | B67: 00006111/SINAPI | C67: ORSE | D67: Servente de obras (horista) | E67: Mão de Obra | G67: h | H67: 1.5 | I67: 13,65 | J67: 20,46
A68: Composição | B68: 4078 | C68: ORSE | D68: Pintura de proteção sobre superfícies metálicas com aplicação de 01 demão de tinta Super Galvite (Sherwin Williams ou similar) - R2 | E68: Esmalte Sintético / Óleo | G68: m² | H68: 1.14 | I68: 9,08 | J68: 10,35
A69: Composição | B69: 2497 | C69: ORSE | D69: Escavação manual de vala ou cava em material de 1ª categoria, profundidade até 1,50m | E69: Escavação Manual em Área Urbana | G69: m³ | H69: 0.28 | I69: 52,50 | J69: 14,70
A70: Detalhamento de Cálculo ORSE
B71: Código | C71: Banco | D71: Descrição | E71: Tipo | G71: Und | H71: Quant. | I71: Valor Unit | J71: Total
A72: Insumo | B72: 3204 | C72: ORSE | D72: Tinta para aderência e proteção de superfícies galvanizadas, Super Galvite, marca Sherwin Williams ou similar | E72: Material | G72: l | H72: 0.1026 | I72: 23,50 | J72: 2,41
A73: Insumo | B73: 158 | C73: ORSE | D73: Almoço (Participação do empregador) | E73: Material | G73: un | H73: 0.73821288 | I73: 14,00 | J73: 10,33
A74: Insumo | B74: 11243 | C74: ORSE | D74: Martelo sem unha | E74: Material | G74: un | H74: 0.00016008 | I74: 28,00 | J74: 0,00
A75: Insumo | B75: 10599 | C75: ORSE | D75: Protetor solar fps 30 com 120ml | E75: Material | G75: un | H75: 0.01305288 | I75: 18,00 | J75: 0,23
A76: Insumo | B76: 4729 | C76: ORSE | D76: Marreta 1 kg com cabo | E76: Material | G76: un | H76: 0.00048156 | I76: 37,80 | J76: 0,01
A77: Insumo | B77: 00004750/SINAPI | C77: ORSE | D77: Pedreiro (horista) | E77: Mão de Obra | G77: h | H77: 1.6008 | I77: 19,13 | J77: 30,62
A78: Insumo | B78: 11251 | C78: ORSE | D78: Pincel de seda 2" | E78: Material | G78: un | H78: 0.003078 | I78: 26,90 | J78: 0,08
A79: Insumo | B79: 11252 | C79: ORSE | D79: Escada de aluminio de abrir com 7 degraus | E79: Material | G79: un | H79: 6.84e-05 | I79: 269,00 | J79: 0,01
A80: Insumo | B80: 10761 | C80: ORSE | D80: Refeição - café da manhã ( café com leite e dois pães com manteiga) | E80: Serviços | G80: un | H80: 0.73821288 | I80: 5,00 | J80: 3,69
A81: Insumo | B81: 10362 | C81: ORSE | D81: Seguro de vida e acidente em grupo | E81: Serviços | G81: un | H81: 0.0326322 | I81: 12,54 | J81: 0,40
A82: Insumo | B82: 4725 | C82: ORSE | D82: Espátula | E82: Material | G82: un | H82: 0.0002736 | I82: 16,82 | J82: 0,00
A83: Insumo | B83: 10492 | C83: ORSE | D83: Cesta Básica | E83: Material | G83: un | H83: 0.0326322 | I83: 190,00 | J83: 6,20
A84: Insumo | B84: 11248 | C84: ORSE | D84: Furadeira e Parafusadeira eletrica Bosch ou Similar profissional | E84: Equipamento | G84: un | H84: 1.008e-05 | I84: 246,00 | J84: 0,00
A85: Insumo | B85: 10583 | C85: ORSE | D85: Trincha 3" | E85: Material | G85: un | H85: 0.003078 | I85: 11,98 | J85: 0,03
A86: Insumo | B86: 10282 | C86: ORSE | D86: Regua de alumínio c/ 2,00m (para pedreiro) | E86: Material | G86: un | H86: 0.00032016 | I86: 45,00 | J86: 0,01
A87: Insumo | B87: 00002711/SINAPI | C87: ORSE | D87: Carrinho de mao de aco capacidade 50 a 60 l, pneu com camara | E87: Material | G87: un | H87: 0.00096312 | I87: 166,00 | J87: 0,15
A88: Insumo | B88: 00012895/SINAPI | C88: ORSE | D88: Capacete de seguranca aba frontal com suspensao de polietileno, sem jugular (classe b) | E88: Material | G88: un | H88: 0.00435096 | I88: 13,90 | J88: 0,06
A89: Insumo | B89: 11249 | C89: ORSE | D89: Serra circular eletrica portatil | E89: Equipamento | G89: un | H89: 1.008e-05 | I89: 617,95 | J89: 0,00
A90: Insumo | B90: 10586 | C90: ORSE | D90: Torquesa | E90: Material | G90: un | H90: 1.008e-05 | I90: 39,00 | J90: 0,00
A91: Insumo | B91: 10788 | C91: ORSE | D91: Pá quadrada | E91: Material | G91: un | H91: 0.00096312 | I91: 36,90 | J91: 0,03
A92: Insumo | B92: 00012892/SINAPI | C92: ORSE | D92: Luva raspa de couro, cano curto (punho *7* cm) | E92: Material | G92: par | H92: 0.01667868 | I92: 12,51 | J92: 0,20
A93: Insumo | B93: 00004721/SINAPI | C93: ORSE | D93: Pedra britada n. 1 (9,5 a 19 mm) posto pedreira/fornecedor, sem frete | E93: Material | G93: m³ | H93: 0.05852 | I93: 119,72 | J93: 7,00
A94: Insumo | B94: 2378 | C94: ORSE | D94: Vale transporte | E94: Material | G94: un | H94: 0.61246236 | I94: 4,50 | J94: 2,75
A95: Insumo | B95: 2226 | C95: ORSE | D95: Tinta esmalte sintético (coralit ou similar) | E95: Material | G95: l | H95: 0.2052 | I95: 41,64 | J95: 8,54
A96: Insumo | B96: 10596 | C96: ORSE | D96: Protetor auricular | E96: Material | G96: un | H96: 0.0326322 | I96: 4,90 | J96: 0,15
A97: Insumo | B97: 1651 | C97: ORSE | D97: Óculos branco proteção | E97: Material | G97: pr | H97: 0.0057912 | I97: 6,70 | J97: 0,03
A98: Insumo | B98: 941 | C98: ORSE | D98: Fardamento com mangas curta | E98: Material | G98: un | H98: 0.0108774 | I98: 193,41 | J98: 2,10
A99: Insumo | B99: 00006111/SINAPI | C99: ORSE | D99: Servente de obras (horista) | E99: Mão de Obra | G99: h | H99: 4.8156 | I99: 13,65 | J99: 65,70
A100: Insumo | B100: 11246 | C100: ORSE | D100: Escala métrica de bambú | E100: Material | G100: Un | H100: 0.00112056 | I100: 10,22 | J100: 0,01
A101: Insumo | B101: 10577 | C101: ORSE | D101: Serrote 40cm | E101: Material | G101: un | H101: 1.008e-05 | I101: 29,90 | J101: 0,00
A102: Insumo | B102: 00004783/SINAPI | C102: ORSE | D102: Pintor (horista) | E102: Mão de Obra | G102: h | H102: 0.684 | I102: 19,13 | J102: 13,08
A103: Insumo | B103: 00000367/SINAPI | C103: ORSE | D103: Areia grossa - posto jazida/fornecedor (retirado na jazida, sem transporte) | E103: Material | G103: m³ | H103: 0.26404 | I103: 111,43 | J103: 29,42
A104: Insumo | B104: 00000378/SINAPI | C104: ORSE | D104: Armador (horista) | E104: Mão de Obra | G104: h | H104: 0.0504 | I104: 19,13 | J104: 0,96
A105: Insumo | B105: 00004718/SINAPI | C105: ORSE | D105: Pedra britada n. 2 (19 a 38 mm) posto pedreira/fornecedor, sem frete | E105: Material | G105: m³ | H105: 0.17556 | I105: 120,35 | J105: 21,12
A106: Insumo | B106: 11265 | C106: ORSE | D106: Martelo de borracha com cabo | E106: Material | G106: un | H106: 0.00064032 | I106: 18,75 | J106: 0,01
A107: Insumo | B107: 10585 | C107: ORSE | D107: Arco de serra | E107: Material | G107: un | H107: 1.008e-05 | I107: 19,90 | J107: 0,00
A108: Insumo | B108: 4722 | C108: ORSE | D108: Colher de pedreiro | E108: Material | G108: un | H108: 0.00064032 | I108: 18,80 | J108: 0,01
A109: Insumo | B109: 10790 | C109: ORSE | D109: Prumo de face | E109: Material | G109: un | H109: 0.00016008 | I109: 25,95 | J109: 0,00
A110: Insumo | B110: 4174 | C110: ORSE | D110: Desempenadeira de aço lisa, cabo madeira, ref:143, Atlas ou similar | E110: Material | G110: un | H110: 0.0011424 | I110: 12,00 | J110: 0,01
A111: Insumo | B111: 2315 | C111: ORSE | D111: Tubo de aço galvanizado leve c/ costura c/ rosca BSP Ø = 26,9mm ( 3/4"), e = 2,25mm, l = 6000mm NBR 5580 | E111: Material | G111: m | H111: 6 | I111: 23,79 | J111: 142,74
A112: Insumo | B112: 11244 | C112: ORSE | D112: Martelo com unha | E112: Material | G112: un | H112: 2.016e-05 | I112: 48,95 | J112: 0,00
A113: Insumo | B113: 00001379/SINAPI | C113: ORSE | D113: Cimento portland composto cp ii-32 | E113: Material | G113: kg | H113: 71.4 | I113: 0,76 | J113: 54,26
A114: Insumo | B114: 11245 | C114: ORSE | D114: Desempoladeira de madeira 12x22 | E114: Material | G114: un | H114: 0.00112056 | I114: 11,60 | J114: 0,01
A115: Insumo | B115: 00003768/SINAPI | C115: ORSE | D115: Lixa em folha para ferro, numero 150 | E115: Material | G115: un | H115: 0.627 | I115: 2,84 | J115: 1,78
A116: Insumo | B116: 10578 | C116: ORSE | D116: Formão grande | E116: Material | G116: un | H116: 2.016e-05 | I116: 15,15 | J116: 0,00
A117: Insumo | B117: 11250 | C117: ORSE | D117: Rolo lã de carneiro 20cm | E117: Material | G117: un | H117: 0.0015732 | I117: 17,50 | J117: 0,02
A118: Insumo | B118: 00012893/SINAPI | C118: ORSE | D118: Bota de seguranca com biqueira de aco e colarinho acolchoado | E118: Material | G118: par | H118: 0.0057912 | I118: 66,72 | J118: 0,38
A119: Insumo | B119: 10579 | C119: ORSE | D119: Chave de fenda chata 30 cm | E119: Material | G119: un | H119: 2.016e-05 | I119: 26,89 | J119: 0,00
A120: Insumo | B120: 11264 | C120: ORSE | D120: Marreta de 1/2 kg com cabo | E120: Material | G120: un | H120: 0.00032016 | I120: 13,52 | J120: 0,00
A121: Insumo | B121: 00012894/SINAPI | C121: ORSE | D121: Capa para chuva em pvc com forro de poliester, com capuz (amarela ou azul) | E121: Material | G121: un | H121: 0.00145032 | I121: 18,07 | J121: 0,02
A122: Insumo | B122: 10517 | C122: ORSE | D122: Exames admissionais/demissionais (checkup) | E122: Serviços | G122: cj | H122: 0.00290064 | I122: 300,00 | J122: 0,87
A123: Insumo | B123: 00001213/SINAPI | C123: ORSE | D123: Carpinteiro de formas ou oficial (horista) | E123: Mão de Obra | G123: h | H123: 0.1008 | I123: 19,13 | J123: 1,92
A124: Insumo | B124: 11247 | C124: ORSE | D124: Serra mármore | E124: Material | G124: un | H124: 0.00016008 | I124: 327,80 | J124: 0,05
A125: Insumo | B125: 4728 | C125: ORSE | D125: Talhadeira chata 10" | E125: Material | G125: un | H125: 0.00144468 | I125: 18,58 | J125: 0,02
A126: Insumo | B126: 10789 | C126: ORSE | D126: Nível de bolha de madeira | E126: Material | G126: un | H126: 0.00032016 | I126: 15,40 | J126: 0,00
E127: MO sem LS => | F127: 112.28 | G127: LS => | H127: 0 | I127: MO com LS => | J127: 112.28
E128: Valor do BDI => | F128: 89.22 | H128: Valor com BDI => | J128: 496.64
G129: Quant. => | H129: 1,00 | I129: Preço Total => | J129: 496.64
A131: 2.5 | B131: Código | C131: Banco | D131: Descrição | E131: Tipo | G131: Und | H131: Quant. | I131: Valor Unit | J131: Total
A132: Composição | B132: 95636 | C132: SINAPI | D132: KIT CAVALETE PARA MEDIÇÃO DE ÁGUA - ENTRADA PRINCIPAL, EM AÇO GALVANIZADO DN 25 MM (1") - FORNECIMENTO E INSTALAÇÃO (EXCLUSIVE HIDRÔMETRO). AF_03/2024 | E132: INHI - INSTALAÇÕES HIDROS SANITÁRIAS | G132: UN | H132: 1 | I132: 391.9 | J132: 391.9
A133: Composição Auxiliar | B133: 88267 | C133: SINAPI | D133: ENCANADOR OU BOMBEIRO HIDRÁULICO COM ENCARGOS COMPLEMENTARES | E133: SEDI - SERVIÇOS DIVERSOS | G133: H | H133: 3.5508 | I133: 24.54 | J133: 87.13
A134: Composição Auxiliar | B134: 88248 | C134: SINAPI | D134: AUXILIAR DE ENCANADOR OU BOMBEIRO HIDRÁULICO COM ENCARGOS COMPLEMENTARES | E134: SEDI - SERVIÇOS DIVERSOS | G134: H | H134: 3.5508 | I134: 20.39 | J134: 72.4
A135: Insumo | B135: 00006323 | C135: SINAPI | D135: TE DE FERRO GALVANIZADO, DE 1" | E135: Material | G135: UN | H135: 1 | I135: 24.11 | J135: 24.11
A136: Insumo | B136: 00003472 | C136: SINAPI | D136: COTOVELO 90 GRAUS DE FERRO GALVANIZADO, COM ROSCA BSP, DE 1" | E136: Material | G136: UN | H136: 4 | I136: 17.39 | J136: 69.56
A137: Insumo | B137: 00007307 | C137: SINAPI | D137: FUNDO ANTICORROSIVO PARA METAIS FERROSOS (ZARCAO) | E137: Material | G137: L | H137: 0.0288 | I137: 29.62 | J137: 0.85
A138: Insumo | B138: 00006019 | C138: SINAPI | D138: REGISTRO GAVETA BRUTO EM LATAO FORJADO, BITOLA 1" (REF 1509) | E138: Material | G138: UN | H138: 1 | I138: 58.88 | J138: 58.88
A139: Insumo | B139: 00004179 | C139: SINAPI | D139: NIPLE DE FERRO GALVANIZADO, COM ROSCA BSP, DE 1" | E139: Material | G139: UN | H139: 2 | I139: 12.9 | J139: 25.8
A140: Insumo | B140: 00040626 | C140: SINAPI | D140: TUBO ACO GALVANIZADO COM COSTURA, CLASSE MEDIA, DN 1", E = 3,38 MM, PESO 2,50 KG/M (NBR 5580) | E140: Material | G140: M | H140: 1.143 | I140: 37.43 | J140: 42.78
A141: Insumo | B141: 00003148 | C141: SINAPI | D141: FITA VEDA ROSCA EM ROLOS DE 18 MM X 50 M (L X C) | E141: Material | G141: UN | H141: 0.1188 | I141: 14.75 | J141: 1.75
A142: Insumo | B142: 00004890 | C142: SINAPI | D142: PLUG OU BUJAO DE FERRO GALVANIZADO, DE 1" | E142: Material | G142: UN | H142: 1 | I142: 8.64 | J142: 8.64
E143: MO sem LS => | F143: 132.9 | G143: LS => | H143: 0 | I143: MO com LS => | J143: 132.9
E144: Valor do BDI => | F144: 85.82 | H144: Valor com BDI => | J144: 477.72
G145: Quant. => | H145: 1,00 | I145: Preço Total => | J145: 477.72
A147: 3 | D147: PAREDES E PAINÉIS | J147: 13645.83
A148: 3.1 | B148: Código | C148: Banco | D148: Descrição | E148: Tipo | G148: Und | H148: Quant. | I148: Valor Unit | J148: Total
A149: Composição | B149: 103324 | C149: SINAPI | D149: ALVENARIA DE VEDAÇÃO DE BLOCOS CERÂMICOS FURADOS NA VERTICAL DE 14X19X39 CM (ESPESSURA 14 CM) E ARGAMASSA DE ASSENTAMENTO COM PREPARO EM BETONEIRA. AF_12/2021 | E149: PARE - PAREDES/PAINEIS | G149: m² | H149: 1 | I149: 80.81 | J149: 80.81
A150: Composição Auxiliar | B150: 88309 | C150: SINAPI | D150: PEDREIRO COM ENCARGOS COMPLEMENTARES | E150: SEDI - SERVIÇOS DIVERSOS | G150: H | H150: 0.86 | I150: 25.3 | J150: 21.75
A151: Composição Auxiliar | B151: 87292 | C151: SINAPI | D151: ARGAMASSA TRAÇO 1:2:8 (EM VOLUME DE CIMENTO, CAL E AREIA MÉDIA ÚMIDA) PARA EMBOÇO/MASSA ÚNICA/ASSENTAMENTO DE ALVENARIA DE VEDAÇÃO, PREPARO MECÂNICO COM BETONEIRA 400 L. AF_08/2019 | E151: SEDI - SERVIÇOS DIVERSOS | G151: m³ | H151: 0.0118 | I151: 668.03 | J151: 7.88
A152: Composição Auxiliar | B152: 88316 | C152: SINAPI | D152: SERVENTE COM ENCARGOS COMPLEMENTARES | E152: SEDI - SERVIÇOS DIVERSOS | G152: H | H152: 0.43 | I152: 18.98 | J152: 8.16
A153: Insumo | B153: 00034547 | C153: SINAPI | D153: TELA DE ACO SOLDADA GALVANIZADA/ZINCADA PARA ALVENARIA, FIO D = *1,20 A 1,70* MM, MALHA 15 X 15 MM, (C X L) *50 X 12* CM | E153: Material | G153: M | H153: 0.42 | I153: 3.63 | J153: 1.52
A154: Insumo | B154: 00037593 | C154: SINAPI | D154: BLOCO CERAMICO / TIJOLO VAZADO PARA ALVENARIA DE VEDACAO, FUROS NA VERTICAL DE 14 X 19 X 39 CM (L X A X C) | E154: Material | G154: UN | H154: 13.6 | I154: 3.02 | J154: 41.07
A155: Insumo | B155: 00037395 | C155: SINAPI | D155: PINO DE ACO COM FURO, HASTE = 27 MM (ACAO DIRETA) | E155: Material | G155: CENTO | H155: 0.01 | I155: 43.77 | J155: 0.43
E156: MO sem LS => | F156: 25.03 | G156: LS => | H156: 0 | I156: MO com LS => | J156: 25.03
E157: Valor do BDI => | F157: 17.69 | H157: Valor com BDI => | J157: 98.5
G158: Quant. => | H158: 127,50 | I158: Preço Total => | J158: 12558.75
A160: 3.2 | B160: Código | C160: Banco | D160: Descrição | E160: Tipo | G160: Und | H160: Quant. | I160: Valor Unit | J160: Total
A161: Composição | B161: 4458 | C161: ORSE | D161: Divisória em granito cinza andorinha para mictórios, polido, e=2cm, inclusivefixação - Rev 02 | E161: Divisórias | G161: m² | H161: 1 | I161: 725.03 | J161: 725.03
B162: Código | C162: Banco | D162: Descrição | E162: Tipo | G162: Und | H162: Quant. | I162: Valor Unit | J162: Total
A163: Composição | B163: 1903 | C163: ORSE | D163: Argamassa cimento e areia traço t-1 (1:3) - 1 saco cimento 50kg / 3 padiolas areia dim. 0.35 x 0.45 x 0.23 m - Confecção mecânica e transporte | E163: Argamassas | G163: m³ | H163: 0.003 | I163: 532,51 | J163: 1,59
A164: Insumo | B164: 00004750/SINAPI | C164: ORSE | D164: Pedreiro (horista) | E164: Mão de Obra | G164: h | H164: 1 | I164: 19,13 | J164: 19,12
A165: Insumo | B165: 00006111/SINAPI | C165: ORSE | D165: Servente de obras (horista) | E165: Mão de Obra | G165: h | H165: 1 | I165: 13,65 | J165: 13,64
A166: Composição | B166: 10549 | C166: ORSE | D166: Encargos Complementares - Servente | E166: Provisórios | G166: h | H166: 1 | I166: 3,80 | J166: 3,80
A167: Composição | B167: 10550 | C167: ORSE | D167: Encargos Complementares - Pedreiro | E167: Provisórios | G167: h | H167: 1 | I167: 3,67 | J167: 3,67
A168: Insumo | B168: 12984 | C168: ORSE | D168: Granito cinza andorinha, bipolido, e=2cm para divisória | E168: Material | G168: m² | H168: 1 | I168: 683,15 | J168: 683,15
A169: Detalhamento de Cálculo ORSE
B170: Código | C170: Banco | D170: Descrição | E170: Tipo | G170: Und | H170: Quant. | I170: Valor Unit | J170: Total
A171: Insumo | B171: 10789 | C171: ORSE | D171: Nível de bolha de madeira | E171: Material | G171: un | H171: 0.0002 | I171: 15,40 | J171: 0,00
A172: Insumo | B172: 10517 | C172: ORSE | D172: Exames admissionais/demissionais (checkup) | E172: Serviços | G172: cj | H172: 0.0008048 | I172: 300,00 | J172: 0,24
A173: Insumo | B173: 10788 | C173: ORSE | D173: Pá quadrada | E173: Material | G173: un | H173: 0.0002024 | I173: 36,90 | J173: 0,00
A174: Insumo | B174: 4729 | C174: ORSE | D174: Marreta 1 kg com cabo | E174: Material | G174: un | H174: 0.0001012 | I174: 37,80 | J174: 0,00
A175: Insumo | B175: 10596 | C175: ORSE | D175: Protetor auricular | E175: Material | G175: un | H175: 0.009054 | I175: 4,90 | J175: 0,04
A176: Insumo | B176: 10362 | C176: ORSE | D176: Seguro de vida e acidente em grupo | E176: Serviços | G176: un | H176: 0.009054 | I176: 12,54 | J176: 0,11
A177: Insumo | B177: 00002711/SINAPI | C177: ORSE | D177: Carrinho de mao de aco capacidade 50 a 60 l, pneu com camara | E177: Material | G177: un | H177: 0.0002024 | I177: 166,00 | J177: 0,03
A178: Insumo | B178: 11245 | C178: ORSE | D178: Desempoladeira de madeira 12x22 | E178: Material | G178: un | H178: 0.0007 | I178: 11,60 | J178: 0,00
A179: Insumo | B179: 4174 | C179: ORSE | D179: Desempenadeira de aço lisa, cabo madeira, ref:143, Atlas ou similar | E179: Material | G179: un | H179: 0.0005 | I179: 12,00 | J179: 0,00
A180: Insumo | B180: 11265 | C180: ORSE | D180: Martelo de borracha com cabo | E180: Material | G180: un | H180: 0.0004 | I180: 18,75 | J180: 0,00
A181: Insumo | B181: 10761 | C181: ORSE | D181: Refeição - café da manhã ( café com leite e dois pães com manteiga) | E181: Serviços | G181: un | H181: 0.2048216 | I181: 5,00 | J181: 1,02
A182: Insumo | B182: 4722 | C182: ORSE | D182: Colher de pedreiro | E182: Material | G182: un | H182: 0.0004 | I182: 18,80 | J182: 0,00
A183: Insumo | B183: 941 | C183: ORSE | D183: Fardamento com mangas curta | E183: Material | G183: un | H183: 0.003018 | I183: 193,41 | J183: 0,58
A184: Insumo | B184: 12984 | C184: ORSE | D184: Granito cinza andorinha, bipolido, e=2cm para divisória | E184: Material | G184: m² | H184: 1 | I184: 683,15 | J184: 683,15
A185: Insumo | B185: 00004750/SINAPI | C185: ORSE | D185: Pedreiro (horista) | E185: Mão de Obra | G185: h | H185: 1 | I185: 19,13 | J185: 19,12
A186: Insumo | B186: 2378 | C186: ORSE | D186: Vale transporte | E186: Material | G186: un | H186: 0.1606292 | I186: 4,50 | J186: 0,72
A187: Insumo | B187: 00006111/SINAPI | C187: ORSE | D187: Servente de obras (horista) | E187: Mão de Obra | G187: h | H187: 1.012 | I187: 13,65 | J187: 13,80
A188: Insumo | B188: 10492 | C188: ORSE | D188: Cesta Básica | E188: Material | G188: un | H188: 0.009054 | I188: 190,00 | J188: 1,72
A189: Insumo | B189: 10599 | C189: ORSE | D189: Protetor solar fps 30 com 120ml | E189: Material | G189: un | H189: 0.0036216 | I189: 18,00 | J189: 0,06
A190: Insumo | B190: 4728 | C190: ORSE | D190: Talhadeira chata 10" | E190: Material | G190: un | H190: 0.0003036 | I190: 18,58 | J190: 0,00
A191: Insumo | B191: 10790 | C191: ORSE | D191: Prumo de face | E191: Material | G191: un | H191: 0.0001 | I191: 25,95 | J191: 0,00
A192: Insumo | B192: 00001379/SINAPI | C192: ORSE | D192: Cimento portland composto cp ii-32 | E192: Material | G192: kg | H192: 1.3566 | I192: 0,76 | J192: 1,03
A193: Insumo | B193: 00000370/SINAPI | C193: ORSE | D193: Areia media - posto jazida/fornecedor (retirado na jazida, sem transporte) | E193: Material | G193: m³ | H193: 0.00324 | I193: 110,00 | J193: 0,35
A194: Insumo | B194: 1651 | C194: ORSE | D194: Óculos branco proteção | E194: Material | G194: pr | H194: 0.0016096 | I194: 6,70 | J194: 0,01
A195: Insumo | B195: 00012892/SINAPI | C195: ORSE | D195: Luva raspa de couro, cano curto (punho *7* cm) | E195: Material | G195: par | H195: 0.0046276 | I195: 12,51 | J195: 0,05
A196: Insumo | B196: 11247 | C196: ORSE | D196: Serra mármore | E196: Material | G196: un | H196: 0.0001 | I196: 327,80 | J196: 0,03
A197: Insumo | B197: 00012893/SINAPI | C197: ORSE | D197: Bota de seguranca com biqueira de aco e colarinho acolchoado | E197: Material | G197: par | H197: 0.0016096 | I197: 66,72 | J197: 0,10
A198: Insumo | B198: 11264 | C198: ORSE | D198: Marreta de 1/2 kg com cabo | E198: Material | G198: un | H198: 0.0002 | I198: 13,52 | J198: 0,00
A199: Insumo | B199: 00012895/SINAPI | C199: ORSE | D199: Capacete de seguranca aba frontal com suspensao de polietileno, sem jugular (classe b) | E199: Material | G199: un | H199: 0.0012072 | I199: 13,90 | J199: 0,01
A200: Insumo | B200: 158 | C200: ORSE | D200: Almoço (Participação do empregador) | E200: Material | G200: un | H200: 0.2048216 | I200: 14,00 | J200: 2,86
A201: Insumo | B201: 10282 | C201: ORSE | D201: Regua de alumínio c/ 2,00m (para pedreiro) | E201: Material | G201: un | H201: 0.0002 | I201: 45,00 | J201: 0,00
A202: Insumo | B202: 00012894/SINAPI | C202: ORSE | D202: Capa para chuva em pvc com forro de poliester, com capuz (amarela ou azul) | E202: Material | G202: un | H202: 0.0004024 | I202: 18,07 | J202: 0,00
A203: Insumo | B203: 11246 | C203: ORSE | D203: Escala métrica de bambú | E203: Material | G203: Un | H203: 0.0007 | I203: 10,22 | J203: 0,00
A204: Insumo | B204: 11243 | C204: ORSE | D204: Martelo sem unha | E204: Material | G204: un | H204: 0.0001 | I204: 28,00 | J204: 0,00
E205: MO sem LS => | F205: 32.92 | G205: LS => | H205: 0 | I205: MO com LS => | J205: 32.92
E206: Valor do BDI => | F206: 158.78 | H206: Valor com BDI => | J206: 883.81
G207: Quant. => | H207: 1,23 | I207: Preço Total => | J207: 1087.08
... 8364 more rows

Sheet BDI
A1: MEMÓRIA DE CALCULO DO BDI DE SERVIÇOS
A2: BDI APLICADO A MÃO DE OBRA
A3: ITEM | B3: DISCRIMINAÇÃO | C3: PERC. (%)
A5: 1.00 | B5: Despesas Indiretas
A6: A1 | B6: Seguro e Garantia | C6: 0.008
A7: A2 | B7: Riscos e Imprevistos | C7: 0.01
A8: A3 | B8: Despesas Financeiras | C8: 0.0105
A9: A4 | B9: Administração Central | C9: 0.0353
A10: Total do Grupo A = | C10: =SUM(C6:C9) -> 0.0638
A11: 2.00 | B11: Benefício
A12: B-1 | B12: LUCRO | C12: 0.0691
A13: Total do Grupo B = | C13: =SUM(C12) -> 0.0691
A14: 3.00 | B14: Impostos
A15: C-1 | B15: PIS / PASEP | C15: 0.0065
A16: C-2 | B16: COFINS | C16: 0.03
A17: C-3 | B17: ISS | C17: 0.03
A18: Total do Grupo C = | C18: =SUM(C15:C17) -> 0.0665
A19: Fórmula Para Cálculo do B.D.I
A20: BDI =(((1+A4+A1+A2)*(1+A3)*(1+B))/(1-C))-1
A22: Bonificação Sobre Despesas indiretas (B.D.I) = | C22: =(((1+C9+C6+C7)*(1+C8)*(1+C13))/(1-C18))-1 -> 0.2189682933
A26: MEMÓRIA DE CALCULO DO BDI DE EQUIPAMENTOS
A27: BDI APLICADO NA OBRA
A28: ITEM | B28: DISCRIMINAÇÃO | C28: PERC. (%)
A31: 1.00 | B31: Despesas Indiretas
A32: A1 | B32: Seguro e Garantia | C32: 0.008
A33: A2 | B33: Riscos e Imprevistos | C33: 0.0089
A34: A3 | B34: Despesas Financeiras | C34: 0.0105
A35: A4 | B35: Administração Central | C35: 0.022
A36: Total do Grupo A = | C36: =SUM(C32:C35) -> 0.0494
A37: 2.00 | B37: Benefício
A38: B1 | B38: LUCRO | C38: 0.05
A39: Total do Grupo B = | C39: =SUM(C38) -> 0.05
A40: 3.00 | B40: Impostos
A41: C1 | B41: PIS / PASEP | C41: 0.0065
A42: C2 | B42: COFINS | C42: 0.03
A43: C3 | B43: ISS | C43: 0
A44: Total do Grupo C = | C44: =SUM(C41:C43) -> 0.0365
A45: Fórmula Para Cálculo do B.D.I
A46: BDI =(((1+A4+A1+A2)*(1+A3)*(1+B))/(1-C))-1
A48: Bonificação Sobre Despesas indiretas (B.D.I) = | C48: =(((1+C35+C32+C33)*(1+C34)*(1+C39))/(1-C44))-1 -> 0.1440569512

Sheet Curva ABC de Insumos
D1: Obra | E1: Bancos | F1: B.D.I. | I1: Encargos Sociais
D2: OBRAS E SERVIÇOS REMANESCENTES PARA CONSTRUÇÃO DE CENTRO COMERCIAL, LOCALIZADO NO MUNICÍPIO DE SANTANA, NO ESTADO DO AMAPÁ | E2: SINAPI - 09/2024 - Amapá SICRO3 - 07/2024 - Amapá ORSE - 07/2024 - Sergipe | F2: 21,9% | I2: Não Desonerado: embutido nos preços unitário dos insumos de mão de obra, de acordo com as bases.
A3: Curva ABC de Insumos
A4: Código | B4: Banco | C4: Grupo | D4: Descrição | E4: Tipo | F4: Und | G4: Quantidade | I4: Valor Unitário | K4: Total | N4: Peso | O4: Valor Acumulado | P4: Peso Acumulado
G5: Operativa | H5: Improdutiva | I5: Operativa | J5: Improdutiva | K5: Operativa | L5: Improdutiva | M5: Geral
A6: 00038195 | B6: SINAPI | D6: PISO EM PORCELANATO, BORDA RETA, LISO, MONOCOLOR, ACETINADO OU POLIDO, FORMATO MAIOR QUE 2025 CM2 | E6: Material | F6: M² | G6: 3.343,5647500 | I6: 133,71 | K6: 447.068,04 | M6: 447068.0427 | N6: 7,53% | O6: 447068.0427 | P6: 7,53%
A7: 00039522 | B7: SINAPI | D7: TELHA TERMOISOLANTE REVESTIDA EM ACO GALVANIZADO, FACES SUPERIOR E INFERIOR EM TELHA TRAPEZOIDAL (SEM ACESSORIOS DE FIXACAO), REVESTIMENTO COM ESPESSURA DE 0,50 MM COM PRE-PINTURA NAS DUAS FACES, NUCLEO EM POLIESTIRENO (EPS) DE 50 MM | E7: Material | F7: m² | G7: 2.602,2700000 | I7: 140,77 | K7: 366.321,55 | M7: 366321.5479 | N7: 6,17% | O7: 813389.5906 | P7: 13,71%
A8: 14209 | B8: ORSE | D8: Fornecimento e montagem de porta de enrolar automática, em chapa 20 Transvision, com guias laterais, soleira T, motor para 1000Kg , PVC auto lubrificante nas guias, borracha de vedação de soleira, central com 02 controles e pinturaeletrostática | E8: Serviços | F8: m² | G8: 965,9700000 | I8: 370,44 | K8: 357.833,93 | M8: 357833.9268 | N8: 6,03% | O8: 1171223.517 | P8: 19,74%
A9: 12424 | B9: ORSE | D9: Brise metálico de alumínio, ref. B57, branco nieve 7000, da Hunter Douglas ousimilar (material e mão de obra) | E9: Material | F9: m² | G9: 575,2600000 | I9: 450,00 | K9: 258.867,00 | M9: 258867 | N9: 4,36% | O9: 1430090.517 | P9: 24,10%
A10: 00036170 | B10: SINAPI | D10: BLOQUETE/PISO INTERTRAVADO DE CONCRETO - MODELO ONDA/16 FACES/RETANGULAR/TIJOLINHO/PAVER/HOLANDES/PARALELEPIPEDO, *20 X 10* CM, E = 8 CM, RESISTENCIA DE 35 MPA, COR NATURAL | E10: Material | F10: m² | G10: 2.544,8412450 | I10: 85,00 | K10: 216.311,51 | M10: 216311.5058 | N10: 3,65% | O10: 1646402.023 | P10: 27,74%
A11: 00004783 | B11: SINAPI | D11: PINTOR (HORISTA) | E11: Mão de Obra | F11: H | G11: 8.232,8824648 | I11: 20,37 | K11: 167.703,82 | M11: 167703.8158 | N11: 2,83% | O11: 1814105.839 | P11: 30,57%
A12: 00010966 | B12: SINAPI | D12: PERFIL "U" SIMPLES, EM CHAPA DOBRADA DE ACO LAMINADO, E = 8 MM, H = 150 MM, L = 75 MM (16,97 KG/M) | E12: Material | F12: KG | G12: 15.373,2607280 | I12: 9,05 | K12: 139.128,01 | M12: 139128.0096 | N12: 2,34% | O12: 1953233.849 | P12: 32,91%
A13: 13668 | B13: ORSE | D13: Poste de aço galv. cônico contínuPoste de Aço para Jardim, altura 3m/4m, com tubo diam. = 64mm | E13: Material | F13: un | G13: 204,8000000 | I13: 620,25 | K13: 127.027,20 | M13: 127027.2 | N13: 2,14% | O13: 2080261.049 | P13: 35,06%
A14: 00040811 | B14: SINAPI | D14: ENGENHEIRO CIVIL DE OBRA JUNIOR (MENSALISTA) | E14: Mão de Obra | F14: MES | G14: 6,0762600 | I14: 20.382,49 | K14: 123.849,31 | M14: 123849.3087 | N14: 2,09% | O14: 2204110.357 | P14: 37,14%
A15: 00004777 | B15: SINAPI | D15: CANTONEIRA ACO ABAS IGUAIS (QUALQUER BITOLA), ESPESSURA ENTRE 1/8" E 1/4" | E15: Material | F15: KG | G15: 14.110,8066767 | I15: 7,96 | K15: 112.322,02 | M15: 112322.0211 | N15: 1,89% | O15: 2316432.378 | P15: 39,04%
A16: 00001022 | B16: SINAPI | D16: CABO DE COBRE, FLEXIVEL, CLASSE 4 OU 5, ISOLACAO EM PVC/A, ANTICHAMA BWF-B, COBERTURA PVC-ST1, ANTICHAMA BWF-B, 1 CONDUTOR, 0,6/1 KV, SECAO NOMINAL 2,5 MM2 | E16: Material | F16: M | G16: 31.621,7260440 | I16: 3,22 | K16: 101.821,96 | M16: 101821.9579 | N16: 1,72% | O16: 2418254.336 | P16: 40,75%
A17: 00000980 | B17: SINAPI | D17: CABO DE COBRE, FLEXIVEL, CLASSE 4 OU 5, ISOLACAO EM PVC/A, ANTICHAMA BWF-B, 1 CONDUTOR, 450/750 V, SECAO NOMINAL 10 MM2 | E17: Material | F17: M | G17: 8.216,0000000 | I17: 12,36 | K17: 101.549,76 | M17: 101549.76 | N17: 1,71% | O17: 2519804.096 | P17: 42,46%
A18: 00006111 | B18: SINAPI | D18: SERVENTE DE OBRAS (HORISTA) | E18: Mão de Obra | F18: H | G18: 6.582,2895712 | I18: 14,32 | K18: 94.258,39 | M18: 94258.38666 | N18: 1,59% | O18: 2614062.483 | P18: 44,05%
A19: 00034391 | B19: SINAPI | D19: VIDRO COMUM LAMINADO LISO INCOLOR DUPLO, ESPESSURA TOTAL 8 MM (CADA CAMADA DE 4 MM) - COLOCADO | E19: Material | F19: M² | G19: 70,1294600 | I19: 1.340,50 | K19: 94.008,54 | M19: 94008.54113 | N19: 1,58% | O19: 2708071.024 | P19: 45,64%
A20: 00037595 | B20: SINAPI | D20: ARGAMASSA COLANTE TIPO AC III | E20: Material | F20: KG | G20: 29.049,2441500 | I20: 3,07 | K20: 89.181,18 | M20: 89181.17954 | N20: 1,50% | O20: 2797252.204 | P20: 47,14%
A21: 14001 | B21: ORSE | D21: Plataforma elevatória para PNE, semi cabinada, modelo (UN140/1 entrada)/adjacente (ADJ140/2 entrada) dim. cabine 1100x1400x1100mm, Aço INOX, fechamento Aluminio Comp.(ACM) e vidro, 02 paradas perc.3m cx. alvenaria, da Aptus ou Similar | E21: Serviços | F21: un | G21: 2,0000000 | I21: 44.150,00 | K21: 88.300,00 | M21: 88300 | N21: 1,49% | O21: 2885552.204 | P21: 48,63%
A22: 13007 | B22: ORSE | D22: Brise metálico Hunter Douglas ref. Miniware # 103 cor prata ou similar, com estrutura e montagem, exclusive Andaimes ou plataforma | E22: Material | F22: m² | G22: 176,6600000 | I22: 480,00 | K22: 84.796,80 | M22: 84796.8 | N22: 1,43% | O22: 2970349.004 | P22: 50,05%
A23: 00034385 | B23: SINAPI | D23: VIDRO LISO INCOLOR 8MM - SEM COLOCACAO | E23: Material | F23: M² | G23: 146,4000000 | I23: 578,66 | K23: 84.715,82 | M23: 84715.824 | N23: 1,43% | O23: 3055064.828 | P23: 51,48%
A24: 00002436 | B24: SINAPI | D24: ELETRICISTA (HORISTA) | E24: Mão de Obra | F24: H | G24: 3.349,5829735 | I24: 22,50 | K24: 75.365,62 | M24: 75365.6169 | N24: 1,27% | O24: 3130430.445 | P24: 52,75%
A25: 00006111/SINAPI | B25: ORSE | D25: Servente de obras (horista) | E25: Mão de Obra | F25: h | G25: 5.349,3885085 | I25: 13,65 | K25: 72.992,77 | M25: 72992.76996 | N25: 1,23% | O25: 3203423.215 | P25: 53,98%
A26: 00002436/SINAPI | B26: ORSE | D26: Eletricista (horista) | E26: Mão de Obra | F26: h | G26: 3.092,9896000 | I26: 19,13 | K26: 59.164,56 | M26: 59164.56086 | N26: 1,00% | O26: 3262587.775 | P26: 54,98%
A27: 10047 | B27: ORSE | D27: Perfilado, pré-zincado a fogo, perfurado 38 x 38 x 6000mm | E27: Material | F27: un | G27: 900,0000000 | I27: 64,45 | K27: 58.005,00 | M27: 58005 | N27: 0,98% | O27: 3320592.775 | P27: 55,96%
A28: 00038186 | B28: SINAPI | D28: PISO TATIL DE ALERTA OU DIRECIONAL, DE BORRACHA, COLORIDO, 25 X 25 CM, E = 12 MM, PARA ARGAMASSA | E28: Material | F28: m² | G28: 95,5775000 | I28: 583,82 | K28: 55.800,06 | M28: 55800.05605 | N28: 0,94% | O28: 3376392.831 | P28: 56,90%
A29: 00000247 | B29: SINAPI | D29: AJUDANTE DE ELETRICISTA (HORISTA) | E29: Mão de Obra | F29: H | G29: 3.249,8448995 | I29: 16,31 | K29: 53.004,97 | M29: 53004.97031 | N29: 0,89% | O29: 3429397.802 | P29: 57,79%
A30: 00039599 | B30: SINAPI | D30: CABO DE REDE, PAR TRANCADO UTP, 4 PARES, CATEGORIA 6 (CAT 6), ISOLAMENTO PVC (LSZH) | E30: Material | F30: M | G30: 9.450,0000000 | I30: 5,33 | K30: 50.368,50 | M30: 50368.5 | N30: 0,85% | O30: 3532302.302 | P30: 59,52%
A31: 00001017 | B31: SINAPI | D31: CABO DE COBRE, FLEXIVEL, CLASSE 4 OU 5, ISOLACAO EM PVC/A, ANTICHAMA BWF-B, COBERTURA PVC-ST1, ANTICHAMA BWF-B, 1 CONDUTOR, 0,6/1 KV, SECAO NOMINAL 120 MM2 | E31: Material | F31: M | G31: 345,1000000 | I31: 144,47 | K31: 49.856,60 | M31: 49856.597 | N31: 0,84% | O31: 3582158.899 | P31: 60,36%
A32: 00036785 | B32: SINAPI | D32: GRANALHA DE ACO, ANGULAR (GRIT), PARA JATEAMENTO, PENEIRA 1,41 A 1,19 MM (SAE G16) | E32: Equipamento | F32: KG | G32: 357,1470965 | I32: 134,38 | K32: 47.993,43 | M32: 47993.42682 | N32: 0,81% | O32: 3630152.326 | P32: 61,17%
A33: 00004760 | B33: SINAPI | D33: AZULEJISTA OU LADRILHEIRO (HORISTA) | E33: Mão de Obra | F33: H | G33: 1.920,6848986 | I33: 24,19 | K33: 46.461,37 | M33: 46461.3677 | N33: 0,78% | O33: 3676613.693 | P33: 61,96%
A34: COTAÇÃO - 109 | B34: Próprio | D34: LUMINÁRIA DO TIPO PENDENTE BOLA 30CM COM LÂMPADA DE LED 30W 4500K | E34: Material | F34: UN | G34: 92,0000000 | I34: 500,00 | K34: 46.000,00 | M34: 46000 | N34: 0,78% | O34: 3722613.693 | P34: 62,73%
A35: 00007356 | B35: SINAPI | D35: TINTA LATEX ACRILICA PREMIUM, COR BRANCO FOSCO | E35: Material | F35: L | G35: 1.354,5521526 | I35: 33,89 | K35: 45.905,77 | M35: 45905.77245 | N35: 0,77% | O35: 3768519.466 | P35: 63,51%
A36: 00040818 | B36: SINAPI | D36: ENCARREGADO GERAL DE OBRAS (MENSALISTA) | E36: Mão de Obra | F36: MES | G36: 10,1826000 | I36: 4.091,44 | K36: 41.661,50 | M36: 41661.49694 | N36: 0,70% | O36: 3810180.963 | P36: 64,21%
A37: 00039413 | B37: SINAPI | D37: PLACA / CHAPA DE GESSO ACARTONADO, STANDARD (ST), COR BRANCA, E = 12,5 MM, 1200 X 2400 MM (L X C) | E37: Material | F37: m² | G37: 1.842,4600000 | I37: 22,52 | K37: 41.492,20 | M37: 41492.1992 | N37: 0,70% | O37: 3851673.162 | P37: 64,91%
A38: 00039427 | B38: SINAPI | D38: PERFIL CANALETA, FORMATO C, EM ACO ZINCADO, PARA ESTRUTURA FORRO DRYWALL, E = 0,5 MM, *46 X 18* (L X H), COMPRIMENTO 3 M | E38: Material | F38: M | G38: 6.029,9000000 | I38: 6,69 | K38: 40.340,03 | M38: 40340.031 | N38: 0,68% | O38: 3892013.193 | P38: 65,59%
A39: 00037372 | B39: SINAPI | D39: EXAMES - HORISTA (COLETADO CAIXA - ENCARGOS COMPLEMENTARES) | E39: Material | F39: H | G39: 30.053,0829279 | I39: 1,34 | K39: 40.271,13 | M39: 40271.13112 | N39: 0,68% | O39: 3932284.324 | P39: 66,26%
A40: 00013393 | B40: SINAPI | D40: QUADRO DE DISTRIBUICAO COM BARRAMENTO TRIFASICO, DE EMBUTIR, EM CHAPA DE ACO GALVANIZADO, PARA 12 DISJUNTORES DIN, 100 A | E40: Material | F40: UN | G40: 100,0000000 | I40: 381,17 | K40: 38.117,00 | M40: 38117 | N40: 0,64% | O40: 3970401.324 | P40: 66,91%
A41: 00007615 | B41: SINAPI | D41: TRANSFORMADOR TRIFASICO DE DISTRIBUICAO, POTENCIA DE 300 KVA, TENSAO NOMINAL DE 15 KV, TENSAO SECUNDARIA DE 220/127V, EM OLEO ISOLANTE TIPO MINERAL | E41: Material | F41: UN | G41: 1,0000000 | I41: 36.726,19 | K41: 36.726,19 | M41: 36726.19 | N41: 0,62% | O41: 4007127.514 | P41: 67,53%
A42: 00000370 | B42: SINAPI | D42: AREIA MEDIA - POSTO JAZIDA/FORNECEDOR (RETIRADO NA JAZIDA, SEM TRANSPORTE) | E42: Material | F42: M³ | G42: 251,8717971 | I42: 145,00 | K42: 36.521,41 | M42: 36521.41059 | N42: 0,62% | O42: 4043648.925 | P42: 68,14%
A43: 00039422 | B43: SINAPI | D43: PERFIL MONTANTE, FORMATO C, EM ACO ZINCADO, PARA ESTRUTURA PAREDE DRYWALL, E = 0,5 MM, 70 X 3000 MM (L X C) | E43: Material | F43: M | G43: 3.501,4795200 | I43: 10,32 | K43: 36.135,27 | M43: 36135.26865 | N43: 0,61% | O43: 4079784.193 | P43: 68,75%
A44: 00004750 | B44: SINAPI | D44: PEDREIRO (HORISTA) | E44: Mão de Obra | F44: H | G44: 1.764,5128122 | I44: 20,37 | K44: 35.943,13 | M44: 35943.12598 | N44: 0,61% | O44: 4115727.319 | P44: 69,36%
A45: 00001021 | B45: SINAPI | D45: CABO DE COBRE, FLEXIVEL, CLASSE 4 OU 5, ISOLACAO EM PVC/A, ANTICHAMA BWF-B, COBERTURA PVC-ST1, ANTICHAMA BWF-B, 1 CONDUTOR, 0,6/1 KV, SECAO NOMINAL 4 MM2 | E45: Material | F45: M | G45: 6.963,0400000 | I45: 4,94 | K45: 34.397,42 | M45: 34397.4176 | N45: 0,58% | O45: 4150124.737 | P45: 69,94%
A46: 00001379 | B46: SINAPI | D46: CIMENTO PORTLAND COMPOSTO CP II-32 | E46: Material | F46: KG | G46: 30.807,4046981 | I46: 1,08 | K46: 33.272,00 | M46: 33271.99707 | N46: 0,56% | O46: 4183396.734 | P46: 70,50%
A47: COTAÇÃO - 123 | B47: Próprio | D47: QUADRO DE MEDIDOR P/ 28 MEDIDORES, COMPLETO P/ DISJUNTOR GERAL DE 150 A, MOD. TAF DIMENSÕES: 3170 X 1710 X 300 MM | E47: Material | F47: UN | G47: 2,0000000 | I47: 16.445,64 | K47: 32.891,28 | M47: 32891.28 | N47: 0,55% | O47: 4216288.014 | P47: 71,05%
A48: 00036886 | B48: SINAPI | D48: ARGAMASSA PRONTA PARA CONTRAPISO | E48: Material | F48: KG | G48: 29.633,5200000 | I48: 1,03 | K48: 30.522,53 | M48: 30522.5256 | N48: 0,51% | O48: 4246810.539 | P48: 71,57%
A49: 00040810 | B49: SINAPI | D49: APONTADOR OU APROPRIADOR DE MAO DE OBRA (MENSALISTA) | E49: Mão de Obra | F49: MES | G49: 10,1826000 | I49: 2.985,92 | K49: 30.404,43 | M49: 30404.42899 | N49: 0,51% | O49: 4277214.968 | P49: 72,08%
A50: 00007292 | B50: SINAPI | D50: TINTA ESMALTE SINTETICO PREMIUM BRILHANTE | E50: Material | F50: L | G50: 1.088,1762840 | I50: 27,46 | K50: 29.881,32 | M50: 29881.32076 | N50: 0,50% | O50: 4307096.289 | P50: 72,58%
A51: 2694 | B51: ORSE | D51: Cabo de cobre nú 50 mm2 - 1/0 AWG | E51: Material | F51: kg | G51: 246,6100000 | I51: 120,91 | K51: 29.817,62 | M51: 29817.6151 | N51: 0,50% | O51: 4336913.904 | P51: 73,08%
A52: 00000977 | B52: SINAPI | D52: CABO DE COBRE, FLEXIVEL, CLASSE 4 OU 5, ISOLACAO EM PVC/A, ANTICHAMA BWF-B, COBERTURA PVC-ST1, ANTICHAMA BWF-B, 1 CONDUTOR, 0,6/1 KV, SECAO NOMINAL 70 MM2 | E52: Material | F52: M | G52: 350,1750000 | I52: 85,09 | K52: 29.796,39 | M52: 29796.39075 | N52: 0,50% | O52: 4366710.295 | P52: 73,59%
A53: 00044497 | B53: SINAPI | D53: MONTADOR DE ESTRUTURAS METALICAS HORISTA | E53: Mão de Obra | F53: H | G53: 1.504,1580871 | I53: 18,92 | K53: 28.458,67 | M53: 28458.67101 | N53: 0,48% | O53: 4395168.966 | P53: 74,07%
A54: 00011062 | B54: SINAPI | D54: PLACA CIMENTICIA LISA E = 10 MM, DE 1,20 X *2,50* M (SEM AMIANTO) | E54: Material | F54: M² | G54: 809,6306400 | I54: 33,94 | K54: 27.478,86 | M54: 27478.86392 | N54: 0,46% | O54: 4422647.83 | P54: 74,53%
A55: 00043082 | B55: SINAPI | D55: PERFIL "I" OU "W" EM ACO LAMINADO, QUAISQUER DIMENSOES | E55: Material | F55: KG | G55: 2.726,8563100 | I55: 9,92 | K55: 27.050,41 | M55: 27050.4146 | N55: 0,46% | O55: 4449698.245 | P55: 74,98%
A56: 2620 | B56: ORSE | D56: Letras aço escovado 25 x 25cm | E56: Material | F56: un | G56: 204,0000000 | I56: 128,76 | K56: 26.267,04 | M56: 26267.04 | N56: 0,44% | O56: 4475965.285 | P56: 75,43%
A57: 00001000 | B57: SINAPI | D57: CABO DE COBRE, FLEXIVEL, CLASSE 4 OU 5, ISOLACAO EM PVC/A, ANTICHAMA BWF-B, COBERTURA PVC-ST1, ANTICHAMA BWF-B, 1 CONDUTOR, 0,6/1 KV, SECAO NOMINAL 185 MM2 | E57: Material | F57: M | G57: 121,8000000 | I57: 214,98 | K57: 26.184,56 | M57: 26184.564 | N57: 0,44% | O57: 4502149.849 | P57: 75,87%
A58: 00041096 | B58: SINAPI | D58: VIGIA DIURNO (MENSALISTA) | E58: Mão de Obra | F58: MES | G58: 10,0438000 | I58: 2.505,92 | K58: 25.168,96 | M58: 25168.9593 | N58: 0,42% | O58: 4527318.808 | P58: 76,29%
A59: 13673 | B59: ORSE | D59: Luminária em LED para iluminação pública, 50W, 100 a 220v, Fluxo luminoso 4000 a 4200 lúmens, Temp. cor 6000/6500k, IRC= ou 70%, modelo Induspar ou similar | E59: Material | F59: un | G59: 64,0000000 | I59: 384,04 | K59: 24.578,56 | M59: 24578.56 | N59: 0,41% | O59: 4551897.368 | P59: 76,71%
A60: 13156 | B60: ORSE | D60: Luminária de emergência c/ dois projetors LED alimentação 127/220 de 12v/55 autonomia de 3horas | E60: Material | F60: un | G60: 94,0000000 | I60: 259,80 | K60: 24.421,20 | M60: 24421.2 | N60: 0,41% | O60: 4576318.568 | P60: 77,12%
A61: 00025067 | B61: SINAPI | D61: BLOCO DE CONCRETO ESTRUTURAL 19 X 19 X 39 CM, FBK 4,5 MPA (NBR 6136) | E61: Material | F61: UN | G61: 3.869,2087000 | I61: 5,71 | K61: 22.093,18 | M61: 22093.18168 | N61: 0,37% | O61: 4598411.75 | P61: 77,49%
A62: 3633 | B62: ORSE | D62: Eletrocalha metálica perfurada 100 x 100 x 3000mm, peso, 2,20Kg/m, (ref.: mopa ou similar) | E62: Material | F62: un | G62: 280,0000000 | I62: 78,35 | K62: 21.938,00 | M62: 21938 | N62: 0,37% | O62: 4620349.75 | P62: 77,86%
A63: 00010892 | B63: SINAPI | D63: EXTINTOR DE INCENDIO PORTATIL COM CARGA DE PO QUIMICO SECO (PQS) DE 6 KG, CLASSE BC | E63: Material | F63: UN | G63: 48,0000000 | I63: 450,00 | K63: 21.600,00 | M63: 21600 | N63: 0,36% | O63: 4641949.75 | P63: 78,22%
A64: 00037105 | B64: SINAPI | D64: CAIXA D'AGUA / RESERVATORIO EM POLIESTER REFORCADO COM FIBRA DE VIDRO, 5000 LITROS, COM TAMPA | E64: Material | F64: UN | G64: 8,0000000 | I64: 2.482,86 | K64: 19.862,88 | M64: 19862.88 | N64: 0,33% | O64: 4661812.63 | P64: 78,56%
A65: 00011795 | B65: SINAPI | D65: GRANITO PARA BANCADA, POLIDO, TIPO ANDORINHA/ QUARTZ/ CASTELO/ CORUMBA OU OUTROS EQUIVALENTES DA REGIAO, E= *2,5* CM | E65: Material | F65: M² | G65: 22,1120000 | I65: 830,18 | K65: 18.356,94 | M65: 18356.94016 | N65: 0,31% | O65: 4680169.57 | P65: 78,87%
A66: 00043626 | B66: SINAPI | D66: MASSA CORRIDA PARA SUPERFICIES DE AMBIENTES INTERNOS | E66: Material | F66: KG | G66: 7.183,1288280 | I66: 2,52 | K66: 18.101,48 | M66: 18101.48465 | N66: 0,31% | O66: 4698271.054 | P66: 79,17%
A67: 00000536 | B67: SINAPI | D67: REVESTIMENTO EM CERAMICA ESMALTADA, PEI MENOR OU IGUAL A 3, FORMATO MENOR OU IGUAL A 2025 CM2 | E67: Material | F67: M² | G67: 408,2621000 | I67: 42,68 | K67: 17.424,63 | M67: 17424.62643 | N67: 0,29% | O67: 4715695.681 | P67: 79,47%
A68: 00002674 | B68: SINAPI | D68: ELETRODUTO DE PVC RIGIDO ROSCAVEL DE 3/4 ", SEM LUVA | E68: Material | F68: M | G68: 2.996,0820000 | I68: 5,54 | K68: 16.598,29 | M68: 16598.29428 | N68: 0,28% | O68: 4732293.975 | P68: 79,75%
A69: 00044474 | B69: SINAPI | D69: GUINDASTE HIDRAULICO AUTOPROPELIDO, COM LANCA TELESCOPICA 40 M, CAPACIDADE MAXIMA 60 T, POTENCIA 260 KW, TRACAO 6 X 6 | E69: Equipamento | F69: UN | G69: 0,0065332 | I69: 2.510.525,30 | K69: 16.401,83 | M69: 16401.82951 | N69: 0,28% | O69: 4748695.805 | P69: 80,02%
A70: 00043466 | B70: SINAPI | D70: FERRAMENTAS - FAMILIA PINTOR - HORISTA (ENCARGOS COMPLEMENTARES - COLETADO CAIXA) | E70: Equipamento | F70: H | G70: 8.095,3425941 | I70: 1,97 | K70: 15.947,82 | M70: 15947.82491 | N70: 0,27% | O70: 4764643.63 | P70: 80,29%
A71: 00037370 | B71: SINAPI | D71: ALIMENTACAO - HORISTA (COLETADO CAIXA - ENCARGOS COMPLEMENTARES) | E71: Material | F71: H | G71: 30.053,0829279 | I71: 0,53 | K71: 15.928,13 | M71: 15928.13395 | N71: 0,27% | O71: 4780571.763 | P71: 80,56%
A72: 00037371 | B72: SINAPI | D72: TRANSPORTE - HORISTA (COLETADO CAIXA - ENCARGOS COMPLEMENTARES) | E72: Serviços | F72: H | G72: 30.053,0829279 | I72: 0,50 | K72: 15.026,54 | M72: 15026.54146 | N72: 0,25% | O72: 4795598.305 | P72: 80,81%
A73: 12453 | B73: ORSE | D73: Câmera Vm S5040 Vf 1/3, 760 linhas 2.8 a 12mm, da Intelbras ou similar | E73: Material | F73: un | G73: 38,0000000 | I73: 391,29 | K73: 14.869,02 | M73: 14869.02 | N73: 0,25% | O73: 4810467.325 | P73: 81,06%
A74: 00004059 | B74: SINAPI | D74: MEIO-FIO OU GUIA DE CONCRETO, PRE-MOLDADO, COMP 1 M, *30 X 12/15* CM (H X L1/L2) | E74: Material | F74: M | G74: 332,7655500 | I74: 43,21 | K74: 14.378,80 | M74: 14378.79942 | N74: 0,24% | O74: 4824846.124 | P74: 81,31%
A75: 158 | B75: ORSE | D75: Almoço (Participação do empregador) | E75: Material | F75: un | G75: 1.008,2026455 | I75: 14,00 | K75: 14.114,84 | M75: 14114.83704 | N75: 0,24% | O75: 4838960.961 | P75: 81,54%
A76: COTAÇÃO - 122 | B76: Próprio | D76: QUADRO DE MEDIDOR P/ 24 MEDIDORES, COMPLETO P/ DISJUNTOR GERAL DE 400 A, MOD. TAF DIMENSÕES: 2910 X 1710 X 300 MM | E76: Material | F76: UN | G76: 1,0000000 | I76: 14.096,26 | K76: 14.096,26 | M76: 14096.26 | N76: 0,24% | O76: 4853057.221 | P76: 81,78%
A77: 00043490 | B77: SINAPI | D77: EPI - FAMILIA PINTOR - HORISTA (ENCARGOS COMPLEMENTARES - COLETADO CAIXA) | E77: Equipamento | F77: H | G77: 8.095,3425941 | I77: 1,73 | K77: 14.004,94 | M77: 14004.94269 | N77: 0,24% | O77: 4867062.164 | P77: 82,02%
A78: 00004720 | B78: SINAPI | D78: PEDRA BRITADA N. 0, OU PEDRISCO (4,8 A 9,5 MM) POSTO PEDREIRA/FORNECEDOR, SEM FRETE | E78: Material | F78: M³ | G78: 40,2235535 | I78: 344,54 | K78: 13.858,62 | M78: 13858.62314 | N78: 0,23% | O78: 4880920.787 | P78: 82,25%
A79: 14366 | B79: ORSE | D79: Interruptor diferencial residual - IDR 4P DR 2x40A/30mA | E79: Material | F79: un | G79: 100,0000000 | I79: 137,25 | K79: 13.725,00 | M79: 13725 | N79: 0,23% | O79: 4894645.787 | P79: 82,48%
A80: 12979 | B80: ORSE | D80: Cabo blindado para alarme e detecção de incêncio 4 x 1,5mm2 | E80: Material | F80: m | G80: 612,0000000 | I80: 22,18 | K80: 13.574,16 | M80: 13574.16 | N80: 0,23% | O80: 4908219.947 | P80: 82,71%
A81: 00001213/SINAPI | B81: ORSE | D81: Carpinteiro de formas ou oficial (horista) | E81: Mão de Obra | F81: h | G81: 681,1136640 | I81: 19,13 | K81: 13.028,75 | M81: 13028.75083 | N81: 0,22% | O81: 4921248.698 | P81: 82,93%
A82: 12660 | B82: ORSE | D82: Central de alarme endereçável de incendio com sistema p/ até 250 dispositivos, marcal Verin ou similar, Modelo VRE-250 c/ bateria de 12V e 7Amperes | E82: Material | F82: un | G82: 2,0000000 | I82: 6.509,21 | K82: 13.018,42 | M82: 13018.42 | N82: 0,22% | O82: 4934267.118 | P82: 83,15%
A83: COTAÇÃO - 117 | B83: Próprio | D83: QUADRO DE MEDIDOR P/ 22 MEDIDORES, COMPLETO P/ DISJUNTOR GERAL DE 125 A. MOD. TAF DIMENSÕES: 2650X1710X300MM | E83: Material | F83: UN | G83: 1,0000000 | I83: 12.921,57 | K83: 12.921,57 | M83: 12921.57 | N83: 0,22% | O83: 4947188.688 | P83: 83,37%
A84: 00039025 | B84: SINAPI | D84: PORTA DE ABRIR, TIPO VENEZIANA, EM ALUMINIO, ACABAMENTO ANODIZADO NATURAL, 90 CM X 210 CM (LARGURA X ALTURA), SEM GUARNICAO/ALIZAR/VISTA | E84: Material | F84: UN | G84: 16,7802180 | I84: 768,55 | K84: 12.896,44 | M84: 12896.43654 | N84: 0,22% | O84: 4960085.125 | P84: 83,58%
A85: 00011186 | B85: SINAPI | D85: ESPELHO CRISTAL E = 4 MM | E85: Material | F85: M² | G85: 16,0000000 | I85: 802,66 | K85: 12.842,56 | M85: 12842.56 | N85: 0,22% | O85: 4972927.685 | P85: 83,80%
A86: 00007307 | B86: SINAPI | D86: FUNDO ANTICORROSIVO PARA METAIS FERROSOS (ZARCAO) | E86: Material | F86: L | G86: 425,9267125 | I86: 29,62 | K86: 12.615,95 | M86: 12615.94923 | N86: 0,21% | O86: 4985543.634 | P86: 84,01%
A87: 00004759 | B87: SINAPI | D87: CALCETEIRO / RASTELEIRO (HORISTA) | E87: Mão de Obra | F87: H | G87: 675,9258929 | I87: 18,45 | K87: 12.470,83 | M87: 12470.83272 | N87: 0,21% | O87: 4998014.467 | P87: 84,22%
A88: 10925 | B88: ORSE | D88: Duto em chapa galvanizada nº 18 com diam=300mm, p/sistema exaustão | E88: Material | F88: m | G88: 46,8000000 | I88: 260,73 | K88: 12.202,16 | M88: 12202.164 | N88: 0,21% | O88: 5010216.631 | P88: 84,43%
A89: COTAÇÃO - 118 | B89: Próprio | D89: CABINE DO QPG EXECUTADA EM ALVENARIA PARA INSTALAÇÃO DO PAINEL DO QPG. DIMENSÕES 135X220X200CM (LXPXA). | E89: Material | F89: UN | G89: 1,0000000 | I89: 12.000,00 | K89: 12.000,00 | M89: 12000 | N89: 0,20% | O89: 5022216.631 | P89: 84,63%
A90: 00002696 | B90: SINAPI | D90: ENCANADOR OU BOMBEIRO HIDRAULICO (HORISTA) | E90: Mão de Obra | F90: H | G90: 581,4779817 | I90: 20,37 | K90: 11.844,71 | M90: 11844.70649 | N90: 0,20% | O90: 5034061.337 | P90: 84,83%
A91: 00007725 | B91: SINAPI | D91: TUBO DE CONCRETO ARMADO PARA AGUAS PLUVIAIS, CLASSE PA-1, COM ENCAIXE PONTA E BOLSA, DIAMETRO NOMINAL DE = 600 MM | E91: Material | F91: M | G91: 47,3800000 | I91: 244,00 | K91: 11.560,72 | M91: 11560.72 | N91: 0,19% | O91: 5045622.057 | P91: 85,03%
A92: 14552 | B92: ORSE | D92: Cumeeira em galvalume para telha trapezoidal galvalume standard, com 40 cm decada lado, e = 0,43mm, cor natural | E92: Material | F92: m | G92: 123,1500000 | I92: 88,60 | K92: 10.911,09 | M92: 10911.09 | N92: 0,18% | O92: 5056533.147 | P92: 85,21%
A93: 00020212 | B93: SINAPI | D93: CAIBRO APARELHADO *6 X 8* CM, EM MACARANDUBA/MASSARANDUBA, ANGELIM OU EQUIVALENTE DA REGIAO | E93: Material | F93: M | G93: 701,5536000 | I93: 15,19 | K93: 10.656,60 | M93: 10656.59918 | N93: 0,18% | O93: 5067189.746 | P93: 85,39%
A94: 00004221 | B94: SINAPI | D94: OLEO DIESEL COMBUSTIVEL COMUM METROPOLITANO S-10 OU S-500 | E94: Material | F94: L | G94: 1.614,0880744 | I94: 6,49 | K94: 10.475,43 | M94: 10475.4316 | N94: 0,18% | O94: 5077665.178 | P94: 85,57%
A95: 00034360 | B95: SINAPI | D95: PERFIL DE ALUMINIO ANODIZADO | E95: Material | F95: KG | G95: 239,5504300 | I95: 42,80 | K95: 10.252,76 | M95: 10252.7584 | N95: 0,17% | O95: 5087917.936 | P95: 85,74%
A96: 00007745 | B96: SINAPI | D96: TUBO DE CONCRETO ARMADO PARA AGUAS PLUVIAIS, CLASSE PA-1, COM ENCAIXE PONTA E BOLSA, DIAMETRO NOMINAL DE 400 MM | E96: Material | F96: M | G96: 80,3400000 | I96: 126,10 | K96: 10.130,87 | M96: 10130.874 | N96: 0,17% | O96: 5098048.81 | P96: 85,91%
A97: 00039432 | B97: SINAPI | D97: FITA DE PAPEL REFORCADA COM LAMINA DE METAL PARA REFORCO DE CANTOS DE CHAPA DE GESSO PARA DRYWALL | E97: Material | F97: M | G97: 3.190,1850400 | I97: 3,12 | K97: 9.953,38 | M97: 9953.377325 | N97: 0,17% | O97: 5108002.188 | P97: 86,08%
A98: 00040873 | B98: SINAPI | D98: RUFO INTERNO/EXTERNO DE CHAPA DE ACO GALVANIZADA NUM 24, CORTE 25 CM | E98: Material | F98: M | G98: 341,9220000 | I98: 28,60 | K98: 9.778,97 | M98: 9778.9692 | N98: 0,16% | O98: 5117781.157 | P98: 86,24%
A99: 00005318 | B99: SINAPI | D99: DILUENTE AGUARRAS | E99: Material | F99: L | G99: 456,4137378 | I99: 21,36 | K99: 9.749,00 | M99: 9748.997439 | N99: 0,16% | O99: 5127530.154 | P99: 86,41%
A100: 00001019 | B100: SINAPI | D100: CABO DE COBRE, FLEXIVEL, CLASSE 4 OU 5, ISOLACAO EM PVC/A, ANTICHAMA BWF-B, COBERTURA PVC-ST1, ANTICHAMA BWF-B, 1 CONDUTOR, 0,6/1 KV, SECAO NOMINAL 35 MM2 | E100: Material | F100: M | G100: 228,3750000 | I100: 41,13 | K100: 9.393,06 | M100: 9393.06375 | N100: 0,16% | O100: 5136923.218 | P100: 86,56%
A101: 00020259 | B101: SINAPI | D101: PERFIL DE BORRACHA EPDM MACICO *12 X 15* MM PARA ESQUADRIAS | E101: Material | F101: M | G101: 721,3826300 | I101: 12,90 | K101: 9.305,84 | M101: 9305.835927 | N101: 0,16% | O101: 5146229.054 | P101: 86,72%
A102: 00040863 | B102: SINAPI | D102: EXAMES - MENSALISTA (COLETADO CAIXA - ENCARGOS COMPLEMENTARES) | E102: Material | F102: MES | G102: 36,0000000 | I102: 252,08 | K102: 9.074,88 | M102: 9074.88 | N102: 0,15% | O102: 5155303.934 | P102: 86,87%
A103: 13159 | B103: ORSE | D103: Barramento neutro e terra para quadro de distribuição | E103: Material | F103: un | G103: 300,0000000 | I103: 29,89 | K103: 8.967,00 | M103: 8967 | N103: 0,15% | O103: 5164270.934 | P103: 87,03%
A104: 00043491 | B104: SINAPI | D104: EPI - FAMILIA SERVENTE - HORISTA (ENCARGOS COMPLEMENTARES - COLETADO CAIXA) | E104: Equipamento | F104: H | G104: 6.427,8771089 | I104: 1,33 | K104: 8.549,08 | M104: 8549.076555 | N104: 0,14% | O104: 5172820.01 | P104: 87,17%
A105: 10492 | B105: ORSE | D105: Cesta Básica | E105: Material | F105: un | G105: 44,5669146 | I105: 190,00 | K105: 8.467,71 | M105: 8467.713771 | N105: 0,14% | O105: 5181287.724 | P105: 87,31%
A106: 00038083 | B106: SINAPI | D106: TOMADA RJ45, 8 FIOS, CAT 5E, CONJUNTO MONTADO PARA EMBUTIR 4" X 2" (PLACA + SUPORTE + MODULO) | E106: Material | F106: UN | G106: 220,0000000 | I106: 38,27 | K106: 8.419,40 | M106: 8419.4 | N106: 0,14% | O106: 5189707.124 | P106: 87,45%
A107: 00043059 | B107: SINAPI | D107: ACO CA-60, 4,2 MM, OU 5,0 MM, OU 6,0 MM, OU 7,0 MM, VERGALHAO | E107: Material | F107: KG | G107: 855,8529642 | I107: 9,50 | K107: 8.130,60 | M107: 8130.60316 | N107: 0,14% | O107: 5197837.727 | P107: 87,59%
A108: 13894 | B108: ORSE | D108: NOBREAK NHS PRIME SENOIDALl, ref. 91.C1.030004 (PRIME 3000VA com 08 baterias seladas 7AH/S.120V/C.ETH). Cor preta.Ou similar. | E108: Material | F108: un | G108: 1,0000000 | I108: 7.995,54 | K108: 7.995,54 | M108: 7995.54 | N108: 0,13% | O108: 5205833.267 | P108: 87,73%
A109: 3631 | B109: ORSE | D109: Cantoneira "ZZ" para fixação de perfilado, ref. Mopa ou similar | E109: Material | F109: un | G109: 2.600,0000000 | I109: 3,05 | K109: 7.930,00 | M109: 7930 | N109: 0,13% | O109: 5213763.267 | P109: 87,86%
A110: 3308 | B110: ORSE | D110: Eletroduto em ferro galvanizado pesado sem costura 4" x 6m | E110: Material | F110: un | G110: 8,0000000 | I110: 991,00 | K110: 7.928,00 | M110: 7928 | N110: 0,13% | O110: 5221691.267 | P110: 87,99%
A111: 00035692 | B111: SINAPI | D111: TINTA LATEX ACRILICA STANDARD, COR BRANCA | E111: Material | F111: L | G111: 356,1009480 | I111: 22,18 | K111: 7.898,32 | M111: 7898.319027 | N111: 0,13% | O111: 5229589.586 | P111: 88,13%
A112: 00043484 | B112: SINAPI | D112: EPI - FAMILIA ELETRICISTA - HORISTA (ENCARGOS COMPLEMENTARES - COLETADO CAIXA) | E112: Equipamento | F112: H | G112: 6.327,5337478 | I112: 1,20 | K112: 7.593,04 | M112: 7593.040497 | N112: 0,13% | O112: 5237182.627 | P112: 88,25%
A113: 6698 | B113: ORSE | D113: Técnico em informática - 40h - Rev 02 | E113: Mão de Obra | F113: h | G113: 312,0000000 | I113: 24,14 | K113: 7.533,10 | M113: 7533.097728 | N113: 0,13% | O113: 5244715.725 | P113: 88,38%
A114: 00039419 | B114: SINAPI | D114: PERFIL GUIA, FORMATO U, EM ACO ZINCADO, PARA ESTRUTURA PAREDE DRYWALL, E = 0,5 MM, 70 X 3000 MM (L X C) | E114: Material | F114: M | G114: 821,6251680 | I114: 9,10 | K114: 7.476,79 | M114: 7476.789029 | N114: 0,13% | O114: 5252192.514 | P114: 88,51%
A115: 00004741 | B115: SINAPI | D115: PO DE PEDRA (POSTO PEDREIRA/FORNECEDOR, SEM FRETE) | E115: Material | F115: M³ | G115: 24,8376100 | I115: 281,90 | K115: 7.001,72 | M115: 7001.722259 | N115: 0,12% | O115: 5259194.236 | P115: 88,63%
A116: 00043651 | B116: SINAPI | D116: MASSA ACRILICA PARA SUPERFICIES INTERNAS E EXTERNAS | E116: Material | F116: KG | G116: 1.516,1593858 | I116: 4,53 | K116: 6.868,20 | M116: 6868.202018 | N116: 0,12% | O116: 5266062.438 | P116: 88,74%
A117: 00039996 | B117: SINAPI | D117: VERGALHAO ZINCADO ROSCA TOTAL, 1/4" (6,3 MM) | E117: Material | F117: M | G117: 1.575,2000000 | I117: 4,25 | K117: 6.694,60 | M117: 6694.6 | N117: 0,11% | O117: 5272757.038 | P117: 88,85%
A118: 00004750/SINAPI | B118: ORSE | D118: Pedreiro (horista) | E118: Mão de Obra | F118: h | G118: 348,3208560 | I118: 19,13 | K118: 6.662,89 | M118: 6662.890326 | N118: 0,11% | O118: 5279419.928 | P118: 88,97%
A119: 00004721 | B119: SINAPI | D119: PEDRA BRITADA N. 1 (9,5 A 19 MM) POSTO PEDREIRA/FORNECEDOR, SEM FRETE | E119: Material | F119: M³ | G119: 22,2966289 | I119: 298,43 | K119: 6.653,98 | M119: 6653.982975 | N119: 0,11% | O119: 5286073.911 | P119: 89,08%
A120: 00006085 | B120: SINAPI | D120: SELADOR ACRILICO OPACO PREMIUM INTERIOR/EXTERIOR | E120: Material | F120: L | G120: 1.116,9030600 | I120: 5,84 | K120: 6.522,71 | M120: 6522.71387 | N120: 0,11% | O120: 5292596.625 | P120: 89,19%
A121: 00043489 | B121: SINAPI | D121: EPI - FAMILIA PEDREIRO - HORISTA (ENCARGOS COMPLEMENTARES - COLETADO CAIXA) | E121: Equipamento | F121: H | G121: 5.209,0156652 | I121: 1,24 | K121: 6.459,18 | M121: 6459.179425 | N121: 0,11% | O121: 5299055.805 | P121: 89,30%
A122: 00036888 | B122: SINAPI | D122: GUARNICAO / MOLDURA / ARREMATE DE ACABAMENTO PARA ESQUADRIA, EM ALUMINIO PERFIL 25, ACABAMENTO ANODIZADO BRANCO OU BRILHANTE, PARA 1 FACE | E122: Material | F122: M | G122: 221,5419360 | I122: 29,05 | K122: 6.435,79 | M122: 6435.793241 | N122: 0,11% | O122: 5305491.598 | P122: 89,41%
A123: 00000246 | B123: SINAPI | D123: AUXILIAR DE ENCANADOR OU BOMBEIRO HIDRAULICO (HORISTA) | E123: Mão de Obra | F123: H | G123: 392,4204573 | I123: 16,31 | K123: 6.400,38 | M123: 6400.377659 | N123: 0,11% | O123: 5311891.975 | P123: 89,51%
A124: 00038101 | B124: SINAPI | D124: TOMADA 2P+T 10A, 250V (APENAS MODULO) | E124: Material | F124: UN | G124: 760,0000000 | I124: 8,37 | K124: 6.361,20 | M124: 6361.2 | N124: 0,11% | O124: 5318253.175 | P124: 89,62%
A125: 10103 | B125: ORSE | D125: QFAC - Quadro / Painel em chapa de aço com pintura eletrostática a pó poliester na cor bege, grau de proteção IP 54, com barramento, sem disjuntores - 1500x1000x350mm | E125: Material | F125: un | G125: 1,0000000 | I125: 6.254,87 | K125: 6.254,87 | M125: 6254.87 | N125: 0,11% | O125: 5324508.045 | P125: 89,73%
A126: 00006110 | B126: SINAPI | D126: SERRALHEIRO (HORISTA) | E126: Mão de Obra | F126: H | G126: 306,2449013 | I126: 20,37 | K126: 6.238,21 | M126: 6238.208639 | N126: 0,11% | O126: 5330746.254 | P126: 89,83%
A127: 13962 | B127: ORSE | D127: Luminária sobrepor quadrada Led 24W*, 6500K G- Light ou similar | E127: Material | F127: un | G127: 206,0000000 | I127: 30,10 | K127: 6.200,60 | M127: 6200.6 | N127: 0,10% | O127: 5336946.854 | P127: 89,94%
A128: 00039434 | B128: SINAPI | D128: MASSA DE REJUNTE EM PO PARA DRYWALL, A BASE DE GESSO, SECAGEM RAPIDA, PARA TRATAMENTO DE JUNTAS DE CHAPA DE GESSO (NECESSITA ADICAO DE AGUA) | E128: Equipamento | F128: KG | G128: 1.565,7044000 | I128: 3,90 | K128: 6.106,25 | M128: 6106.24716 | N128: 0,10% | O128: 5343053.101 | P128: 90,04%
A129: 00002696/SINAPI | B129: ORSE | D129: Encanador ou bombeiro hidraulico (horista) | E129: Mão de Obra | F129: h | G129: 308,4818000 | I129: 19,13 | K129: 5.900,82 | M129: 5900.824959 | N129: 0,10% | O129: 5348953.926 | P129: 90,14%
A130: 13285 | B130: ORSE | D130: Lâmpada led 50w de potência, luz branca bivolt, marca LLum ou similar | E130: Material | F130: un | G130: 184,0000000 | I130: 31,65 | K130: 5.823,60 | M130: 5823.6 | N130: 0,10% | O130: 5354777.526 | P130: 90,24%
A131: 2313 | B131: ORSE | D131: Tubo de aço galvanizado leve c/ costura c/ rosca BSP Ø = 60,30mm ( 2" ), e = 2,65mm, l = 6000mm NBR 5580 | E131: Material | F131: m | G131: 86,5600000 | I131: 67,15 | K131: 5.812,50 | M131: 5812.504 | N131: 0,10% | O131: 5360590.03 | P131: 90,33%
A132: 00001213 | B132: SINAPI | D132: CARPINTEIRO DE FORMAS PARA CONCRETO (HORISTA) | E132: Mão de Obra | F132: H | G132: 279,8281572 | I132: 20,37 | K132: 5.700,10 | M132: 5700.099561 | N132: 0,10% | O132: 5366290.13 | P132: 90,43%
A133: 00021037/SINAPI | B133: ORSE | D133: Mangueira de incendio, tipo 2, de 2 1/2", comprimento = 30 m, tecido em fio de poliester e tubo interno em borracha sintetica, com unioes engate rapido | E133: Material | F133: un | G133: 4,0000000 | I133: 1.413,86 | K133: 5.655,44 | M133: 5655.44 | N133: 0,10% | O133: 5371945.57 | P133: 90,53%
A134: 00006243 | B134: SINAPI | D134: TAMPAO FOFO SIMPLES COM BASE / REQUADRO, CLASSE B125 CARGA MAX. 12,5 T, REDONDO, TAMPA 600 MM (COM INSCRICAO EM RELEVO DO TIPO DE REDE) | E134: Material | F134: UN | G134: 10,0000000 | I134: 565,51 | K134: 5.655,10 | M134: 5655.1 | N134: 0,10% | O134: 5377600.67 | P134: 90,62%
A135: 00002685 | B135: SINAPI | D135: ELETRODUTO DE PVC RIGIDO ROSCAVEL DE 1 ", SEM LUVA | E135: Material | F135: M | G135: 650,8800000 | I135: 8,66 | K135: 5.636,62 | M135: 5636.6208 | N135: 0,09% | O135: 5383237.291 | P135: 90,72%
A136: 00039245 | B136: SINAPI | D136: ELETRODUTO PVC FLEXIVEL CORRUGADO, REFORCADO, COR LARANJA, DE 32 MM, PARA LAJES E PISOS | E136: Material | F136: M | G136: 660,0000000 | I136: 8,54 | K136: 5.636,40 | M136: 5636.4 | N136: 0,09% | O136: 5388873.691 | P136: 90,81%
A137: 00009841/SINAPI | B137: ORSE | D137: Tubo pvc, serie r, dn 100 mm, para esgoto ou aguas pluviais predial (nbr 5688) | E137: Material | F137: m | G137: 256,0047000 | I137: 22,01 | K137: 5.634,66 | M137: 5634.663447 | N137: 0,09% | O137: 5394508.354 | P137: 90,91%
A138: 00010892/SINAPI | B138: ORSE | D138: Extintor de incendio portatil com carga de po quimico seco (pqs) de 6 kg, classe bc | E138: Material | F138: un | G138: 24,0000000 | I138: 232,00 | K138: 5.568,00 | M138: 5568 | N138: 0,09% | O138: 5400076.354 | P138: 91,00%
A139: 00003283 | B139: SINAPI | D139: FORRO DE MADEIRA PINUS OU EQUIVALENTE DA REGIAO, ENCAIXE MACHO/FEMEA COM FRISO, *10 X 1* CM (SEM COLOCACAO) | E139: Material | F139: M² | G139: 195,6064000 | I139: 28,35 | K139: 5.545,44 | M139: 5545.44144 | N139: 0,09% | O139: 5405621.795 | P139: 91,09%
A140: 00043460 | B140: SINAPI | D140: FERRAMENTAS - FAMILIA ELETRICISTA - HORISTA (ENCARGOS COMPLEMENTARES - COLETADO CAIXA) | E140: Equipamento | F140: H | G140: 6.327,5337478 | I140: 0,85 | K140: 5.378,40 | M140: 5378.403686 | N140: 0,09% | O140: 5411000.199 | P140: 91,18%
A141: 00039430 | B141: SINAPI | D141: PENDURAL OU PRESILHA REGULADORA, EM ACO GALVANIZADO, COM CORPO, MOLA E REBITE, PARA PERFIL TIPO CANALETA DE ESTRUTURA EM FORROS DRYWALL | E141: Equipamento | F141: UN | G141: 2.085,3900000 | I141: 2,52 | K141: 5.255,18 | M141: 5255.1828 | N141: 0,09% | O141: 5416255.382 | P141: 91,27%
A142: 00006240 | B142: SINAPI | D142: TAMPAO FOFO SIMPLES COM BASE / REQUADRO, CLASSE D400 CARGA MAX. 40 T, REDONDO, TAMPA 600 MM (COM INSCRICAO EM RELEVO DO TIPO DE REDE) | E142: Material | F142: UN | G142: 7,0000000 | I142: 748,75 | K142: 5.241,25 | M142: 5241.25 | N142: 0,09% | O142: 5421496.632 | P142: 91,36%
A143: 00037593 | B143: SINAPI | D143: BLOCO CERAMICO / TIJOLO VAZADO PARA ALVENARIA DE VEDACAO, FUROS NA VERTICAL DE 14 X 19 X 39 CM (L X A X C) | E143: Material | F143: UN | G143: 1.734,0000000 | I143: 3,02 | K143: 5.236,68 | M143: 5236.68 | N143: 0,09% | O143: 5426733.312 | P143: 91,45%
A144: 9194 | B144: ORSE | D144: Cerâmica 50 x 50 cm, Elizabeth, porcelanato, antiderrapante, Legno bianco ou similar | E144: Material | F144: m² | G144: 128,9981000 | I144: 39,85 | K144: 5.140,57 | M144: 5140.574285 | N144: 0,09% | O144: 5431873.886 | P144: 91,54%
A145: 13676 | B145: ORSE | D145: Caixa de concreto pre moldado para aterramento, com tampa, 40 x 40 x 40, e = 5cm | E145: Material | F145: un | G145: 63,0000000 | I145: 80,86 | K145: 5.094,18 | M145: 5094.18 | N145: 0,09% | O145: 5436968.066 | P145: 91,62%
A146: 10761 | B146: ORSE | D146: Refeição - café da manhã ( café com leite e dois pães com manteiga) | E146: Serviços | F146: un | G146: 1.008,2026455 | I146: 5,00 | K146: 5.041,01 | M146: 5041.013227 | N146: 0,08% | O146: 5442009.079 | P146: 91,71%
A147: COTAÇÃO - 119 | B147: Próprio | D147: SISTEMA DE VDR PARA 40 CÂMERAS COM GRAVAÇÃO CONTÍNUA. CAPACIDADE DE ARMAZENAMENTO DO SISTEMA DE 30TB. FORNECIDO COM MATERIAIS E EQUIPAMENTOS COMPLEMENTARES PARA CORRETO FUNCIONAMENTO DO SISTEMA. | E147: Material | F147: UN | G147: 1,0000000 | I147: 4.942,45 | K147: 4.942,45 | M147: 4942.45 | N147: 0,08% | O147: 5446951.529 | P147: 91,79%
A148: 2241 | B148: ORSE | D148: Tomada para lógica, sistema x, com placa | E148: Material | F148: un | G148: 220,0000000 | I148: 22,39 | K148: 4.925,80 | M148: 4925.8 | N148: 0,08% | O148: 5451877.329 | P148: 91,87%
A149: 2069 | B149: ORSE | D149: Tampa de ferro fundido quadrada (600x600mm), carga max. 2000kg p/cx.inspeção | E149: Material | F149: un | G149: 3,0000000 | I149: 1.601,54 | K149: 4.804,62 | M149: 4804.62 | N149: 0,08% | O149: 5456681.949 | P149: 91,95%
A150: 00000142 | B150: SINAPI | D150: SELANTE ELASTICO MONOCOMPONENTE A BASE DE POLIURETANO (PU) PARA JUNTAS DIVERSAS | E150: Material | F150: 310ML | G150: 104,7684560 | I150: 45,66 | K150: 4.783,73 | M150: 4783.727701 | N150: 0,08% | O150: 5461465.677 | P150: 92,03%
A151: 00036520 | B151: SINAPI | D151: BACIA SANITARIA (VASO) CONVENCIONAL PARA PCD, SEM FURO FRONTAL, DE LOUCA BRANCA (SEM ASSENTO) | E151: Material | F151: UN | G151: 8,0000000 | I151: 594,60 | K151: 4.756,80 | M151: 4756.8 | N151: 0,08% | O151: 5466222.477 | P151: 92,11%
A152: 11095 | B152: ORSE | D152: Barra chata de aluminio 7/8" x 1/8" | E152: Material | F152: m | G152: 480,0000000 | I152: 9,83 | K152: 4.718,40 | M152: 4718.4 | N152: 0,08% | O152: 5470940.877 | P152: 92,19%
A153: 00004299/SINAPI | B153: ORSE | D153: Parafuso zincado rosca soberba, cabeca sextavada, 5/16" x 110 mm, para fixacao de telha em madeira | E153: Material | F153: un | G153: 2.602,2700000 | I153: 1,75 | K153: 4.553,97 | M153: 4553.9725 | N153: 0,08% | O153: 5475494.85 | P153: 92,27%
A154: 00009839/SINAPI | B154: ORSE | D154: Tubo pvc, serie r, dn 75 mm, para esgoto ou aguas pluviais predial (nbr 5688) | E154: Material | F154: m | G154: 248,1469000 | I154: 18,23 | K154: 4.523,72 | M154: 4523.717987 | N154: 0,08% | O154: 5480018.568 | P154: 92,35%
A155: 00001525 | B155: SINAPI | D155: CONCRETO USINADO BOMBEAVEL, CLASSE DE RESISTENCIA C30, BRITA 0 E 1, SLUMP = 100 +/- 20 MM, COM BOMBEAMENTO (DISPONIBILIZACAO DE BOMBA), SEM O LANCAMENTO (NBR 8953) | E155: Material | F155: M³ | G155: 4,6326000 | I155: 970,18 | K155: 4.494,46 | M155: 4494.455868 | N155: 0,08% | O155: 5484513.023 | P155: 92,42%
A156: 00043440 | B156: SINAPI | D156: CONJUNTO PRE-MOLDADO COMPOSTO POR GRELHA (0,99 X 0,45 M), QUADRO (1,10 X 0,52 M) E CANTONEIRA (1,10 X 0,35 M), EM CONCRETO ARMADO, COM FCK DE 21 MPA | E156: Material | F156: UN | G156: 9,0000000 | I156: 495,17 | K156: 4.456,53 | M156: 4456.53 | N156: 0,08% | O156: 5488969.553 | P156: 92,50%
A157: 00001020 | B157: SINAPI | D157: CABO DE COBRE, FLEXIVEL, CLASSE 4 OU 5, ISOLACAO EM PVC/A, ANTICHAMA BWF-B, COBERTURA PVC-ST1, ANTICHAMA BWF-B, 1 CONDUTOR, 0,6/1 KV, SECAO NOMINAL 10 MM2 | E157: Material | F157: M | G157: 373,0200000 | I157: 11,79 | K157: 4.397,91 | M157: 4397.9058 | N157: 0,07% | O157: 5493367.459 | P157: 92,57%
A158: 00036791 | B158: SINAPI | D158: TORNEIRA METALICA CROMADA DE MESA PARA LAVATORIO, BICA ALTA, COM AREJADOR (REF 1195) | E158: Material | F158: UN | G158: 20,0000000 | I158: 219,61 | K158: 4.392,20 | M158: 4392.2 | N158: 0,07% | O158: 5497759.659 | P158: 92,65%
A159: 00043465 | B159: SINAPI | D159: FERRAMENTAS - FAMILIA PEDREIRO - HORISTA (ENCARGOS COMPLEMENTARES - COLETADO CAIXA) | E159: Equipamento | F159: H | G159: 5.209,0156652 | I159: 0,82 | K159: 4.271,39 | M159: 4271.392845 | N159: 0,07% | O159: 5502031.052 | P159: 92,72%
A160: 00021127 | B160: SINAPI | D160: FITA ISOLANTE ADESIVA ANTICHAMA, USO ATE 750 V, EM ROLO DE 19 MM X 5 M | E160: Material | F160: UN | G160: 385,1476040 | I160: 11,05 | K160: 4.255,88 | M160: 4255.881024 | N160: 0,07% | O160: 5506286.933 | P160: 92,79%
A161: 00000392 | B161: SINAPI | D161: ABRACADEIRA EM ACO PARA AMARRACAO DE ELETRODUTOS, TIPO D, COM 1/2" E PARAFUSO DE FIXACAO | E161: Material | F161: UN | G161: 1.517,8450000 | I161: 2,79 | K161: 4.234,79 | M161: 4234.78755 | N161: 0,07% | O161: 5510521.721 | P161: 92,86%
A162: 00036531 | B162: SINAPI | D162: RETROESCAVADEIRA SOBRE RODAS COM CARREGADEIRA, TRACAO 4 X 4, POTENCIA LIQUIDA 88 HP, PESO OPERACIONAL MINIMO DE 6674 KG, CAPACIDADE DA CARREGADEIRA DE 1,00 M3 E DA RETROESCAVADEIRA MINIMA DE 0,26 M3, PROFUNDIDADE DE ESCAVACAO MAXIMA DE 4,37 M | E162: Equipamento | F162: UN | G162: 0,0096475 | I162: 436.402,41 | K162: 4.210,20 | M162: 4210.201106 | N162: 0,07% | O162: 5514731.922 | P162: 92,93%
A163: 00034653 | B163: SINAPI | D163: DISJUNTOR TERMOMAGNETICO PARA TRILHO DIN (IEC), MONOPOLAR, 6 - 32 A | E163: Material | F163: UN | G163: 417,0000000 | I163: 10,03 | K163: 4.182,51 | M163: 4182.51 | N163: 0,07% | O163: 5518914.432 | P163: 93,00%
A164: 00040782 | B164: SINAPI | D164: CALHA QUADRADA DE CHAPA DE ACO GALVANIZADA NUM 24, CORTE 33 CM | E164: Material | F164: M | G164: 104,7375000 | I164: 39,56 | K164: 4.143,42 | M164: 4143.4155 | N164: 0,07% | O164: 5523057.847 | P164: 93,07%
A165: 00000252 | B165: SINAPI | D165: AJUDANTE DE SERRALHEIRO (HORISTA) | E165: Mão de Obra | F165: H | G165: 251,4896515 | I165: 16,31 | K165: 4.101,80 | M165: 4101.796217 | N165: 0,07% | O165: 5527159.644 | P165: 93,14%
A166: 00000034 | B166: SINAPI | D166: ACO CA-50, 10,0 MM, VERGALHAO | E166: Material | F166: KG | G166: 406,8456000 | I166: 10,04 | K166: 4.084,73 | M166: 4084.729824 | N166: 0,07% | O166: 5531244.373 | P166: 93,21%
A167: 3990 | B167: ORSE | D167: Tampa de encaixe 100 X3000 - Z para eletrocalha metálica (ref.: mopa ou similar) | E167: Material | F167: m | G167: 600,0000000 | I167: 6,70 | K167: 4.020,00 | M167: 4020 | N167: 0,07% | O167: 5535264.373 | P167: 93,28%
A168: 00001379/SINAPI | B168: ORSE | D168: Cimento portland composto cp ii-32 | E168: Material | F168: kg | G168: 5.250,7716820 | I168: 0,76 | K168: 3.990,59 | M168: 3990.586478 | N168: 0,07% | O168: 5539254.96 | P168: 93,34%
A169: 00021012 | B169: SINAPI | D169: TUBO ACO GALVANIZADO COM COSTURA, CLASSE LEVE, DN 40 MM (1 1/2"), E = 3,00 MM, *3,48* KG/M (NBR 5580) | E169: Material | F169: M | G169: 72,3078300 | I169: 54,77 | K169: 3.960,30 | M169: 3960.299849 | N169: 0,07% | O169: 5543215.26 | P169: 93,41%
A170: 00000660 | B170: SINAPI | D170: CANALETA DE CONCRETO 19 X 19 X 19 CM (CLASSE C - NBR 6136) | E170: Material | F170: UN | G170: 1.118,2500000 | I170: 3,54 | K170: 3.958,61 | M170: 3958.605 | N170: 0,07% | O170: 5547173.865 | P170: 93,48%
A171: 12665 | B171: ORSE | D171: Sirene audiovisual endereçavel, 120 db, para alarme de incêndio | E171: Material | F171: un | G171: 20,0000000 | I171: 197,20 | K171: 3.944,00 | M171: 3944 | N171: 0,07% | O171: 5551117.865 | P171: 93,54%
A172: 00043467 | B172: SINAPI | D172: FERRAMENTAS - FAMILIA SERVENTE - HORISTA (ENCARGOS COMPLEMENTARES - COLETADO CAIXA) | E172: Equipamento | F172: H | G172: 6.427,8771089 | I172: 0,61 | K172: 3.921,01 | M172: 3921.005036 | N172: 0,07% | O172: 5555038.87 | P172: 93,61%
A173: 00004251 | B173: SINAPI | D173: OPERADOR DE JATO ABRASIVO OU JATISTA (HORISTA) | E173: Mão de Obra | F173: H | G173: 243,8233942 | I173: 16,05 | K173: 3.913,37 | M173: 3913.365477 | N173: 0,07% | O173: 5558952.235 | P173: 93,68%
A174: 12452 | B174: ORSE | D174: Câmera Hdcvi speed dome Vhd 3020 sd, da Intelbrás ou similar | E174: Material | F174: un | G174: 1,0000000 | I174: 3.801,10 | K174: 3.801,10 | M174: 3801.1 | N174: 0,06% | O174: 5562753.335 | P174: 93,74%
A175: 00037666 | B175: SINAPI | D175: OPERADOR DE BETONEIRA ESTACIONARIA / MISTURADOR (HORISTA) | E175: Mão de Obra | F175: H | G175: 251,1434234 | I175: 15,04 | K175: 3.777,20 | M175: 3777.197087 | N175: 0,06% | O175: 5566530.532 | P175: 93,80%
A176: 00007568 | B176: SINAPI | D176: BUCHA DE NYLON SEM ABA S10, COM PARAFUSO DE 6,10 X 65 MM EM ACO ZINCADO COM ROSCA SOBERBA, CABECA CHATA E FENDA PHILLIPS | E176: Material | F176: UN | G176: 4.752,9625540 | I176: 0,79 | K176: 3.754,84 | M176: 3754.840418 | N176: 0,06% | O176: 5570285.373 | P176: 93,87%
A177: 3331 | B177: ORSE | D177: Cabo de cobre nú 16 mm2 - 4AWG | E177: Material | F177: Kg | G177: 30,0000000 | I177: 124,75 | K177: 3.742,50 | M177: 3742.5 | N177: 0,06% | O177: 5574027.873 | P177: 93,93%
A178: 00001018 | B178: SINAPI | D178: CABO DE COBRE, FLEXIVEL, CLASSE 4 OU 5, ISOLACAO EM PVC/A, ANTICHAMA BWF-B, COBERTURA PVC-ST1, ANTICHAMA BWF-B, 1 CONDUTOR, 0,6/1 KV, SECAO NOMINAL 50 MM2 | E178: Material | F178: M | G178: 60,9000000 | I178: 60,82 | K178: 3.703,94 | M178: 3703.938 | N178: 0,06% | O178: 5577731.811 | P178: 93,99%
A179: 00037758 | B179: SINAPI | D179: CAMINHAO TRUCADO, PESO BRUTO TOTAL 23000 KG, CARGA UTIL MAXIMA 15285 KG, DISTANCIA ENTRE EIXOS 4,80 M, POTENCIA 326 CV (INCLUI CABINE E CHASSI, NAO INCLUI CARROCERIA) | E179: Equipamento | F179: UN | G179: 0,0052005 | I179: 710.806,66 | K179: 3.696,58 | M179: 3696.581268 | N179: 0,06% | O179: 5581428.392 | P179: 94,06%
A180: 00000378 | B180: SINAPI | D180: ARMADOR (HORISTA) | E180: Mão de Obra | F180: H | G180: 181,2709032 | I180: 20,37 | K180: 3.692,49 | M180: 3692.488298 | N180: 0,06% | O180: 5585120.88 | P180: 94,12%
A181: 00010737 | B181: SINAPI | D181: PEDRA GRANITICA OU BASALTO, CACO, RETALHO, CAVACO, TIPO MIRACEMA, MADEIRA, PADUANA, RACHINHA, SANTA ISABEL OU OUTRAS SIMILARES, E= *1,0 A *2,0 CM | E181: Material | F181: M² | G181: 25,8000000 | I181: 141,41 | K181: 3.648,38 | M181: 3648.378 | N181: 0,06% | O181: 5588769.258 | P181: 94,18%
A182: 2378 | B182: ORSE | D182: Vale transporte | E182: Material | F182: un | G182: 802,4524515 | I182: 4,50 | K182: 3.611,04 | M182: 3611.036032 | N182: 0,06% | O182: 5592380.294 | P182: 94,24%
A183: 9193 | B183: ORSE | D183: Disparador eletronico de 250 a 630 A | E183: Material | F183: un | G183: 1,0000000 | I183: 3.589,00 | K183: 3.589,00 | M183: 3589 | N183: 0,06% | O183: 5595969.294 | P183: 94,30%
A184: 00034357 | B184: SINAPI | D184: REJUNTE CIMENTICIO, QUALQUER COR | E184: Material | F184: KG | G184: 604,1933500 | I184: 5,87 | K184: 3.546,61 | M184: 3546.614965 | N184: 0,06% | O184: 5599515.909 | P184: 94,36%
A185: 00010422 | B185: SINAPI | D185: BACIA SANITARIA (VASO) COM CAIXA ACOPLADA, SIFAO APARENTE, DE LOUCA BRANCA (SEM ASSENTO) | E185: Material | F185: UN | G185: 10,0000000 | I185: 353,28 | K185: 3.532,80 | M185: 3532.8 | N185: 0,06% | O185: 5603048.709 | P185: 94,42%
A186: 13672 | B186: ORSE | D186: Suporte de fixação em chapa de aço galvanizado, para 02 luminária, encaixe emposte com topo de Ø de 60,3mm externo, da Induspar ou similar | E186: Material | F186: un | G186: 29,0000000 | I186: 119,76 | K186: 3.473,04 | M186: 3473.04 | N186: 0,06% | O186: 5606521.749 | P186: 94,48%
A187: 00000998 | B187: SINAPI | D187: CABO DE COBRE, FLEXIVEL, CLASSE 4 OU 5, ISOLACAO EM PVC/A, ANTICHAMA BWF-B, COBERTURA PVC-ST1, ANTICHAMA BWF-B, 1 CONDUTOR, 0,6/1 KV, SECAO NOMINAL 95 MM2 | E187: Material | F187: M | G187: 30,4500000 | I187: 110,47 | K187: 3.363,81 | M187: 3363.8115 | N187: 0,06% | O187: 5609885.561 | P187: 94,54%
A188: 00001743 | B188: SINAPI | D188: CUBA ACO INOX (AISI 304) DE EMBUTIR COM VALVULA 3 1/2 ", DE *46 X 30 X 12* CM | E188: Material | F188: UN | G188: 16,0000000 | I188: 203,15 | K188: 3.250,40 | M188: 3250.4 | N188: 0,05% | O188: 5613135.961 | P188: 94,59%
A189: 00021034/SINAPI | B189: ORSE | D189: Mangueira de incendio, tipo 2, de 2 1/2", comprimento = 15 m, tecido em fio de poliester e tubo interno em borracha sintetica, com unioes engate rapido | E189: Material | F189: un | G189: 4,0000000 | I189: 809,94 | K189: 3.239,76 | M189: 3239.76 | N189: 0,05% | O189: 5616375.721 | P189: 94,64%
A190: 00003322 | B190: SINAPI | D190: GRAMA ESMERALDA OU SAO CARLOS OU CURITIBANA, EM PLACAS, SEM PLANTIO | E190: Material | F190: M² | G190: 189,1000000 | I190: 16,90 | K190: 3.195,79 | M190: 3195.79 | N190: 0,05% | O190: 5619571.511 | P190: 94,70%
A191: 13651 | B191: ORSE | D191: Placa de sinalizacao, fotoluminescente, 38x19 cm, em pvc , com seta indicativa de sentido (esquerda ou direita) de saída de emergência- Placa S2 | E191: Material | F191: un | G191: 157,0000000 | I191: 20,19 | K191: 3.169,83 | M191: 3169.83 | N191: 0,05% | O191: 5622741.341 | P191: 94,75%
A192: 00001106 | B192: SINAPI | D192: CAL HIDRATADA CH-I PARA ARGAMASSAS | E192: Material | F192: KG | G192: 2.714,9305867 | I192: 1,16 | K192: 3.149,32 | M192: 3149.319481 | N192: 0,05% | O192: 5625890.66 | P192: 94,80%
A193: COTAÇÃO - 112 | B193: Próprio | D193: BARRAMENTO CHATA COBRE ELETROLÍTICO 19,05X3,18MM | E193: Material | F193: M | G193: 25,0000000 | I193: 125,86 | K193: 3.146,50 | M193: 3146.5 | N193: 0,05% | O193: 5629037.16 | P193: 94,86%
A194: 00011772 | B194: SINAPI | D194: TORNEIRA METALICA CROMADA, DE MESA/BANCADA, PARA COZINHA, BICA MOVEL, COM AREJADOR, 1/2" OU 3/4" (REF 1167 / 1168) | E194: Material | F194: UN | G194: 16,0000000 | I194: 195,18 | K194: 3.122,88 | M194: 3122.88 | N194: 0,05% | O194: 5632160.04 | P194: 94,91%
A195: 00038094 | B195: SINAPI | D195: ESPELHO / PLACA DE 3 POSTOS 4" X 2", PARA INSTALACAO DE TOMADAS E INTERRUPTORES | E195: Material | F195: UN | G195: 995,0000000 | I195: 3,12 | K195: 3.104,40 | M195: 3104.4 | N195: 0,05% | O195: 5635264.44 | P195: 94,96%
A196: 3249 | B196: ORSE | D196: Cabo de cobre nu 35 mm2 - 1AWG | E196: Material | F196: Kg | G196: 30,0000000 | I196: 100,50 | K196: 3.015,00 | M196: 3015 | N196: 0,05% | O196: 5638279.44 | P196: 95,01%
A197: 00039024 | B197: SINAPI | D197: PORTA DE ABRIR EM ALUMINIO COM DIVISAO HORIZONTAL PARA VIDROS, ACABAMENTO ANODIZADO NATURAL, VIDROS INCLUSOS, SEM GUARNICAO/ALIZAR/VISTA, 87 CM X 210 CM | E197: Material | F197: UN | G197: 4,0000000 | I197: 749,51 | K197: 2.998,04 | M197: 2998.04 | N197: 0,05% | O197: 5641277.48 | P197: 95,06%
A198: 00003379 | B198: SINAPI | D198: HASTE DE ATERRAMENTO EM ACO COM 3,00 M DE COMPRIMENTO E DN = 5/8", REVESTIDA COM BAIXA CAMADA DE COBRE, SEM CONECTOR | E198: Material | F198: UN | G198: 42,0000000 | I198: 70,84 | K198: 2.975,28 | M198: 2975.28 | N198: 0,05% | O198: 5644252.76 | P198: 95,11%
A199: 00001879 | B199: SINAPI | D199: CURVA 90 GRAUS, LONGA, DE PVC RIGIDO ROSCAVEL, DE 3/4", PARA ELETRODUTO | E199: Material | F199: UN | G199: 970,0000000 | I199: 3,04 | K199: 2.948,80 | M199: 2948.8 | N199: 0,05% | O199: 5647201.56 | P199: 95,16%
A200: 10928 | B200: ORSE | D200: Curva 45º em chapa galvanizada nº18, diam=300mm, p/sistema exaustão | E200: Serviços | F200: un | G200: 12,0000000 | I200: 243,90 | K200: 2.926,80 | M200: 2926.8 | N200: 0,05% | O200: 5650128.36 | P200: 95,21%
... 539 more rows

Sheet Encargos Sociais
